Workbook

Sheet Solicitud de Cotización General
C1: SOLICITUD DE COTIZACIÓN
B2: Solicitud de cotización - Información general
B3: Acuerdo Marco para la prestaciòn del Servicio Integral de Aseo y Cafetería
A4: Versión: 42 ---- 14/05/2024
A5: 1. Información básica de la Entidad Compradora
A7: Nombre de la Entidad Compradora | C7: PROCURADURIA GENERAL DE LA NACION
A8: Dirección | C8: CARRERA 5 15-80 PISO 3 | G8: Teléfono | H8: 3006267621
A9: Departamento | C9: BOGOTA | E9: Municipio | F9: BOGOTA | G9: Región | H9: 10
A10: Correo Electrónico | C10: jlgalvis2010@procuraduria.gov.co
A11: Vigencia del contrato en meses | C11: 7 | D11: Fecha estimada de inicio: dd/mm/aaaa | F11: 2024-09-09 | G11: ¿Recargo por dotación especial? | H11: =IF(COUNTIF($J$21:$J$21,"Sí")>0,"Sí","No") -> No
A12: ¿Requiere el servicio para otras sedes? | C12: Sí | D12: N° de sedes | F12: 4
A14: 2. Personal | J14: Detalle Sede | K14: Detalle Sede | L14: Detalle Sede | M14: Detalle Sede
A16: Campo Informativo | C16: Descripción | J16: Sede 1 | K16: Sede 2 | L16: Sede 3 | M16: Sede 4
A17: Dotación clima frío | C17: ¿La entidad requiere Dotación para clima frio de acuerdo con lo descrito en el Anexo 2? | J17: No | K17: No | L17: No | M17: No
A18: Compra a pequeños productores agropecuarios locales | C18: En caso de adquirir café social, ¿requiere que esta adquisición se realice a pequeños productores locales y productores locales agropecuarios? | J18: No | K18: No | L18: No | M18: No
A19: Gestión de residuos peligrosos | C19: En caso de que la entidad no contemple dentro de su Plan de Gestión Ambiental un protocolo para la gestión de residuos peligrosos ¿requiere que el proveedor realice la disposición final de los residuos peligrosos generados en virtud de la prestación del Servicio? | J19: No | K19: No | L19: No | M19: No
A20: Horas extras | C20: ¿La entidad requiere horas extras? | H20: No
A21: Dotación especial | C21: Observaciones: | H21: ¿La entidad requiere dotación especial? | J21: No | K21: No | L21: No | M21: No
A23: Perfil del operario que requiere la sede | C23: Total requerido | D23: Días de trabajo | E23: Horario | F23: Observaciones | J23: =J16 -> Sede 1 | K23: =K16 -> Sede 2 | L23: =L16 -> Sede 3 | M23: =M16 -> Sede 4
A24: Tiempo completo
A25: Operario de aseo y cafetería | C25: =SUM(J25:M25) -> 4 | F25: Horario según normas legales vigentes | I25: =IF(ISBLANK(A25),0,"msg") -> msg | J25: 1 | K25: 1 | L25: 1 | M25: 1
A26: 1. Si requiere agregue o elimine filas de Personal TC | C26: =SUM(C25:C25) -> 4 | J26: =SUM(J25:J25) -> 1 | K26: =SUM(K25:K25) -> 1 | L26: =SUM(L25:L25) -> 1 | M26: =SUM(M25:M25) -> 1
C27: =SUM(C25:C26) -> 8
A28: Perfil del operario que requiere la sede | C28: Total requerido | D28: Días de trabajo | E28: Horario | F28: Observaciones | J28: =J23 -> Sede 1 | K28: =K23 -> Sede 2 | L28: =L23 -> Sede 3 | M28: =M23 -> Sede 4
A29: Medio Tiempo
C30: =SUM(J30:M30) -> 0 | I30: =IF(ISBLANK(A30),0,"msg") -> 0
A31: 1. Si requiere agregue o elimine filas de Personal MT | C31: =SUM(C30:C30) -> 0 | J31: =SUM(J30:J30) -> 0 | K31: =SUM(K30:K30) -> 0 | L31: =SUM(L30:L30) -> 0 | M31: =SUM(M30:M30) -> 0
C32: =SUM(C30:C31) -> 0
A33: Perfil del operario que requiere la sede | C33: Total requerido | D33: Días de trabajo | E33: Horario | F33: Observaciones | J33: =J28 -> Sede 1 | K33: =K28 -> Sede 2 | L33: =L28 -> Sede 3 | M33: =M28 -> Sede 4
A34: Personal por Turnos
C35: =SUM(J35:M35) -> 0 | I35: =IF(ISBLANK(A35),0,"msg") -> 0
A36: 1. Si requiere agregue o elimine filas de Personal Turno | C36: =SUM(C35:C35) -> 0 | J36: =SUM(J35:J35) -> 0 | K36: =SUM(K35:K35) -> 0 | L36: =SUM(L35:L35) -> 0 | M36: =SUM(M35:M35) -> 0
A37: Total N° de operarios requeridos: | C37: =C26+C31+C36 -> 4
A39: Disminución del personal | J39: =J33 -> Sede 1 | K39: =K33 -> Sede 2 | L39: =L33 -> Sede 3 | M39: =M33 -> Sede 4
A40: perfil de operario | C40: Total requerido | D40: cantidad | E40: fecha inicial | G40: fecha final
C41: =SUM(J41:M41) -> 0
A42: 1. Si requiere agregue o elimine filas de Disminución Personal | C42: =SUM(C41:C41) -> 0 | J42: =SUM(J41:J41) -> 0 | K42: =SUM(K41:K41) -> 0 | L42: =SUM(L41:L41) -> 0 | M42: =SUM(M41:M41) -> 0
A44: Otras observaciones sobre la dotación del personal | D44: Dotación según norma slegales vigentes
A46: 3. Bienes de Aseo y Cafetería
A48: ¿Requiere Bienes de Aseo y Cafetería? | D48: Sí | F48: =IF(D48="Sí",HYPERLINK("#'Detalle Bienes de Aseo y Caf'!F10","Seleccionar Bienes de Aseo y Cafetería"),"Sin Bienes") -> Seleccionar Bienes de Aseo y Cafetería
A50: Rango mensual de tiempo para la entrega de los Bienes de Aseo y Cafetería (mínimo 3 y máximo 5 días) | D50: Iniciando el día | E50: N° de días hábiles | G50: De cada mes entre las 8:00 a.m. y las 5:00 p.m.
D51: 1 | E51: 3
A53: 4. Servicios Especiales | J53: Detalle Sede | K53: Detalle Sede | L53: Detalle Sede | M53: Detalle Sede
A55: Jardinería | C55: =IF($C56<100,"No","Sí") -> No | J55: =J23 -> Sede 1 | K55: =K23 -> Sede 2 | L55: =L23 -> Sede 3 | M55: =M23 -> Sede 4
A56: Área total de la zona verde a mantener en m2:
A58: 5. Visita técnica
A60: Determine el tiempo en el cual la Entidad Compradora recibirá a los Proveedores que quieran realizar la visita técnica
A62: Fecha 1 (dd/mm/aaaa) | C62: 2024-08-15 | E62: *Debe establecerse dentro de los cinco (5) días hábiles siguientes a la generación de la solicitud de cotización, dos (2) días disponibles para la realización de la visita.
A63: Fecha 2 (dd/mm/aaaa) | C63: 2024-08-26
A65: Hora | B65: Entre las | D65: 08:00:00 | E65: a.m. | F65: * Debe establecerse un rango de tiempo de mínimo tres (3) horas
B66: y las | D66: 12:00:00 | E66: p.m.
A68: La visita técnica es opcional y sus costos corren por cuenta del Proveedor.
A70: 6. Observaciones generales
A80: Gravámenes adicionales*
A82: Gravámenes adicionales (estampillas)
A83: No | B83: Descripción | F83: Porcentaje
A84: 1
D85: Total porcentaje: | F85: =SUM(F84:F84) -> 0
B86: Filas a agregar o eliminar Gravámenes:
B87: 1

Sheet Detalle Especificaciones
A1: DETALLE ESPECIFICACIONES | K1: DETALLE ESPECIFICACIONES | T1: DETALLE ESPECIFICACIONES | AC1: DETALLE ESPECIFICACIONES
A2: Especificaciones del servicio - Sede 1 | K2: Especificaciones del servicio - Sede 2 | T2: Especificaciones del servicio - Sede 3 | AC2: Especificaciones del servicio - Sede 4
A4: Información básica | K4: Información básica | T4: Información básica | AC4: Información básica
A7: Nombre de la Sede | C7: PROCURADURIA PROVINCIAL DE TIIERRAS | K7: Nombre de la Sede | M7: Judiciales Administrativas | T7: Nombre de la Sede | V7: Judiciales Penales, Coordinacion Adtiva, Agraria y Familia | AC7: Nombre de la Sede | AE7: Procuraduria Regional Guaviare
A8: Dirección | C8: CALLE 38 No. 31-58 Piso 2 Edificio Centro Bancario y Comercial. | G8: Telefono | H8: 3115585856 | K8: Dirección | M8: CALLE 38 No. 30A-25 Piso 2 Edificio Banco Popular. | Q8: Telefono | R8: 3115585856 | T8: Dirección | V8: Calle 38 No. 30A-64 Piso 12 Edificio Davivienda | Z8: Telefono | AA8: 3115585856 | AC8: Dirección | AE8: Calle 9 No. 23-74 Barrio El Centro | AI8: Telefono | AJ8: 3115585856
A9: Departamento | C9: META | E9: Municipio | G9: VILLAVICENCIO | K9: Departamento | M9: META | O9: Municipio | Q9: VILLAVICENCIO | T9: Departamento | V9: META | X9: Municipio | Z9: VILLAVICENCIO | AC9: Departamento | AE9: GUAVIARE | AG9: Municipio | AI9: SAN JOSE DEL GUAVIARE
A11: Información de las instalaciones de la sede | K11: Información de las instalaciones de la sede | T11: Información de las instalaciones de la sede | AC11: Información de las instalaciones de la sede
A15: Tipo de instalación: | D15: Edificio administrativo | E15: Si seleccionó otro, indique cuál: | K15: Tipo de instalación: | N15: Edificio administrativo | O15: Si seleccionó otro, indique cuál: | T15: Tipo de instalación: | W15: Edificio administrativo | X15: Si seleccionó otro, indique cuál: | AC15: Tipo de instalación: | AF15: Edificio administrativo | AG15: Si seleccionó otro, indique cuál:
A16: N° de pisos: | D16: 1 | E16: Área total aproximada en m2: | G16: 506 | K16: N° de pisos: | N16: 1 | O16: Área total aproximada en m2: | Q16: 309 | T16: N° de pisos: | W16: 1 | X16: Área total aproximada en m2: | Z16: 265 | AC16: N° de pisos: | AF16: 2 | AG16: Área total aproximada en m2: | AI16: 252
A17: N° de personas trabajando en las intalaciones: | D17: 34 | E17: N° estimado de visitantes por día: | G17: 50 | K17: N° de personas trabajando en las intalaciones: | N17: 20 | O17: N° estimado de visitantes por día: | Q17: 50 | T17: N° de personas trabajando en las intalaciones: | W17: 12 | X17: N° estimado de visitantes por día: | Z17: 25 | AC17: N° de personas trabajando en las intalaciones: | AF17: 10 | AG17: N° estimado de visitantes por día: | AI17: 25
A19: Tipo de área | C19: Cantidad | D19: Área total estimada en m2 | E19: Observaciones | K19: Tipo de área | M19: Cantidad | N19: Área total estimada en m2 | O19: Observaciones | T19: Tipo de área | V19: Cantidad | W19: Área total estimada en m2 | X19: Observaciones | AC19: Tipo de área | AE19: Cantidad | AF19: Área total estimada en m2 | AG19: Observaciones
A20: Ascensores | K20: Ascensores | T20: Ascensores | AC20: Ascensores
A21: Auditorios | K21: Auditorios | T21: Auditorios | AC21: Auditorios
A22: Baños | K22: Baños | T22: Baños | AC22: Baños | AE22: 4 | AF22: 8
A23: Oficinas (N° de cubículos) | K23: Oficinas (N° de cubículos) | T23: Oficinas (N° de cubículos) | AC23: Oficinas (N° de cubículos) | AE23: 12 | AF23: 113
A24: Parqueadero/sótano | K24: Parqueadero/sótano | T24: Parqueadero/sótano | AC24: Parqueadero/sótano | AE24: 1 | AF24: 35
A25: Salones comunes | K25: Salones comunes | T25: Salones comunes | AC25: Salones comunes
A26: Terrazas | K26: Terrazas | T26: Terrazas | AC26: Terrazas
A27: Zonas comunes | K27: Zonas comunes | T27: Zonas comunes | AC27: Zonas comunes
A28: Zonas de cafetería | K28: Zonas de cafetería | T28: Zonas de cafetería | AC28: Zonas de cafetería | AE28: 1 | AF28: 6
A29: Zonas verdes | K29: Zonas verdes | T29: Zonas verdes | AC29: Zonas verdes | AE29: 1 | AF29: 90
A30: Otro: | C30: 1 | D30: 506 | K30: Otro: | M30: 1 | N30: 309 | T30: Otro: | V30: 1 | W30: 265 | AC30: Otro:
A32: Actividades a desarrollar | K32: Actividades a desarrollar | T32: Actividades a desarrollar | AC32: Actividades a desarrollar
A36: Tipo de servicio requerido en la sede: | C36: Aseo y cafetería | K36: Tipo de servicio requerido en la sede: | M36: =C36 -> Aseo y cafetería | T36: Tipo de servicio requerido en la sede: | V36: =C36 -> Aseo y cafetería | AC36: Tipo de servicio requerido en la sede: | AE36: =C36 -> Aseo y cafetería
A38: Actividades de servicio de aseo | E38: Marque con una X | F38: Frecuencia | G38: Observaciones | K38: Actividades de servicio de aseo | O38: Marque con una X | P38: Frecuencia | Q38: Observaciones | T38: Actividades de servicio de aseo | X38: Marque con una X | Y38: Frecuencia | Z38: Observaciones | AC38: Actividades de servicio de aseo | AG38: Marque con una X | AH38: Frecuencia | AI38: Observaciones
A39: Áreas Comunes | B39: Limpieza de pasillos, salas de reunión, áreas de archivo y almacenaje, bibliotecas, bodegas y otras áreas comunes solicitadas por la Entidad Compradora. | E39: X | F39: COORDINADO | K39: Áreas Comunes | L39: Limpieza de pasillos, salas de reunión, áreas de archivo y almacenaje, bibliotecas, bodegas y otras áreas comunes solicitadas por la Entidad Compradora. | O39: =E39 -> X | P39: =F39 -> COORDINADO | Q39: =G39 -> 0 | T39: Áreas Comunes | U39: Limpieza de pasillos, salas de reunión, áreas de archivo y almacenaje, bibliotecas, bodegas y otras áreas comunes solicitadas por la Entidad Compradora. | X39: =E39 -> X | Y39: =F39 -> COORDINADO | Z39: =G39 -> 0 | AC39: Áreas Comunes | AD39: Limpieza de pasillos, salas de reunión, áreas de archivo y almacenaje, bibliotecas, bodegas y otras áreas comunes solicitadas por la Entidad Compradora. | AG39: =E39 -> X | AH39: =F39 -> COORDINADO | AI39: =G39 -> 0
B40: Limpieza, aspirado, brillo y cuidado de sillas, muebles, poltronas y mesas. | E40: X | F40: COORDINADO | L40: Limpieza, aspirado, brillo y cuidado de sillas, muebles, poltronas y mesas. | O40: =E40 -> X | P40: =F40 -> COORDINADO | Q40: =G40 -> 0 | U40: Limpieza, aspirado, brillo y cuidado de sillas, muebles, poltronas y mesas. | X40: =E40 -> X | Y40: =F40 -> COORDINADO | Z40: =G40 -> 0 | AD40: Limpieza, aspirado, brillo y cuidado de sillas, muebles, poltronas y mesas. | AG40: =E40 -> X | AH40: =F40 -> COORDINADO | AI40: =G40 -> 0
B41: Limpieza de persianas, cortinas, cortinas tipo blackout, acrílicos, techos y rejillas de ventilación. | E41: X | F41: COORDINADO | L41: Limpieza de persianas, cortinas, cortinas tipo blackout, acrílicos, techos y rejillas de ventilación. | O41: X | P41: COORDINADO | Q41: 0 | U41: Limpieza de persianas, cortinas, cortinas tipo blackout, acrílicos, techos y rejillas de ventilación. | X41: X | Y41: COORDINADO | Z41: 0 | AD41: Limpieza de persianas, cortinas, cortinas tipo blackout, acrílicos, techos y rejillas de ventilación. | AG41: X | AH41: COORDINADO | AI41: 0
B42: Limpieza de ventanas y vidrios interiores de oficinas, módulos, salas de reunión, zonas comunes y puertas,. | E42: X | F42: COORDINADO | L42: Limpieza de ventanas y vidrios interiores de oficinas, módulos, salas de reunión, zonas comunes y puertas,. | O42: X | P42: COORDINADO | Q42: 0 | U42: Limpieza de ventanas y vidrios interiores de oficinas, módulos, salas de reunión, zonas comunes y puertas,. | X42: X | Y42: COORDINADO | Z42: 0 | AD42: Limpieza de ventanas y vidrios interiores de oficinas, módulos, salas de reunión, zonas comunes y puertas,. | AG42: X | AH42: COORDINADO | AI42: 0
B43: Limpieza de paredes, barandas, escaleras, muros y divisiones modulares. | E43: X | F43: COORDINADO | L43: Limpieza de paredes, barandas, escaleras, muros y divisiones modulares. | O43: X | P43: COORDINADO | Q43: 0 | U43: Limpieza de paredes, barandas, escaleras, muros y divisiones modulares. | X43: X | Y43: COORDINADO | Z43: 0 | AD43: Limpieza de paredes, barandas, escaleras, muros y divisiones modulares. | AG43: X | AH43: COORDINADO | AI43: 0
B44: Limpieza de cuadros, elementos decorativos, lámparas de escritorios, lámparas fluorescentes, marcos, enchufes e interruptores. | E44: X | F44: COORDINADO | L44: Limpieza de cuadros, elementos decorativos, lámparas de escritorios, lámparas fluorescentes, marcos, enchufes e interruptores. | O44: X | P44: COORDINADO | Q44: 0 | U44: Limpieza de cuadros, elementos decorativos, lámparas de escritorios, lámparas fluorescentes, marcos, enchufes e interruptores. | X44: X | Y44: COORDINADO | Z44: 0 | AD44: Limpieza de cuadros, elementos decorativos, lámparas de escritorios, lámparas fluorescentes, marcos, enchufes e interruptores. | AG44: X | AH44: COORDINADO | AI44: 0
B45: Limpieza y brillo de placas, ceniceros, letreros, plantas interiores, elementos decorativos que lo requieran, lámparas colgantes y otras lámparas que lo requieran. | E45: X | F45: COORDINADO | L45: Limpieza y brillo de placas, ceniceros, letreros, plantas interiores, elementos decorativos que lo requieran, lámparas colgantes y otras lámparas que lo requieran. | O45: X | P45: COORDINADO | Q45: 0 | U45: Limpieza y brillo de placas, ceniceros, letreros, plantas interiores, elementos decorativos que lo requieran, lámparas colgantes y otras lámparas que lo requieran. | X45: X | Y45: COORDINADO | Z45: 0 | AD45: Limpieza y brillo de placas, ceniceros, letreros, plantas interiores, elementos decorativos que lo requieran, lámparas colgantes y otras lámparas que lo requieran. | AG45: X | AH45: COORDINADO | AI45: 0
B46: Limpieza, aspirado, desmanchado y brillo de ascensores | E46: X | F46: COORDINADO | L46: Limpieza, aspirado, desmanchado y brillo de ascensores | O46: X | P46: COORDINADO | Q46: 0 | U46: Limpieza, aspirado, desmanchado y brillo de ascensores | X46: X | Y46: COORDINADO | Z46: 0 | AD46: Limpieza, aspirado, desmanchado y brillo de ascensores | AG46: X | AH46: COORDINADO | AI46: 0
B47: Lavado de limpiones y paños. Lavado ocasional de manteles, servilletas y banderas en máquina lavadora. | E47: X | F47: COORDINADO | L47: Lavado de limpiones y paños. Lavado ocasional de manteles, servilletas y banderas en máquina lavadora. | O47: X | P47: COORDINADO | Q47: 0 | U47: Lavado de limpiones y paños. Lavado ocasional de manteles, servilletas y banderas en máquina lavadora. | X47: X | Y47: COORDINADO | Z47: 0 | AD47: Lavado de limpiones y paños. Lavado ocasional de manteles, servilletas y banderas en máquina lavadora. | AG47: X | AH47: COORDINADO | AI47: 0
B48: Limpieza y vaciado de contenedores de basuras, canecas, ceniceros y papeleras. Cambio de bolsa plástica. | E48: X | F48: COORDINADO | L48: Limpieza y vaciado de contenedores de basuras, canecas, ceniceros y papeleras. Cambio de bolsa plástica. | O48: X | P48: COORDINADO | Q48: 0 | U48: Limpieza y vaciado de contenedores de basuras, canecas, ceniceros y papeleras. Cambio de bolsa plástica. | X48: X | Y48: COORDINADO | Z48: 0 | AD48: Limpieza y vaciado de contenedores de basuras, canecas, ceniceros y papeleras. Cambio de bolsa plástica. | AG48: X | AH48: COORDINADO | AI48: 0
B49: Limpieza de los implementos, equipos y utensilios empleados para el servicio de cafetería, entre ellos, microondas, neveras, grecas, dispensadores, estufas, así como las instalaciones físicas de las cafeterías. | E49: X | F49: COORDINADO | L49: Limpieza de los implementos, equipos y utensilios empleados para el servicio de cafetería, entre ellos, microondas, neveras, grecas, dispensadores, estufas, así como las instalaciones físicas de las cafeterías. | O49: X | P49: COORDINADO | Q49: 0 | U49: Limpieza de los implementos, equipos y utensilios empleados para el servicio de cafetería, entre ellos, microondas, neveras, grecas, dispensadores, estufas, así como las instalaciones físicas de las cafeterías. | X49: X | Y49: COORDINADO | Z49: 0 | AD49: Limpieza de los implementos, equipos y utensilios empleados para el servicio de cafetería, entre ellos, microondas, neveras, grecas, dispensadores, estufas, así como las instalaciones físicas de las cafeterías. | AG49: X | AH49: COORDINADO | AI49: 0
B50: Apoyo en la limpieza y organización de elementos luego de comidas, reuniones de trabajo o eventos especiales realizados por la Entidad Compradora | E50: X | F50: COORDINADO | L50: Apoyo en la limpieza y organización de elementos luego de comidas, reuniones de trabajo o eventos especiales realizados por la Entidad Compradora | O50: X | P50: COORDINADO | Q50: 0 | U50: Apoyo en la limpieza y organización de elementos luego de comidas, reuniones de trabajo o eventos especiales realizados por la Entidad Compradora | X50: X | Y50: COORDINADO | Z50: 0 | AD50: Apoyo en la limpieza y organización de elementos luego de comidas, reuniones de trabajo o eventos especiales realizados por la Entidad Compradora | AG50: X | AH50: COORDINADO | AI50: 0
B51: Evacuación diaria de desechos de las zonas objeto de la prestación del servicio: Introducción en empaques adecuados y disposición en los lugares destinados para su posterior recolección. | E51: X | F51: COORDINADO | L51: Evacuación diaria de desechos de las zonas objeto de la prestación del servicio: Introducción en empaques adecuados y disposición en los lugares destinados para su posterior recolección. | O51: X | P51: COORDINADO | Q51: 0 | U51: Evacuación diaria de desechos de las zonas objeto de la prestación del servicio: Introducción en empaques adecuados y disposición en los lugares destinados para su posterior recolección. | X51: X | Y51: COORDINADO | Z51: 0 | AD51: Evacuación diaria de desechos de las zonas objeto de la prestación del servicio: Introducción en empaques adecuados y disposición en los lugares destinados para su posterior recolección. | AG51: X | AH51: COORDINADO | AI51: 0
B52: Limpieza básica de tanques, fuentes y piletas (máximo 5000 litros). No incluye insumos especializados. | E52: X | F52: COORDINADO | L52: Limpieza básica de tanques, fuentes y piletas (máximo 5000 litros). No incluye insumos especializados. | O52: X | P52: COORDINADO | Q52: 0 | U52: Limpieza básica de tanques, fuentes y piletas (máximo 5000 litros). No incluye insumos especializados. | X52: X | Y52: COORDINADO | Z52: 0 | AD52: Limpieza básica de tanques, fuentes y piletas (máximo 5000 litros). No incluye insumos especializados. | AG52: X | AH52: COORDINADO | AI52: 0
B53: Limpieza de parqueaderos, terrazas, sótanos y casetas de seguridad. No debe requerir maquinar adicional a la establecida en el Anexo 4 del pliego de condicioenes. | E53: X | F53: COORDINADO | L53: Limpieza de parqueaderos, terrazas, sótanos y casetas de seguridad. No debe requerir maquinar adicional a la establecida en el Anexo 4 del pliego de condicioenes. | O53: X | P53: COORDINADO | Q53: 0 | U53: Limpieza de parqueaderos, terrazas, sótanos y casetas de seguridad. No debe requerir maquinar adicional a la establecida en el Anexo 4 del pliego de condicioenes. | X53: X | Y53: COORDINADO | Z53: 0 | AD53: Limpieza de parqueaderos, terrazas, sótanos y casetas de seguridad. No debe requerir maquinar adicional a la establecida en el Anexo 4 del pliego de condicioenes. | AG53: X | AH53: COORDINADO | AI53: 0
B54: Limpieza y riego las plantas y jardines interiores, y riego de los jardines exteriores aledaños a las instalaciones Entidad Compradora | E54: X | F54: COORDINADO | L54: Limpieza y riego las plantas y jardines interiores, y riego de los jardines exteriores aledaños a las instalaciones Entidad Compradora | O54: X | P54: COORDINADO | Q54: 0 | U54: Limpieza y riego las plantas y jardines interiores, y riego de los jardines exteriores aledaños a las instalaciones Entidad Compradora | X54: X | Y54: COORDINADO | Z54: 0 | AD54: Limpieza y riego las plantas y jardines interiores, y riego de los jardines exteriores aledaños a las instalaciones Entidad Compradora | AG54: X | AH54: COORDINADO | AI54: 0
B55: Eliminación de suciedad acumulada, hongos, maleza, hierbas y tierra entre las hendiduras de baldosas o ladrillos. | E55: X | F55: COORDINADO | L55: Eliminación de suciedad acumulada, hongos, maleza, hierbas y tierra entre las hendiduras de baldosas o ladrillos. | O55: X | P55: COORDINADO | Q55: 0 | U55: Eliminación de suciedad acumulada, hongos, maleza, hierbas y tierra entre las hendiduras de baldosas o ladrillos. | X55: X | Y55: COORDINADO | Z55: 0 | AD55: Eliminación de suciedad acumulada, hongos, maleza, hierbas y tierra entre las hendiduras de baldosas o ladrillos. | AG55: X | AH55: COORDINADO | AI55: 0
B56: Lavado las fachadas y vidrios exteriores de las instalaciones de la Entidad Compradora a una altura menor a 1,5 metros. | E56: X | F56: COORDINADO | L56: Lavado las fachadas y vidrios exteriores de las instalaciones de la Entidad Compradora a una altura menor a 1,5 metros. | O56: X | P56: COORDINADO | Q56: 0 | U56: Lavado las fachadas y vidrios exteriores de las instalaciones de la Entidad Compradora a una altura menor a 1,5 metros. | X56: X | Y56: COORDINADO | Z56: 0 | AD56: Lavado las fachadas y vidrios exteriores de las instalaciones de la Entidad Compradora a una altura menor a 1,5 metros. | AG56: X | AH56: COORDINADO | AI56: 0
B57: Realización de brigadas de aseo. | E57: X | F57: COORDINADO | L57: Realización de brigadas de aseo. | O57: X | P57: COORDINADO | Q57: 0 | U57: Realización de brigadas de aseo. | X57: X | Y57: COORDINADO | Z57: 0 | AD57: Realización de brigadas de aseo. | AG57: X | AH57: COORDINADO | AI57: 0
B58: Limpieza de los elementos, equipos y utensilios empleados para el servicio de aseo. | E58: X | F58: COORDINADO | L58: Limpieza de los elementos, equipos y utensilios empleados para el servicio de aseo. | O58: X | P58: COORDINADO | Q58: 0 | U58: Limpieza de los elementos, equipos y utensilios empleados para el servicio de aseo. | X58: X | Y58: COORDINADO | Z58: 0 | AD58: Limpieza de los elementos, equipos y utensilios empleados para el servicio de aseo. | AG58: X | AH58: COORDINADO | AI58: 0
A59: Oficinas | B59: Limpieza de oficinas, divisiones, escritorios, mesas, libros, cuadros, objetos decorativos, sillas, estanterías, repisas, archivadores y cajoneras. | E59: X | F59: COORDINADO | K59: Oficinas | L59: Limpieza de oficinas, divisiones, escritorios, mesas, libros, cuadros, objetos decorativos, sillas, estanterías, repisas, archivadores y cajoneras. | O59: X | P59: COORDINADO | Q59: 0 | T59: Oficinas | U59: Limpieza de oficinas, divisiones, escritorios, mesas, libros, cuadros, objetos decorativos, sillas, estanterías, repisas, archivadores y cajoneras. | X59: X | Y59: COORDINADO | Z59: 0 | AC59: Oficinas | AD59: Limpieza de oficinas, divisiones, escritorios, mesas, libros, cuadros, objetos decorativos, sillas, estanterías, repisas, archivadores y cajoneras. | AG59: X | AH59: COORDINADO | AI59: 0
B60: Limpieza exterior de computadores, teléfonos, impresoras, fotocopiadoras, consolas, fax, y demás equipos para uso administrativo con sus componentes que tenga la Entidad Compradora. | E60: X | F60: COORDINADO | L60: Limpieza exterior de computadores, teléfonos, impresoras, fotocopiadoras, consolas, fax, y demás equipos para uso administrativo con sus componentes que tenga la Entidad Compradora. | O60: X | P60: COORDINADO | Q60: 0 | U60: Limpieza exterior de computadores, teléfonos, impresoras, fotocopiadoras, consolas, fax, y demás equipos para uso administrativo con sus componentes que tenga la Entidad Compradora. | X60: X | Y60: COORDINADO | Z60: 0 | AD60: Limpieza exterior de computadores, teléfonos, impresoras, fotocopiadoras, consolas, fax, y demás equipos para uso administrativo con sus componentes que tenga la Entidad Compradora. | AG60: X | AH60: COORDINADO | AI60: 0
A61: Pisos y tapizados | B61: Decapado, limpieza, brillo, sellado y mantenimiento del brillo de pisos, escaleras y estantes. | E61: X | F61: COORDINADO | K61: Pisos y tapizados | L61: Decapado, limpieza, brillo, sellado y mantenimiento del brillo de pisos, escaleras y estantes. | O61: X | P61: COORDINADO | Q61: 0 | T61: Pisos y tapizados | U61: Decapado, limpieza, brillo, sellado y mantenimiento del brillo de pisos, escaleras y estantes. | X61: X | Y61: COORDINADO | Z61: 0 | AC61: Pisos y tapizados | AD61: Decapado, limpieza, brillo, sellado y mantenimiento del brillo de pisos, escaleras y estantes. | AG61: X | AH61: COORDINADO | AI61: 0
B62: Limpieza, lavado, aspirado y desmanchado de alfombras, tapetes y tapizados. No incluye despegue de los tapetes o alfombras para lavado especializado. | E62: X | F62: COORDINADO | L62: Limpieza, lavado, aspirado y desmanchado de alfombras, tapetes y tapizados. No incluye despegue de los tapetes o alfombras para lavado especializado. | O62: X | P62: COORDINADO | Q62: 0 | U62: Limpieza, lavado, aspirado y desmanchado de alfombras, tapetes y tapizados. No incluye despegue de los tapetes o alfombras para lavado especializado. | X62: X | Y62: COORDINADO | Z62: 0 | AD62: Limpieza, lavado, aspirado y desmanchado de alfombras, tapetes y tapizados. No incluye despegue de los tapetes o alfombras para lavado especializado. | AG62: X | AH62: COORDINADO | AI62: 0
A63: Baños | B63: Limpieza y desinfección de sanitarios, orinales lavamanos, duchas, griferías, dispensadores, secadores, accesorios, espejos, paredes, puertas y divisiones, pisos y papeleras. Aplicación de ambientadores y productos para el control del mal olor. | E63: X | F63: COORDINADO | K63: Baños | L63: Limpieza y desinfección de sanitarios, orinales lavamanos, duchas, griferías, dispensadores, secadores, accesorios, espejos, paredes, puertas y divisiones, pisos y papeleras. Aplicación de ambientadores y productos para el control del mal olor. | O63: X | P63: COORDINADO | Q63: 0 | T63: Baños | U63: Limpieza y desinfección de sanitarios, orinales lavamanos, duchas, griferías, dispensadores, secadores, accesorios, espejos, paredes, puertas y divisiones, pisos y papeleras. Aplicación de ambientadores y productos para el control del mal olor. | X63: X | Y63: COORDINADO | Z63: 0 | AC63: Baños | AD63: Limpieza y desinfección de sanitarios, orinales lavamanos, duchas, griferías, dispensadores, secadores, accesorios, espejos, paredes, puertas y divisiones, pisos y papeleras. Aplicación de ambientadores y productos para el control del mal olor. | AG63: X | AH63: COORDINADO | AI63: 0
B64: Desatasco de sanitarios, orinales, duchas, sifones y lavamanos. | E64: X | F64: COORDINADO | L64: Desatasco de sanitarios, orinales, duchas, sifones y lavamanos. | O64: X | P64: COORDINADO | Q64: 0 | U64: Desatasco de sanitarios, orinales, duchas, sifones y lavamanos. | X64: X | Y64: COORDINADO | Z64: 0 | AD64: Desatasco de sanitarios, orinales, duchas, sifones y lavamanos. | AG64: X | AH64: COORDINADO | AI64: 0
B65: Abastecimiento de los baños de papel higiénico, toallas de papel, bolsas de basura, jabón de manos y otros elementos requeridos para su uso. | E65: X | F65: COORDINADO | L65: Abastecimiento de los baños de papel higiénico, toallas de papel, bolsas de basura, jabón de manos y otros elementos requeridos para su uso. | O65: X | P65: COORDINADO | Q65: 0 | U65: Abastecimiento de los baños de papel higiénico, toallas de papel, bolsas de basura, jabón de manos y otros elementos requeridos para su uso. | X65: X | Y65: COORDINADO | Z65: 0 | AD65: Abastecimiento de los baños de papel higiénico, toallas de papel, bolsas de basura, jabón de manos y otros elementos requeridos para su uso. | AG65: X | AH65: COORDINADO | AI65: 0
A66: Zonas exteriores | B66: Limpieza de patios, aceras, entradas, jardines, antejardines, zonas verdes y zonas exteriores aledañas a las instalaciones de la Entidad Compradora. | E66: X | F66: COORDINADO | K66: Zonas exteriores | L66: Limpieza de patios, aceras, entradas, jardines, antejardines, zonas verdes y zonas exteriores aledañas a las instalaciones de la Entidad Compradora. | O66: X | P66: COORDINADO | Q66: 0 | T66: Zonas exteriores | U66: Limpieza de patios, aceras, entradas, jardines, antejardines, zonas verdes y zonas exteriores aledañas a las instalaciones de la Entidad Compradora. | X66: X | Y66: COORDINADO | Z66: 0 | AC66: Zonas exteriores | AD66: Limpieza de patios, aceras, entradas, jardines, antejardines, zonas verdes y zonas exteriores aledañas a las instalaciones de la Entidad Compradora. | AG66: X | AH66: COORDINADO | AI66: 0
B67: Recolección de hojas y limpieza de canalizaciones en caso de obstrucción. | E67: X | F67: COORDINADO | L67: Recolección de hojas y limpieza de canalizaciones en caso de obstrucción. | O67: X | P67: COORDINADO | Q67: 0 | U67: Recolección de hojas y limpieza de canalizaciones en caso de obstrucción. | X67: X | Y67: COORDINADO | Z67: 0 | AD67: Recolección de hojas y limpieza de canalizaciones en caso de obstrucción. | AG67: X | AH67: COORDINADO | AI67: 0
B68: Limpieza y vaciado de contenedores, canecas y ceniceros exteriores. | E68: X | F68: COORDINADO | L68: Limpieza y vaciado de contenedores, canecas y ceniceros exteriores. | O68: X | P68: COORDINADO | Q68: 0 | U68: Limpieza y vaciado de contenedores, canecas y ceniceros exteriores. | X68: X | Y68: COORDINADO | Z68: 0 | AD68: Limpieza y vaciado de contenedores, canecas y ceniceros exteriores. | AG68: X | AH68: COORDINADO | AI68: 0
A69: Buenas prácticas de aseo | B69: Clasificación y envase de materiales y basuras y puesta a disposición de estos en los lugares de las instalaciones físicas de la Entidad Compradora indicados para su recolección y posterior reciclaje. | E69: X | F69: COORDINADO | K69: Buenas prácticas de aseo | L69: Clasificación y envase de materiales y basuras y puesta a disposición de estos en los lugares de las instalaciones físicas de la Entidad Compradora indicados para su recolección y posterior reciclaje. | O69: X | P69: COORDINADO | Q69: 0 | T69: Buenas prácticas de aseo | U69: Clasificación y envase de materiales y basuras y puesta a disposición de estos en los lugares de las instalaciones físicas de la Entidad Compradora indicados para su recolección y posterior reciclaje. | X69: X | Y69: COORDINADO | Z69: 0 | AC69: Buenas prácticas de aseo | AD69: Clasificación y envase de materiales y basuras y puesta a disposición de estos en los lugares de las instalaciones físicas de la Entidad Compradora indicados para su recolección y posterior reciclaje. | AG69: X | AH69: COORDINADO | AI69: 0
B70: Utilización de las señales de seguridad peatonal o equipos de seguridad industrial para evitar accidentes, de acuerdo a las instrucciones de la Entidad Compradora. | E70: X | F70: COORDINADO | L70: Utilización de las señales de seguridad peatonal o equipos de seguridad industrial para evitar accidentes, de acuerdo a las instrucciones de la Entidad Compradora. | O70: X | P70: COORDINADO | Q70: 0 | U70: Utilización de las señales de seguridad peatonal o equipos de seguridad industrial para evitar accidentes, de acuerdo a las instrucciones de la Entidad Compradora. | X70: X | Y70: COORDINADO | Z70: 0 | AD70: Utilización de las señales de seguridad peatonal o equipos de seguridad industrial para evitar accidentes, de acuerdo a las instrucciones de la Entidad Compradora. | AG70: X | AH70: COORDINADO | AI70: 0
A72: Actividades de servicio de cafetería | E72: Marque con una X | F72: Frecuencia | G72: Observaciones | K72: Actividades de servicio de cafetería | O72: Marque con una X | P72: Frecuencia | Q72: Observaciones | T72: Actividades de servicio de cafetería | X72: Marque con una X | Y72: Frecuencia | Z72: Observaciones | AC72: Actividades de servicio de cafetería | AG72: Marque con una X | AH72: Frecuencia | AI72: Observaciones
A73: Servicio de bebidas y atención de eventos | B73: Preparación de bebidas calientes y frías según las especificaciones de la Entidad Compradora | E73: X | F73: COORDINADO | K73: Servicio de bebidas y atención de eventos | L73: Preparación de bebidas calientes y frías según las especificaciones de la Entidad Compradora | O73: =E73 -> X | P73: =F73 -> COORDINADO | Q73: =G73 -> 0 | T73: Servicio de bebidas y atención de eventos | U73: Preparación de bebidas calientes y frías según las especificaciones de la Entidad Compradora | X73: =E73 -> X | Y73: =F73 -> COORDINADO | Z73: =G73 -> 0 | AC73: Servicio de bebidas y atención de eventos | AD73: Preparación de bebidas calientes y frías según las especificaciones de la Entidad Compradora | AG73: =E73 -> X | AH73: =F73 -> COORDINADO | AI73: =G73 -> 0
B74: Ofrecimiento de bebidas calientes y frías en los horarios indicados por la Entidad Compradora. Realización de recorridos periódicos para recoger los elementos utilizados para el consumo de productos. | E74: X | F74: COORDINADO | L74: Ofrecimiento de bebidas calientes y frías en los horarios indicados por la Entidad Compradora. Realización de recorridos periódicos para recoger los elementos utilizados para el consumo de productos. | O74: =E74 -> X | P74: =F74 -> COORDINADO | Q74: =G74 -> 0 | U74: Ofrecimiento de bebidas calientes y frías en los horarios indicados por la Entidad Compradora. Realización de recorridos periódicos para recoger los elementos utilizados para el consumo de productos. | X74: =E74 -> X | Y74: =F74 -> COORDINADO | Z74: =G74 -> 0 | AD74: Ofrecimiento de bebidas calientes y frías en los horarios indicados por la Entidad Compradora. Realización de recorridos periódicos para recoger los elementos utilizados para el consumo de productos. | AG74: =E74 -> X | AH74: =F74 -> COORDINADO | AI74: =G74 -> 0
B75: Preparación de termos con café, té, aromática y agua fría y caliente en el lugar y horarios que indique la Entidad Compradora. Lo anterior con la respectiva dotación de té, aromática, azúcar, mezcladores, servilletas, vasos y crema. | E75: X | F75: COORDINADO | L75: Preparación de termos con café, té, aromática y agua fría y caliente en el lugar y horarios que indique la Entidad Compradora. Lo anterior con la respectiva dotación de té, aromática, azúcar, mezcladores, servilletas, vasos y crema. | O75: X | P75: COORDINADO | Q75: 0 | U75: Preparación de termos con café, té, aromática y agua fría y caliente en el lugar y horarios que indique la Entidad Compradora. Lo anterior con la respectiva dotación de té, aromática, azúcar, mezcladores, servilletas, vasos y crema. | X75: X | Y75: COORDINADO | Z75: 0 | AD75: Preparación de termos con café, té, aromática y agua fría y caliente en el lugar y horarios que indique la Entidad Compradora. Lo anterior con la respectiva dotación de té, aromática, azúcar, mezcladores, servilletas, vasos y crema. | AG75: X | AH75: COORDINADO | AI75: 0
B76: Atención a reuniones de trabajo o eventos especiales de la Entidad Compradora. | E76: X | F76: COORDINADO | L76: Atención a reuniones de trabajo o eventos especiales de la Entidad Compradora. | O76: X | P76: COORDINADO | Q76: 0 | U76: Atención a reuniones de trabajo o eventos especiales de la Entidad Compradora. | X76: X | Y76: COORDINADO | Z76: 0 | AD76: Atención a reuniones de trabajo o eventos especiales de la Entidad Compradora. | AG76: X | AH76: COORDINADO | AI76: 0
A77: Limpieza y cuidado | B77: Limpieza y desinfección del área de cafetería y del menaje, elementos y equipos empleados para la prestación del servicio, entre ellos, microondas, neveras, grecas, dispensadores, estufas, así como las instalaciones físicas de las cafeterías. | E77: X | F77: COORDINADO | K77: Limpieza y cuidado | L77: Limpieza y desinfección del área de cafetería y del menaje, elementos y equipos empleados para la prestación del servicio, entre ellos, microondas, neveras, grecas, dispensadores, estufas, así como las instalaciones físicas de las cafeterías. | O77: X | P77: COORDINADO | Q77: 0 | T77: Limpieza y cuidado | U77: Limpieza y desinfección del área de cafetería y del menaje, elementos y equipos empleados para la prestación del servicio, entre ellos, microondas, neveras, grecas, dispensadores, estufas, así como las instalaciones físicas de las cafeterías. | X77: X | Y77: COORDINADO | Z77: 0 | AC77: Limpieza y cuidado | AD77: Limpieza y desinfección del área de cafetería y del menaje, elementos y equipos empleados para la prestación del servicio, entre ellos, microondas, neveras, grecas, dispensadores, estufas, así como las instalaciones físicas de las cafeterías. | AG77: X | AH77: COORDINADO | AI77: 0
B78: Abastecimiento del área de cafetería de los insumos requeridos para la prestación del servicio de cafetería. | E78: X | F78: COORDINADO | L78: Abastecimiento del área de cafetería de los insumos requeridos para la prestación del servicio de cafetería. | O78: X | P78: COORDINADO | Q78: 0 | U78: Abastecimiento del área de cafetería de los insumos requeridos para la prestación del servicio de cafetería. | X78: X | Y78: COORDINADO | Z78: 0 | AD78: Abastecimiento del área de cafetería de los insumos requeridos para la prestación del servicio de cafetería. | AG78: X | AH78: COORDINADO | AI78: 0
B79: Realización del inventario y cuidado del menaje, elementos y equipos empleados en la prestación del servicio. Cuidado de las instalaciones físicas de las cafeterías dispuestas para la prestación del servicio. | E79: X | F79: COORDINADO | L79: Realización del inventario y cuidado del menaje, elementos y equipos empleados en la prestación del servicio. Cuidado de las instalaciones físicas de las cafeterías dispuestas para la prestación del servicio. | O79: X | P79: COORDINADO | Q79: 0 | U79: Realización del inventario y cuidado del menaje, elementos y equipos empleados en la prestación del servicio. Cuidado de las instalaciones físicas de las cafeterías dispuestas para la prestación del servicio. | X79: X | Y79: COORDINADO | Z79: 0 | AD79: Realización del inventario y cuidado del menaje, elementos y equipos empleados en la prestación del servicio. Cuidado de las instalaciones físicas de las cafeterías dispuestas para la prestación del servicio. | AG79: X | AH79: COORDINADO | AI79: 0
A81: Actividades de mantenimiento locativo básico | E81: Marque con una X | F81: Frecuencia | G81: Observaciones | K81: Actividades de mantenimiento locativo básico | O81: Marque con una X | P81: Frecuencia | Q81: Observaciones | T81: Actividades de mantenimiento locativo básico | X81: Marque con una X | Y81: Frecuencia | Z81: Observaciones | AC81: Actividades de mantenimiento locativo básico | AG81: Marque con una X | AH81: Frecuencia | AI81: Observaciones
A82: Mantenimiento preventivo | K82: Mantenimiento preventivo | T82: Mantenimiento preventivo | AC82: Mantenimiento preventivo
A83: Plomería | B83: Inspección de tuberías, sanitarios, orinales, lavaplatos, duchas, sifones, canalizaciones, cunetas, cañerías, piletas y fuentes para verificar su buen funcionamiento. Aviso al supervisor del contrato sobre cualquier falla o anomalía. | K83: Plomería | L83: Inspección de tuberías, sanitarios, orinales, lavaplatos, duchas, sifones, canalizaciones, cunetas, cañerías, piletas y fuentes para verificar su buen funcionamiento. Aviso al supervisor del contrato sobre cualquier falla o anomalía. | O83: =E83 -> 0 | P83: =F83 -> 0 | Q83: =G83 -> 0 | T83: Plomería | U83: Inspección de tuberías, sanitarios, orinales, lavaplatos, duchas, sifones, canalizaciones, cunetas, cañerías, piletas y fuentes para verificar su buen funcionamiento. Aviso al supervisor del contrato sobre cualquier falla o anomalía. | X83: =E83 -> 0 | Y83: =F83 -> 0 | Z83: =G83 -> 0 | AC83: Plomería | AD83: Inspección de tuberías, sanitarios, orinales, lavaplatos, duchas, sifones, canalizaciones, cunetas, cañerías, piletas y fuentes para verificar su buen funcionamiento. Aviso al supervisor del contrato sobre cualquier falla o anomalía. | AG83: =E83 -> 0 | AH83: =F83 -> 0 | AI83: =G83 -> 0
A84: Mantenimiento eléctrico | B84: Limpieza de luminarias, lámparas, reflectores, balastos, transformadores (externa), fusibles, tubos de descarga, cebadores (starter), casquillos, bombillos, interruptores automáticos (breakers), tomas de corriente, extensiones y cableado eléctrico. | K84: Mantenimiento eléctrico | L84: Limpieza de luminarias, lámparas, reflectores, balastos, transformadores (externa), fusibles, tubos de descarga, cebadores (starter), casquillos, bombillos, interruptores automáticos (breakers), tomas de corriente, extensiones y cableado eléctrico. | O84: =E84 -> 0 | P84: =F84 -> 0 | Q84: =G84 -> 0 | T84: Mantenimiento eléctrico | U84: Limpieza de luminarias, lámparas, reflectores, balastos, transformadores (externa), fusibles, tubos de descarga, cebadores (starter), casquillos, bombillos, interruptores automáticos (breakers), tomas de corriente, extensiones y cableado eléctrico. | X84: =E84 -> 0 | Y84: =F84 -> 0 | Z84: =G84 -> 0 | AC84: Mantenimiento eléctrico | AD84: Limpieza de luminarias, lámparas, reflectores, balastos, transformadores (externa), fusibles, tubos de descarga, cebadores (starter), casquillos, bombillos, interruptores automáticos (breakers), tomas de corriente, extensiones y cableado eléctrico. | AG84: =E84 -> 0 | AH84: =F84 -> 0 | AI84: =G84 -> 0
B85: Revisión externa de transformadores, cableado e instalaciones eléctricas. Aviso al supervisor del contrato sobre cualquier falla o anomalía. | L85: Revisión externa de transformadores, cableado e instalaciones eléctricas. Aviso al supervisor del contrato sobre cualquier falla o anomalía. | O85: 0 | P85: 0 | Q85: 0 | U85: Revisión externa de transformadores, cableado e instalaciones eléctricas. Aviso al supervisor del contrato sobre cualquier falla o anomalía. | X85: 0 | Y85: 0 | Z85: 0 | AD85: Revisión externa de transformadores, cableado e instalaciones eléctricas. Aviso al supervisor del contrato sobre cualquier falla o anomalía. | AG85: 0 | AH85: 0 | AI85: 0
A86: Reparaciones locativas menores. | B86: Inspección de cortinas, cortinas tipo blackout, persianas, tapetes, marcos, puertas, casilleros, vidrios, ventanas, estanterías, repisas, mesas, muebles de oficina, cerraduras, chapas, bisagras, manijas y fallebas para verificar su buen funcionamiento. Aviso al supervisor del contrato sobre cualquier falla o anomalía. | K86: Reparaciones locativas menores. | L86: Inspección de cortinas, cortinas tipo blackout, persianas, tapetes, marcos, puertas, casilleros, vidrios, ventanas, estanterías, repisas, mesas, muebles de oficina, cerraduras, chapas, bisagras, manijas y fallebas para verificar su buen funcionamiento. Aviso al supervisor del contrato sobre cualquier falla o anomalía. | O86: 0 | P86: 0 | Q86: 0 | T86: Reparaciones locativas menores. | U86: Inspección de cortinas, cortinas tipo blackout, persianas, tapetes, marcos, puertas, casilleros, vidrios, ventanas, estanterías, repisas, mesas, muebles de oficina, cerraduras, chapas, bisagras, manijas y fallebas para verificar su buen funcionamiento. Aviso al supervisor del contrato sobre cualquier falla o anomalía. | X86: 0 | Y86: 0 | Z86: 0 | AC86: Reparaciones locativas menores. | AD86: Inspección de cortinas, cortinas tipo blackout, persianas, tapetes, marcos, puertas, casilleros, vidrios, ventanas, estanterías, repisas, mesas, muebles de oficina, cerraduras, chapas, bisagras, manijas y fallebas para verificar su buen funcionamiento. Aviso al supervisor del contrato sobre cualquier falla o anomalía. | AG86: 0 | AH86: 0 | AI86: 0
A87: Mantenimiento de elementos y equipos | B87: Inspección de secadores de manos y dispensadores de jabón, líquido antibacterial, papel higiénico, toallas de papel, ambientador y desodorizador de sanitarios para verificar su buen funcionamiento. Aviso al supervisor del contrato sobre cualquier falla o anomalía. | K87: Mantenimiento de elementos y equipos | L87: Inspección de secadores de manos y dispensadores de jabón, líquido antibacterial, papel higiénico, toallas de papel, ambientador y desodorizador de sanitarios para verificar su buen funcionamiento. Aviso al supervisor del contrato sobre cualquier falla o anomalía. | O87: 0 | P87: 0 | Q87: 0 | T87: Mantenimiento de elementos y equipos | U87: Inspección de secadores de manos y dispensadores de jabón, líquido antibacterial, papel higiénico, toallas de papel, ambientador y desodorizador de sanitarios para verificar su buen funcionamiento. Aviso al supervisor del contrato sobre cualquier falla o anomalía. | X87: 0 | Y87: 0 | Z87: 0 | AC87: Mantenimiento de elementos y equipos | AD87: Inspección de secadores de manos y dispensadores de jabón, líquido antibacterial, papel higiénico, toallas de papel, ambientador y desodorizador de sanitarios para verificar su buen funcionamiento. Aviso al supervisor del contrato sobre cualquier falla o anomalía. | AG87: 0 | AH87: 0 | AI87: 0
B88: Inspección de estufas, grecas y purificadores de agua para verificar su buen funcionamiento. Aviso al supervisor del contrato sobre cualquier falla o anomalía. | L88: Inspección de estufas, grecas y purificadores de agua para verificar su buen funcionamiento. Aviso al supervisor del contrato sobre cualquier falla o anomalía. | O88: 0 | P88: 0 | Q88: 0 | U88: Inspección de estufas, grecas y purificadores de agua para verificar su buen funcionamiento. Aviso al supervisor del contrato sobre cualquier falla o anomalía. | X88: 0 | Y88: 0 | Z88: 0 | AD88: Inspección de estufas, grecas y purificadores de agua para verificar su buen funcionamiento. Aviso al supervisor del contrato sobre cualquier falla o anomalía. | AG88: 0 | AH88: 0 | AI88: 0
B89: Limpieza interna y extena de los elementos y equipos anteriores. Lubricación de sus partes mecánicas, cambio de filtros, escobillas y resistencias cuando sea necesario y revisión de las conexiones eléctricas. | L89: Limpieza interna y extena de los elementos y equipos anteriores. Lubricación de sus partes mecánicas, cambio de filtros, escobillas y resistencias cuando sea necesario y revisión de las conexiones eléctricas. | O89: 0 | P89: 0 | Q89: 0 | U89: Limpieza interna y extena de los elementos y equipos anteriores. Lubricación de sus partes mecánicas, cambio de filtros, escobillas y resistencias cuando sea necesario y revisión de las conexiones eléctricas. | X89: 0 | Y89: 0 | Z89: 0 | AD89: Limpieza interna y extena de los elementos y equipos anteriores. Lubricación de sus partes mecánicas, cambio de filtros, escobillas y resistencias cuando sea necesario y revisión de las conexiones eléctricas. | AG89: 0 | AH89: 0 | AI89: 0
A90: Limpieza en lugares de difícil acceso | B90: Inspección y limpieza de ventanas, persianas, cortinas, cortinas tipo balckout, acrílicos, techos, rejillas, canales de ventilación y otros lugares de difícil acceso. Aviso al supervisor del contrato sobre cualquier falla o anomalía. | K90: Limpieza en lugares de difícil acceso | L90: Inspección y limpieza de ventanas, persianas, cortinas, cortinas tipo balckout, acrílicos, techos, rejillas, canales de ventilación y otros lugares de difícil acceso. Aviso al supervisor del contrato sobre cualquier falla o anomalía. | O90: 0 | P90: 0 | Q90: 0 | T90: Limpieza en lugares de difícil acceso | U90: Inspección y limpieza de ventanas, persianas, cortinas, cortinas tipo balckout, acrílicos, techos, rejillas, canales de ventilación y otros lugares de difícil acceso. Aviso al supervisor del contrato sobre cualquier falla o anomalía. | X90: 0 | Y90: 0 | Z90: 0 | AC90: Limpieza en lugares de difícil acceso | AD90: Inspección y limpieza de ventanas, persianas, cortinas, cortinas tipo balckout, acrílicos, techos, rejillas, canales de ventilación y otros lugares de difícil acceso. Aviso al supervisor del contrato sobre cualquier falla o anomalía. | AG90: 0 | AH90: 0 | AI90: 0
B91: Limpieza de la fachada de la Entidad Compradora siempre que el operario no implique trabajo en alturas. | L91: Limpieza de la fachada de la Entidad Compradora siempre que el operario no implique trabajo en alturas. | O91: 0 | P91: 0 | Q91: 0 | U91: Limpieza de la fachada de la Entidad Compradora siempre que el operario no implique trabajo en alturas. | X91: 0 | Y91: 0 | Z91: 0 | AD91: Limpieza de la fachada de la Entidad Compradora siempre que el operario no implique trabajo en alturas. | AG91: 0 | AH91: 0 | AI91: 0
A92: General | B92: Apoyo en las brigadas de mantenimiento que programe la Entidad Compradora. Las actividades ejecutadas por los operarios auxiliar y de mantenimiento deben incluir únicamente las establecidas en este Anexo. | K92: General | L92: Apoyo en las brigadas de mantenimiento que programe la Entidad Compradora. Las actividades ejecutadas por los operarios auxiliar y de mantenimiento deben incluir únicamente las establecidas en este Anexo. | O92: 0 | P92: 0 | Q92: 0 | T92: General | U92: Apoyo en las brigadas de mantenimiento que programe la Entidad Compradora. Las actividades ejecutadas por los operarios auxiliar y de mantenimiento deben incluir únicamente las establecidas en este Anexo. | X92: 0 | Y92: 0 | Z92: 0 | AC92: General | AD92: Apoyo en las brigadas de mantenimiento que programe la Entidad Compradora. Las actividades ejecutadas por los operarios auxiliar y de mantenimiento deben incluir únicamente las establecidas en este Anexo. | AG92: 0 | AH92: 0 | AI92: 0
A94: Mantenimiento correctivo | K94: Mantenimiento correctivo | T94: Mantenimiento correctivo | AC94: Mantenimiento correctivo
A95: Plomería | B95: Reparación de fugas menores en tuberías, sanitarios, orinales, lavamanos, lavaplatos, duchas, piletas y fuentes. | K95: Plomería | L95: Reparación de fugas menores en tuberías, sanitarios, orinales, lavamanos, lavaplatos, duchas, piletas y fuentes. | O95: =E95 -> 0 | P95: =F95 -> 0 | Q95: =G95 -> 0 | T95: Plomería | U95: Reparación de fugas menores en tuberías, sanitarios, orinales, lavamanos, lavaplatos, duchas, piletas y fuentes. | X95: =E95 -> 0 | Y95: =F95 -> 0 | Z95: =G95 -> 0 | AC95: Plomería | AD95: Reparación de fugas menores en tuberías, sanitarios, orinales, lavamanos, lavaplatos, duchas, piletas y fuentes. | AG95: =E95 -> 0 | AH95: =F95 -> 0 | AI95: =G95 -> 0
B96: Reemplazo de piezas dañadas de tuberías, sanitarios, orinales, lavamanos, lavaplatos y duchas. | L96: Reemplazo de piezas dañadas de tuberías, sanitarios, orinales, lavamanos, lavaplatos y duchas. | O96: =E96 -> 0 | P96: =F96 -> 0 | Q96: =G96 -> 0 | U96: Reemplazo de piezas dañadas de tuberías, sanitarios, orinales, lavamanos, lavaplatos y duchas. | X96: =E96 -> 0 | Y96: =F96 -> 0 | Z96: =G96 -> 0 | AD96: Reemplazo de piezas dañadas de tuberías, sanitarios, orinales, lavamanos, lavaplatos y duchas. | AG96: =E96 -> 0 | AH96: =F96 -> 0 | AI96: =G96 -> 0
B97: Reparación de taponamientos en tuberías, sanitarios, orinales, lavaplatos, duchas, sifones, canalizaciones, cunetas, cañerías, piletas y fuentes. | L97: Reparación de taponamientos en tuberías, sanitarios, orinales, lavaplatos, duchas, sifones, canalizaciones, cunetas, cañerías, piletas y fuentes. | O97: 0 | P97: 0 | Q97: 0 | U97: Reparación de taponamientos en tuberías, sanitarios, orinales, lavaplatos, duchas, sifones, canalizaciones, cunetas, cañerías, piletas y fuentes. | X97: 0 | Y97: 0 | Z97: 0 | AD97: Reparación de taponamientos en tuberías, sanitarios, orinales, lavaplatos, duchas, sifones, canalizaciones, cunetas, cañerías, piletas y fuentes. | AG97: 0 | AH97: 0 | AI97: 0
A98: Mantenimiento eléctrico | B98: Instalación, reparación, reemplazo y limpieza de luminarias, lámparas, reflectores, balastos, tubos de descarga, cebadores (starter), casquillos, bombillos, interruptores automáticos (breakers), tomas de corriente y fusibles. Reemplazo de insumos y repuestos requeridos para todo lo anterior. | K98: Mantenimiento eléctrico | L98: Instalación, reparación, reemplazo y limpieza de luminarias, lámparas, reflectores, balastos, tubos de descarga, cebadores (starter), casquillos, bombillos, interruptores automáticos (breakers), tomas de corriente y fusibles. Reemplazo de insumos y repuestos requeridos para todo lo anterior. | O98: 0 | P98: 0 | Q98: 0 | T98: Mantenimiento eléctrico | U98: Instalación, reparación, reemplazo y limpieza de luminarias, lámparas, reflectores, balastos, tubos de descarga, cebadores (starter), casquillos, bombillos, interruptores automáticos (breakers), tomas de corriente y fusibles. Reemplazo de insumos y repuestos requeridos para todo lo anterior. | X98: 0 | Y98: 0 | Z98: 0 | AC98: Mantenimiento eléctrico | AD98: Instalación, reparación, reemplazo y limpieza de luminarias, lámparas, reflectores, balastos, tubos de descarga, cebadores (starter), casquillos, bombillos, interruptores automáticos (breakers), tomas de corriente y fusibles. Reemplazo de insumos y repuestos requeridos para todo lo anterior. | AG98: 0 | AH98: 0 | AI98: 0
B99: Reparación de cortos menores. | L99: Reparación de cortos menores. | O99: 0 | P99: 0 | Q99: 0 | U99: Reparación de cortos menores. | X99: 0 | Y99: 0 | Z99: 0 | AD99: Reparación de cortos menores. | AG99: 0 | AH99: 0 | AI99: 0
B100: Instalación y traslado de salidas eléctricas. | L100: Instalación y traslado de salidas eléctricas. | O100: 0 | P100: 0 | Q100: 0 | U100: Instalación y traslado de salidas eléctricas. | X100: 0 | Y100: 0 | Z100: 0 | AD100: Instalación y traslado de salidas eléctricas. | AG100: 0 | AH100: 0 | AI100: 0
B101: Reparación de la señal de televisión por daños menores. | L101: Reparación de la señal de televisión por daños menores. | O101: 0 | P101: 0 | Q101: 0 | U101: Reparación de la señal de televisión por daños menores. | X101: 0 | Y101: 0 | Z101: 0 | AD101: Reparación de la señal de televisión por daños menores. | AG101: 0 | AH101: 0 | AI101: 0
A102: Reparaciones locativas menores | B102: Reparaciones menores de resane, enchape y pintura de parades, pisos y techos interiores de las instalaciones. | K102: Reparaciones locativas menores | L102: Reparaciones menores de resane, enchape y pintura de parades, pisos y techos interiores de las instalaciones. | O102: 0 | P102: 0 | Q102: 0 | T102: Reparaciones locativas menores | U102: Reparaciones menores de resane, enchape y pintura de parades, pisos y techos interiores de las instalaciones. | X102: 0 | Y102: 0 | Z102: 0 | AC102: Reparaciones locativas menores | AD102: Reparaciones menores de resane, enchape y pintura de parades, pisos y techos interiores de las instalaciones. | AG102: 0 | AH102: 0 | AI102: 0
B103: Ajuste y desmonte de marcos, puertas, vidrios y ventanas. | L103: Ajuste y desmonte de marcos, puertas, vidrios y ventanas. | O103: 0 | P103: 0 | Q103: 0 | U103: Ajuste y desmonte de marcos, puertas, vidrios y ventanas. | X103: 0 | Y103: 0 | Z103: 0 | AD103: Ajuste y desmonte de marcos, puertas, vidrios y ventanas. | AG103: 0 | AH103: 0 | AI103: 0
B104: Instalación o reparaciones de persianas, cortinas, cortinas tipo blackout y tapetes. | L104: Instalación o reparaciones de persianas, cortinas, cortinas tipo blackout y tapetes. | O104: 0 | P104: 0 | Q104: 0 | U104: Instalación o reparaciones de persianas, cortinas, cortinas tipo blackout y tapetes. | X104: 0 | Y104: 0 | Z104: 0 | AD104: Instalación o reparaciones de persianas, cortinas, cortinas tipo blackout y tapetes. | AG104: 0 | AH104: 0 | AI104: 0
B105: Instalación o reparaciones de repisas, estanterías, casilleros, sillas, mesas y otros muebles de oficina. | L105: Instalación o reparaciones de repisas, estanterías, casilleros, sillas, mesas y otros muebles de oficina. | O105: 0 | P105: 0 | Q105: 0 | U105: Instalación o reparaciones de repisas, estanterías, casilleros, sillas, mesas y otros muebles de oficina. | X105: 0 | Y105: 0 | Z105: 0 | AD105: Instalación o reparaciones de repisas, estanterías, casilleros, sillas, mesas y otros muebles de oficina. | AG105: 0 | AH105: 0 | AI105: 0
B106: Instalación o reparaciones de cerraduras, chapas, manijas, bisagras y fallebas de puertas, escritorios, archivadores, casilleros y similares. Cambio de todo tipo de guardas y cerraduras si es requerido. | L106: Instalación o reparaciones de cerraduras, chapas, manijas, bisagras y fallebas de puertas, escritorios, archivadores, casilleros y similares. Cambio de todo tipo de guardas y cerraduras si es requerido. | O106: 0 | P106: 0 | Q106: 0 | U106: Instalación o reparaciones de cerraduras, chapas, manijas, bisagras y fallebas de puertas, escritorios, archivadores, casilleros y similares. Cambio de todo tipo de guardas y cerraduras si es requerido. | X106: 0 | Y106: 0 | Z106: 0 | AD106: Instalación o reparaciones de cerraduras, chapas, manijas, bisagras y fallebas de puertas, escritorios, archivadores, casilleros y similares. Cambio de todo tipo de guardas y cerraduras si es requerido. | AG106: 0 | AH106: 0 | AI106: 0
A107: Mantenimiento de elementos y equipos | B107: Instalación o reemplazo de secadores de manos y dispensadores de jabón, líquido antibacterial, papel higiénico, toallas de papel, ambientador y desodorizador de sanitarios. Reemplazo de insumos y repuestos requeridos para todo lo anterior. | K107: Mantenimiento de elementos y equipos | L107: Instalación o reemplazo de secadores de manos y dispensadores de jabón, líquido antibacterial, papel higiénico, toallas de papel, ambientador y desodorizador de sanitarios. Reemplazo de insumos y repuestos requeridos para todo lo anterior. | O107: 0 | P107: 0 | Q107: 0 | T107: Mantenimiento de elementos y equipos | U107: Instalación o reemplazo de secadores de manos y dispensadores de jabón, líquido antibacterial, papel higiénico, toallas de papel, ambientador y desodorizador de sanitarios. Reemplazo de insumos y repuestos requeridos para todo lo anterior. | X107: 0 | Y107: 0 | Z107: 0 | AC107: Mantenimiento de elementos y equipos | AD107: Instalación o reemplazo de secadores de manos y dispensadores de jabón, líquido antibacterial, papel higiénico, toallas de papel, ambientador y desodorizador de sanitarios. Reemplazo de insumos y repuestos requeridos para todo lo anterior. | AG107: 0 | AH107: 0 | AI107: 0
B108: Instalación, reparación o reemplazo de grecas, estufas y purificadores de agua. Reemplazo de sus insumos y repuestos. | L108: Instalación, reparación o reemplazo de grecas, estufas y purificadores de agua. Reemplazo de sus insumos y repuestos. | O108: 0 | P108: 0 | Q108: 0 | U108: Instalación, reparación o reemplazo de grecas, estufas y purificadores de agua. Reemplazo de sus insumos y repuestos. | X108: 0 | Y108: 0 | Z108: 0 | AD108: Instalación, reparación o reemplazo de grecas, estufas y purificadores de agua. Reemplazo de sus insumos y repuestos. | AG108: 0 | AH108: 0 | AI108: 0
A109: Traslado de materiales y adecuación de espacios | B109: Traslado de muebles, instalación, reparación y adecuación de páneles y módulos de oficina (puestos de trabajo). | K109: Traslado de materiales y adecuación de espacios | L109: Traslado de muebles, instalación, reparación y adecuación de páneles y módulos de oficina (puestos de trabajo). | O109: 0 | P109: 0 | Q109: 0 | T109: Traslado de materiales y adecuación de espacios | U109: Traslado de muebles, instalación, reparación y adecuación de páneles y módulos de oficina (puestos de trabajo). | X109: 0 | Y109: 0 | Z109: 0 | AC109: Traslado de materiales y adecuación de espacios | AD109: Traslado de muebles, instalación, reparación y adecuación de páneles y módulos de oficina (puestos de trabajo). | AG109: 0 | AH109: 0 | AI109: 0
B110: Habilitar bodegas, lugares de archivo, salas de reunión, auditorios y salones comunes según lo requiera la Entidad Compradora. | L110: Habilitar bodegas, lugares de archivo, salas de reunión, auditorios y salones comunes según lo requiera la Entidad Compradora. | O110: 0 | P110: 0 | Q110: 0 | U110: Habilitar bodegas, lugares de archivo, salas de reunión, auditorios y salones comunes según lo requiera la Entidad Compradora. | X110: 0 | Y110: 0 | Z110: 0 | AD110: Habilitar bodegas, lugares de archivo, salas de reunión, auditorios y salones comunes según lo requiera la Entidad Compradora. | AG110: 0 | AH110: 0 | AI110: 0
A112: Describa los elementos, equipos y maquinaria que requiere la sede de la Entidad Compradora para las actividades de mantenimiento básico locativo, de acuerdo con lo establecido en el Acuerdo Marco de Precios | K112: Describa los elementos, equipos y maquinaria que requiere la sede de la Entidad Compradora para las actividades de mantenimiento básico locativo, de acuerdo con lo establecido en el Acuerdo Marco de Precios | T112: Describa los elementos, equipos y maquinaria que requiere la sede de la Entidad Compradora para las actividades de mantenimiento básico locativo, de acuerdo con lo establecido en el Acuerdo Marco de Precios | AC112: Describa los elementos, equipos y maquinaria que requiere la sede de la Entidad Compradora para las actividades de mantenimiento básico locativo, de acuerdo con lo establecido en el Acuerdo Marco de Precios
A119: Servicios Especiales | K119: Servicios Especiales | T119: Servicios Especiales | AC119: Servicios Especiales
A123: Fumigación | C123: Marque con una X | D123: M2 de área interior | E123: M2 de área exterior | F123: Detalles y observaciones | K123: Fumigación | M123: Marque con una X | N123: M2 de área interior | O123: M2 de área exterior | P123: Detalles y observaciones | T123: Fumigación | V123: Marque con una X | W123: M2 de área interior | X123: M2 de área exterior | Y123: Detalles y observaciones | AC123: Fumigación | AE123: Marque con una X | AF123: M2 de área interior | AG123: M2 de área exterior | AH123: Detalles y observaciones
A124: Roedores | K124: Roedores | M124: =C124 -> 0 | T124: Roedores | V124: =C124 -> 0 | AC124: Roedores | AE124: =C124 -> 0
A125: Insectos rastreros y voladores | K125: Insectos rastreros y voladores | M125: =C125 -> 0 | T125: Insectos rastreros y voladores | V125: =C125 -> 0 | AC125: Insectos rastreros y voladores | AE125: =C125 -> 0
A126: Desinfección ambiental | K126: Desinfección ambiental | M126: =C126 -> 0 | T126: Desinfección ambiental | V126: =C126 -> 0 | AC126: Desinfección ambiental | AE126: =C126 -> 0
A129: Jardinería | C129: Marque con una X | D129: Equipos o materiales | F129: Detalles y observaciones | K129: Jardinería | M129: Marque con una X | N129: Equipos o materiales | P129: Detalles y observaciones | T129: Jardinería | V129: Marque con una X | W129: Equipos o materiales | Y129: Detalles y observaciones | AC129: Jardinería | AE129: Marque con una X | AF129: Equipos o materiales | AH129: Detalles y observaciones
A130: Poda de prado, bordes, cercas vivas y plantas (no incluye trabajo en alturas). | K130: Poda de prado, bordes, cercas vivas y plantas (no incluye trabajo en alturas). | M130: =C130 -> 0 | T130: Poda de prado, bordes, cercas vivas y plantas (no incluye trabajo en alturas). | V130: =C130 -> 0 | AC130: Poda de prado, bordes, cercas vivas y plantas (no incluye trabajo en alturas). | AE130: =C130 -> 0
A131: Aplicación de fertilizantes de uso común (la tarifa debe incluir un estimado 500 gramos de fertilizante al año por metro cuadrado). | K131: Aplicación de fertilizantes de uso común (la tarifa debe incluir un estimado 500 gramos de fertilizante al año por metro cuadrado). | M131: 0 | T131: Aplicación de fertilizantes de uso común (la tarifa debe incluir un estimado 500 gramos de fertilizante al año por metro cuadrado). | V131: 0 | AC131: Aplicación de fertilizantes de uso común (la tarifa debe incluir un estimado 500 gramos de fertilizante al año por metro cuadrado). | AE131: 0
A132: Remoción de tierra para oxigenación. | K132: Remoción de tierra para oxigenación. | M132: 0 | T132: Remoción de tierra para oxigenación. | V132: 0 | AC132: Remoción de tierra para oxigenación. | AE132: 0
A133: Trasplante y reemplazo de plantas. (No incluye trasplante de árboles, ni arbustos con una altura superior a un metro, no incluye suministro de plantas) | K133: Trasplante y reemplazo de plantas. (No incluye trasplante de árboles, ni arbustos con una altura superior a un metro, no incluye suministro de plantas) | M133: 0 | T133: Trasplante y reemplazo de plantas. (No incluye trasplante de árboles, ni arbustos con una altura superior a un metro, no incluye suministro de plantas) | V133: 0 | AC133: Trasplante y reemplazo de plantas. (No incluye trasplante de árboles, ni arbustos con una altura superior a un metro, no incluye suministro de plantas) | AE133: 0
A134: Traslado, mantenimiento y limpieza de macetas, jardineras y soportes. Descarte de agua de los recipientes recibidores. | K134: Traslado, mantenimiento y limpieza de macetas, jardineras y soportes. Descarte de agua de los recipientes recibidores. | M134: 0 | T134: Traslado, mantenimiento y limpieza de macetas, jardineras y soportes. Descarte de agua de los recipientes recibidores. | V134: 0 | AC134: Traslado, mantenimiento y limpieza de macetas, jardineras y soportes. Descarte de agua de los recipientes recibidores. | AE134: 0
A135: Revisión de humedad y riego de plantas, prados y árboles. | K135: Revisión de humedad y riego de plantas, prados y árboles. | M135: 0 | T135: Revisión de humedad y riego de plantas, prados y árboles. | V135: 0 | AC135: Revisión de humedad y riego de plantas, prados y árboles. | AE135: 0
A136: Aplicación de plaguicidas y funguicidas de uso común. | K136: Aplicación de plaguicidas y funguicidas de uso común. | M136: 0 | T136: Aplicación de plaguicidas y funguicidas de uso común. | V136: 0 | AC136: Aplicación de plaguicidas y funguicidas de uso común. | AE136: 0
A137: Empaque y traslado de desechos producto de la prestación del servicio hasta los lugares de recolección. | K137: Empaque y traslado de desechos producto de la prestación del servicio hasta los lugares de recolección. | M137: 0 | T137: Empaque y traslado de desechos producto de la prestación del servicio hasta los lugares de recolección. | V137: 0 | AC137: Empaque y traslado de desechos producto de la prestación del servicio hasta los lugares de recolección. | AE137: 0

Sheet Detalle Bienes de Aseo y Caf
A2: FORMATO DE COTIZACIÓN
A4: 3. Bienes de Aseo y Cafetería
A7: Observaciones
I11: Detalle Sede | J11: Detalle Sede | K11: Detalle Sede | L11: Detalle Sede
A13: No. | B13: Bien | C13: Especificación | D13: Presentación | E13: Cantidad Mensual | F13: Precio unitario | G13: Total | I13: Sede 1 | J13: Sede 2 | K13: Sede 3 | L13: Sede 4
A14: 0 | B14: Jardineria mt2 | C14: Servicio especializado de jardinería en metros cuadrados. | D14: Metros cuadrados | E14: =SUM(I14:L14) -> 0 | I14: ='Solicitud de Cotización General'!J56 -> 0 | J14: ='Solicitud de Cotización General'!K56 -> 0 | K14: ='Solicitud de Cotización General'!L56 -> 0 | L14: ='Solicitud de Cotización General'!M56 -> 0
A15: 1 | B15: Jabón para loza 1 (Compra) | C15: - Con agente(s) tensoactivo(s) principal(es) con efecto limpiador y desengrasante en una concentración mínima del 8%. - Disponible en mínimo (2) dos fragancias - El envase debe estar correctamente etiquetado bajo los parámetros establecidos en el sistema globalmente armonizado (Decreto 1496 de 2018) indicando: nombre comercial del producto, pictogramas de los compuestos peligrosos si aplica e instrucciones de uso de acuerdo con los tiempos de transición descritos en el artículo 24 de la Resolución 773 de 2021. - Debe contener concentraciones de fósforo iguales o inferiores a 0.65% de fósforo (Resolución 0689 de 2016) | D15: Líquido, en recipiente plástico con capacidad mínima de 3.785 ml | E15: =SUM(I15:L15) -> 0
A16: 2 | B16: Jabón para loza 2 (Compra) | C16: - Con agente(s) tensoactivo(s) principal(es) con efecto limpiador y desengrasante en una concentración mínima del 8%. - Disponible en mínimo (2) dos fragancias - El envase debe estar correctamente etiquetado bajo los parámetros establecidos en el sistema globalmente armonizado (Decreto 1496 de 2018) indicando: nombre comercial del producto, pictogramas de los compuestos peligrosos si aplica e instrucciones de uso de acuerdo con los tiempos de transición descritos en el artículo 24 de la Resolución 773 de 2021. - Debe contener concentraciones de fósforo iguales o inferiores a 0.65% de fósforo (Resolución 0689 de 2016) | D16: Líquido, en recipiente plástico de mínimo 500 ml | E16: 4 | I16: 1 | J16: 1 | K16: 1 | L16: 1
A17: 3 | B17: Jabón para loza 3 (Compra) | C17: - Con agente(s) tensoactivo(s) principal(es) con efecto limpiador y desengrasante en una concentración mínima del 15%. - Disponible en mínimo (2) dos fragancias - El envase debe estar correctamente etiquetados bajo los parámetros establecidos en el sistema globalmente armonizado (Decreto 1496 de 2018) indicando: nombre comercial del producto, pictogramas de los compuestos peligrosos si aplica e instrucciones de uso. - Debe contener concentraciones de fósforo iguales o inferiores a 0.65% de fósforo (Resolución 0689 de 2016) | D17: Crema, en recipiente plástico de mínimo 850 g | E17: 0
A18: 4 | B18: Jabón para loza 4 (Compra) | C18: - Con agente(s) tensoactivo(s) con efecto limpiador y desengrasante. - Disponible en múltiples fragancias. - El envase debe estar correctamente etiquetado bajo los parámetros establecidos en el sistema globalmente armonizado (Decreto 1496 de 2018) indicando: nombre comercial del producto, pictogramas de los compuestos peligrosos si aplica e instrucciones de uso de acuerdo con los tiempos de transición descritos en el artículo 24 de la Resolución 773 de 2021. - Elaborado en material reciclable - Con etiqueta de amigable con el ambiente - Debe contener concentraciones de fósforo iguales o inferiores a 0.65% de fósforo (Resolución 0689 de 2016) | D18: Crema, en recipiente plástico de mínimo 1000 g | E18: 0
A19: 5 | B19: Jabón en barra (Compra) | C19: -Composición de ácidos grasos de mínimo 50%. - Debe contener concentraciones de fósforo iguales o inferiores a 0.65% de fósforo (Resolución 0689 de 2016) | D19: Barra, unidad con peso mínimo de 250 g en envoltura individual | E19: 8 | I19: 2 | J19: 2 | K19: 2 | L19: 2
A20: 6 | B20: Jabón en barra azul (Compra) | C20: - Todo tipo de uso - Biodegradable - No debe contener PVC o Poliestireno expandido u otros plásticos de un solo uso tanto en el envase como en el embalaje. - Debe contener concentraciones de fósforo iguales o inferiores a 0.65% de fósforo (Resolución 0689 de 2016) | D20: Barra, unidad con peso mínimo de 250 g en envoltura individual | E20: 0
A21: 7 | B21: Jabón abrasivo (Compra) | C21: -Con agente(s) tensoactivo(s) pincipal(es) con efecto limpiador, pulidor y desengrasante - Con agente activo mínimo del 5% - Debe contener concentraciones de fósforo iguales o inferiores a 0.65% de fósforo (Resolución 0689 de 2016) | D21: En polvo, en tarro de mínimo 500 g | E21: 4 | I21: 1 | J21: 1 | K21: 1 | L21: 1
A22: 8 | B22: Jabón de tocador 1 (Compra) | C22: - Elaborado con grasas vegetales - Con agente humectante - pH modificar entre PH 5,5 a 7 - Disponible en mínimo (2) dos fragancias - Debe estar correctamente etiquetados bajo los parámetros indicando: nombre comercial del producto, pictogramas de los compuestos peligrosos e instrucciones de uso - Debe contener concentraciones de fósforo iguales o inferiores a 0.65% de fósforo (Resolución 0689 de 2016) | D22: Barra, unidad con peso mínimo de 125 g en envoltura individual | E22: 0
A23: 9 | B23: Jabón de tocador 2 (Compra) | C23: - Jabón de tocador para manos en espuma - Líquido para manos en bolsa para dispensador spray y con boquilla especial de dispensador - Tapa tipo válvula, para dispensador, antibacterial y antiséptico - Con agente limpiador en una concentración mínima del 6% - Con agente humectante en una concentración mínima del 3% - Disponible en múltiples fragancias - Producto biodegradable basado en ingredientes orgánicos - El envase debe estar correctamente etiquetado bajo los parámetros establecidos en el sistema globalmente armonizado (Decreto 1496 de 2018) indicando: nombre comercial del producto, pictogramas de los compuestos peligrosos si aplica e instrucciones de uso de acuerdo con los tiempos de transición descritos en el artículo 24 de la Resolución 773 de 2021. - Elaborado en material reciclable - No debe contener PVC, Poliestireno expandido u otros plásticos de un solo uso tanto en el envase como en el embalaje. - Debe contener concentraciones de fósforo iguales o inferiores a 0.65% de fósforo (Resolución 0689 de 2016) | D23: Líquido, en bolsa con capacidad mínima de 800 ml | E23: 0
A24: 10 | B24: Jabón de dispensador para manos 1 (Compra) | C24: - Con agente limpiador en una concentración mínima del 6% - Con agente humectante en una concentración mínima del 3% - pH entre 5,5 a 7 - Disponible en mínimo (2) dos fragancias - Debe contener concentraciones de fósforo iguales o inferiores a 0.65% de fósforo (Resolución 0689 de 2016) | D24: Líquido, en recipiente plástico con dispensador y capacidad mínima de 500 ml | E24: 4 | I24: 1 | J24: 1 | K24: 1 | L24: 1
A25: 11 | B25: Jabón de dispensador para manos 2 (Compra) | C25: - Con agente limpiador en una concentración mínima del 6% - Con agente humectante en una concentración mínima del 3% - pH entre 5,5 a 7 - Disponible en mínimo (2) dos fragancias - Debe contener concentraciones de fósforo iguales o inferiores a 0.65% de fósforo (Resolución 0689 de 2016) | D25: Líquido, en recipiente plástico con capacidad mínima de 3.785 ml | E25: 0
A26: 12 | B26: Jabón de dispensador para manos 3 (Compra) | C26: - Con agente limpiador en una concentración mínima del 6%. - Con agente antibacterial en una concentración mínima del 0,2% - Con agente humectante en una concentración mínima del 3% - pH entre 5,5 a 7 - Disponible en mínimo (2) dos fragancias - Debe contener concentraciones de fósforo iguales o inferiores a 0.65% de fósforo (Resolución 0689 de 2016) | D26: Líquido, en recipiente plástico con capacidad mínima de 3.785 ml | E26: 0
A27: 13 | B27: Gel antibacterial para manos (Compra) | C27: - Con agente antibacterial en una concentración mínima del 0,2% - Con agente humectante - pH entre 5, 5 a 7 - Con fragancia | D27: Gel, en recipiente plástico con capacidad mínima de 3.785 ml | E27: 0
A28: 14 | B28: Dispensador de gel antibacterial para manos (Compra) | C28: - Material: Plástico - Tipo de instalación: De pared - Incluye Chazos y tornillos - Con visor para determinar el nivel del líquido - Con ventanilla en la parte superior para añadir el gel - Funcionamiento: Manual | D28: Recipiente con capacidad mínima de 500 ml (Unidad) | E28: 0
A29: 15 | B29: Limpiador multiusos 1 (Compra) | C29: - Con agente(s) tensoactivo(s) principal(es) con efecto limpiador en una concentración mínima del 8% - Disponible en mínimo (2) dos fragancias - El envase debe estar correctamente etiquetado bajo los parámetros establecidos en el sistema globalmente armonizado (Decreto 1496 de 2018) indicando: nombre comercial del producto, pictogramas de los compuestos peligrosos si aplica e instrucciones de uso de acuerdo con los tiempos de transición descritos en el artículo 24 de la Resolución 773 de 2021. | D29: Líquido, en recipiente plástico con capacidad mínima de 3.785 ml | E29: 0
A30: 16 | B30: Limpiador multiusos 2 (Compra) | C30: - Con agente(s) tensoactivo(s) principal(es) con efecto limpiador y desengrasante en una concentración mínima del 8% - Disponible en mínimo (2) dos fragancias - El envase debe estar correctamente etiquetado bajo los parámetros establecidos en el sistema globalmente armonizado (Decreto 1496 de 2018) indicando: nombre comercial del producto, pictogramas de los compuestos peligrosos si aplica e instrucciones de uso de acuerdo con los tiempos de transición descritos en el artículo 24 de la Resolución 773 de 2021. | D30: Líquido, en recipiente plástico con capacidad mínima de 500 ml, con atomizador de pistola. | E30: 4 | I30: 1 | J30: 1 | K30: 1 | L30: 1
A31: 17 | B31: Limpiador multiusos 3 (Compra) | C31: - Con agente(s) tensoactivo(s) principal(es) con efecto limpiador y desengrasante en una concentración mínima del 8% - Disponible en mínimo (2) dos fragancias - El envase debe estar correctamente etiquetado bajo los parámetros establecidos en el sistema globalmente armonizado (Decreto 1496 de 2018) indicando: nombre comercial del producto, pictogramas de los compuestos peligrosos si aplica e instrucciones de uso de acuerdo con los tiempos de transición descritos en el artículo 24 de la Resolución 773 de 2021. | D31: Líquido, en recipiente plástico de repuesto con capacidad mínima de 500 ml | E31: 4 | I31: 1 | J31: 1 | K31: 1 | L31: 1
A32: 18 | B32: Limpiador desinfectante para pisos (Compra) | C32: - Apariencia: Líquido transparente - Color y olor: De acuerdo a la fragancia - Producto biodegradable que no afectas la capa de ozono - Solubilidad: Total en agua - PH: 7.5 - 8.5 - Composición: Tensoactivos, espesante, coadyuvante, colorante - El envase debe estar correctamente etiquetado bajo los parámetros establecidos en el sistema globalmente armonizado (Decreto 1496 de 2018) indicando: nombre comercial del producto, pictogramas de los compuestos peligrosos si aplica e instrucciones de uso de acuerdo con los tiempos de transición descritos en el artículo 24 de la Resolución 773 de 2021. - Elaborado en material reciclable - No debe contener PVC, poliestireno expandido u otros plásticos de un solo uso tanto en el envase como en el embalaje. | D32: Líquido, en garrafa con capacidad mínima de 3.785 ml | E32: 0
A33: 19 | B33: Líquido desengrasante (Compra) | C33: - Con agente(s) tensoactivo(s) principal(es) con efecto limpiador y desengrasante en una concentración mínima del 10% - El envase debe estar correctamente etiquetado bajo los parámetros establecidos en el sistema globalmente armonizado (Decreto 1496 de 2018) indicando: nombre comercial del producto, pictogramas de los compuestos peligrosos si aplica e instrucciones de uso de acuerdo con los tiempos de transición descritos en el artículo 24 de la Resolución 773 de 2021. - Debe contener concentraciones de fósforo iguales o inferiores a 0.65% de fósforo (Resolución 0689 de 2016) | D33: Líquido, en recipiente plástico con capacidad mínima de 3.785 ml | E33: 0
A34: 20 | B34: Crema desengrasante (Compra) | C34: - Disponible en múltiples fragancias - Limpia y desengrasa todos los metales, plásticos, gomas, vidrio, cerámica y madera - El envase debe estar correctamente etiquetado bajo los parámetros establecidos en el sistema globalmente armonizado (Decreto 1496 de 2018) indicando: nombre comercial del producto, pictogramas de los compuestos peligrosos si aplica e instrucciones de uso de acuerdo con los tiempos de transición descritos en el artículo 24 de la Resolución 773 de 2021. - Elaborado en material reciclable o biodegradable - No debe contener PVC o Poliestireno expandido u otros plásticos de un solo uso tanto en el envase como en el embalaje. | D34: Crema, en recipiente reciclable o biodegadable con capacidad mínima de 500 g | E34: 0
A35: 21 | B35: Detergente multiusos en polvo (Compra) | C35: - Con agente tensoactivo de mínimo 60% de biodegradabilidad -Con efecto limpiador de mínimo 9%. - El envase del producto deberá estar correctamente etiquetado bajo los parámetros: nombre comercial del producto, pictogramas de los compuestos peligrosos e instrucciones de uso - Debe contener concentraciones de fósforo iguales o inferiores a 0.65% de fósforo (Resolución 0689 de 2016) | D35: Polvo, en bolsa plástica o recipiente plástico con un peso de 1.000 g | E35: 0
A36: 22 | B36: Limpiador desinfectante para uso general 1 (Compra) | C36: - Con agente(s) tensoactivo(s) con efecto antibacterial en una concentración mínima del 0,2% - Con agente(s) tensoactivo(s) con efecto limpiador y desengrasante en una concentración mínima del 1,5% - El envase debe estar correctamente etiquetado bajo los parámetros establecidos en el sistema globalmente armonizado (Decreto 1496 de 2018) indicando: nombre comercial del producto, pictogramas de los compuestos peligrosos si aplica e instrucciones de uso de acuerdo con los tiempos de transición descritos en el artículo 24 de la Resolución 773 de 2021. | D36: Líquido, en recipiente plástico con capacidad mínima de 3.785 ml | E36: 0
A37: 23 | B37: Limpiador desinfectante para uso general 2 (Compra) | C37: - Con agente(s) tensoactivo(s) con efecto antibacterial en una concentración mínima del 0,2% - Con agente(s) tensoactivo(s) con efecto limpiador y desengrasante en una concentración mínima del 1,5% - El envase debe estar correctamente etiquetado bajo los parámetros establecidos en el sistema globalmente armonizado (Decreto 1496 de 2018) indicando: nombre comercial del producto, pictogramas de los compuestos peligrosos si aplica e instrucciones de uso de acuerdo con los tiempos de transición descritos en el artículo 24 de la Resolución 773 de 2021. | D37: Líquido, en recipiente plástico con capacidad mínima de 500 ml, con atomizador de pistola. | E37: 4 | I37: 1 | J37: 1 | K37: 1 | L37: 1
A38: 24 | B38: Limpiador desinfectante para uso general 3 (Compra) | C38: - Con agente(s) tensoactivo(s) con efecto antibacterial en una concentración mínima del 0,2% - Con agente(s) tensoactivo(s) con efecto limpiador y desengrasante en una concentración mínima del 1,5% - El envase debe estar correctamente etiquetado bajo los parámetros establecidos en el sistema globalmente armonizado (Decreto 1496 de 2018) indicando: nombre comercial del producto, pictogramas de los compuestos peligrosos si aplica e instrucciones de uso de acuerdo con los tiempos de transición descritos en el artículo 24 de la Resolución 773 de 2021. | D38: Líquido, en recipiente plástico con capacidad mínima de 500 ml | E38: 0
A39: 25 | B39: Desinfectante de alto nivel de desinfección para uso hospitalario (Compra) | C39: - Con agentes bactericidas, fungicidas, tubercolicidas, esporicidas y virucidas. - Sin fragacia - El envase debe estar correctamente etiquetado bajo los parámetros establecidos en el sistema globalmente armonizado (Decreto 1496 de 2018) indicando: nombre comercial del producto, pictogramas de los compuestos peligrosos si aplica e instrucciones de uso de acuerdo con los tiempos de transición descritos en el artículo 24 de la Resolución 773 de 2021. | D39: Líquido, en recipiente plástico con capacidad mínima de 3.785 ml | E39: 0
A40: 26 | B40: Pastilla desinfectante para sanitario (Compra) | C40: - Con agentes bactericidas, fungicidas y virucidas. | D40: Unidad con peso mínimo de 45 g | E40: 12 | I40: 3 | J40: 3 | K40: 3 | L40: 3
A41: 27 | B41: Líquido para limpiar vidrios 1 (Compra) | C41: - Con agente(s) principal(es) con efecto limpiador y desengrasante en una concentración mínima del 4% - Disponible mínimo en dos (2) fragancias - El envase debe estar correctamente etiquetados bajo los parámetros establecidos en el sistema globalmente armonizado indicando: nombre comercial del producto, pictogramas de los compuestos peligrosos e instrucciones de uso | D41: Líquido, en recipiente plástico con capacidad mínima de 3.785 ml | E41: 0
A42: 28 | B42: Líquido para limpiar vidrios 2 (Compra) | C42: - Con agente(s) principal(es) con efecto limpiador y desengrasante en una concentración mínima del 4% - Disponible mínimo en dos (2) fragancias - El envase debe estar correctamente etiquetado bajo los parámetros establecidos en el sistema globalmente armonizado (Decreto 1496 de 2018) indicando: nombre comercial del producto, pictogramas de los compuestos peligrosos si aplica e instrucciones de uso de acuerdo con los tiempos de transición descritos en el artículo 24 de la Resolución 773 de 2021. | D42: Líquido, en recipiente plástico con capacidad mínima de 500 ml, con atomizador de pistola. | E42: 4 | I42: 1 | J42: 1 | K42: 1 | L42: 1
A43: 29 | B43: Líquido para limpiar vidrios 3 (Compra) | C43: - Con agente(s) principal(es) con efecto limpiador y desengrasante en una concentración mínima del 4% - Disponible mínimo en dos (2) fragancias - El envase debe estar correctamente etiquetado bajo los parámetros establecidos en el sistema globalmente armonizado (Decreto 1496 de 2018) indicando: nombre comercial del producto, pictogramas de los compuestos peligrosos si aplica e instrucciones de uso de acuerdo con los tiempos de transición descritos en el artículo 24 de la Resolución 773 de 2021. | D43: Líquido, en recipiente plástico de repuesto con capacidad mínima de 500 ml | E43: 0
A44: 30 | B44: Blanqueador o hipoclorito 1 (Compra) | C44: - Solución con una concentración mínima del 5% - El envase del producto deberá estar correctamente etiquetado, indicando: nombre comercial del producto, pictogramas de los compuestos peligrosos e instrucciones de uso - El envase debe estar correctamente etiquetado bajo los parámetros establecidos en el sistema globalmente armonizado (Decreto 1496 de 2018) indicando: nombre comercial del producto, pictogramas de los compuestos peligrosos si aplica e instrucciones de uso de acuerdo con los tiempos de transición descritos en el artículo 24 de la Resolución 773 de 2021. | D44: Líquido, en recipiente plástico con capacidad mínima de 3.785 ml | E44: 4 | I44: 1 | J44: 1 | K44: 1 | L44: 1
A45: 31 | B45: Blanqueador o hipoclorito 2 (Compra) | C45: - Solución con una concentración mínima del 5% - El envase del producto deberá estar correctamente etiquetado, indicando: nombre comercial del producto, pictogramas de los compuestos peligrosos e instrucciones de uso - El envase debe estar correctamente etiquetado bajo los parámetros establecidos en el sistema globalmente armonizado (Decreto 1496 de 2018) indicando: nombre comercial del producto, pictogramas de los compuestos peligrosos si aplica e instrucciones de uso de acuerdo con los tiempos de transición descritos en el artículo 24 de la Resolución 773 de 2021. | D45: Líquido, en recipiente plástico con capacidad mínima de 1.000 ml | E45: 0
A46: 32 | B46: Blanqueador o hipoclorito 3 (Compra) | C46: - Granulado con una concentración mínima del 90% - El envase del producto deberá estar correctamente etiquetado, indicando: nombre comercial del producto, pictogramas de los compuestos peligrosos e instrucciones de uso - El envase debe estar correctamente etiquetado bajo los parámetros establecidos en el sistema globalmente armonizado (Decreto 1496 de 2018) indicando: nombre comercial del producto, pictogramas de los compuestos peligrosos si aplica e instrucciones de uso de acuerdo con los tiempos de transición descritos en el artículo 24 de la Resolución 773 de 2021. | D46: ganulado, en bolsa plástica de mínimo 1.000 g | E46: 0
A47: 33 | B47: Alcohol industrial 1 (Compra) | C47: - Solución acuosa de alcohol etílico desnaturalizado con una concentración mínima de 70% - Desnaturalizado | D47: Líquido, en recipiente plástico con capacidad mínima de 3.785 ml | E47: 0
A48: 34 | B48: Alcohol industrial 2 (Compra) | C48: - Solución acuosa de alcohol etílico desnaturalizado con una concentración mínima de 70% - Desnaturalizado | D48: Líquido, en recipiente plástico con capacidad mínima de 1000ml | E48: 0
A49: 35 | B49: Creolina 1 (Compra) | C49: - Solución con una concentración mínima de fenoles de 4% | D49: Líquido, en recipiente plástico con capacidad mínima de 500 ml | E49: 0
A50: 36 | B50: Creolina 2 (Compra) | C50: - Solución con una concentración mínima de fenoles de 4% | D50: Líquido, en recipiente plástico con capacidad mínima de 3.785 ml | E50: 0
A51: 37 | B51: Líquido para limpiar equipos de oficina 1 (Compra) | C51: - Con agente(s) principal(es) con efecto limpiador, desengrasante y desinfectante en una concentración mínima del 4% - El envase debe estar correctamente etiquetado bajo los parámetros establecidos en el sistema globalmente armonizado (Decreto 1496 de 2018) indicando: nombre comercial del producto, pictogramas de los compuestos peligrosos si aplica e instrucciones de uso de acuerdo con los tiempos de transición descritos en el artículo 24 de la Resolución 773 de 2021. | D51: Líquido, en recipiente plástico con capacidad mínima de 500 ml con atomizador | E51: 4 | I51: 1 | J51: 1 | K51: 1 | L51: 1
A52: 38 | B52: Líquido para limpiar equipos de oficina 2 (Compra) | C52: - Con agente(s) principal(es) con efecto limpiador, desengrasante y desinfectante en una concentración mínima del 4% - El envase debe estar correctamente etiquetado bajo los parámetros establecidos en el sistema globalmente armonizado (Decreto 1496 de 2018) indicando: nombre comercial del producto, pictogramas de los compuestos peligrosos si aplica e instrucciones de uso de acuerdo con los tiempos de transición descritos en el artículo 24 de la Resolución 773 de 2021. | D52: Líquido, en recipiente plástico con capacidad mínima de 500 ml | E52: 0
A53: 39 | B53: Champú para alfombras y tapizados 1 (Compra) | C53: - Con agente(s) principal(es) con efecto limpiador en una concentración mínima del 8% - El envase debe estar correctamente etiquetado: nombre comercial del producto, pictogramas de los compuestos peligrosos e instrucciones de uso | D53: Líquido, en recipiente plástico con capacidad mínima de 3.785 ml | E53: 0
A54: 40 | B54: Champú para alfombras y tapizados 2 (Compra) | C54: - Con agente(s) principal(es) con efecto limpiador en una concentración mínima del 8% - Con agente espumante para la generación de espuma seca - El envase debe estar correctamente etiquetados: nombre comercial del producto, pictogramas de los compuestos peligrosos e instrucciones de uso | D54: Líquido, en recipiente plástico con capacidad mínima de 3.785 ml | E54: 0
A55: 41 | B55: Lustrador de muebles (Compra) | C55: - Con agentes limpiadores y abrillantadores en una concentración mínima del 5% - El envase debe estar correctamente etiquetado bajo los parámetros establecidos en el sistema globalmente armonizado (Decreto 1496 de 2018) indicando: nombre comercial del producto, pictogramas de los compuestos peligrosos si aplica e instrucciones de uso de acuerdo con los tiempos de transición descritos en el artículo 24 de la Resolución 773 de 2021. | D55: Líquido, en recipiente plástico con capacidad mínima de 200 ml | E55: 4 | I55: 1 | J55: 1 | K55: 1 | L55: 1
A56: 42 | B56: Líquido cubre rasguños para madera (Compra) | C56: - Con agentes limpiadores y abrillantadores en una concentración mínima del 5% - De color oscuro para coayudar a cubrir rasguños en maderas oscuras | D56: En recipiente plástico con capacidad mínima de 200 ml | E56: 0
A57: 43 | B57: Crema para cuero (Compra) | C57: - Con agentes limpiadores y abrillantadores en una concentración mínima del 5% | D57: Crema, en recipiente plástico con capacidad mínima de 200 ml | E57: 0
A58: 44 | B58: Cera polimérica (Compra) | C58: - Polimérica autobrillante. - Con polímeros acrílicos, nivelantes y plastificantes. - Neutra (para pisos de todos los colores) - Contenido mínimo de sólidos del 10% | D58: Líquido, en recipiente plástico con capacidad mínima de 3.785 ml | E58: 0
A59: 45 | B59: Cera emulsionada Neutra (Compra) | C59: - Emulsionada - Neutra (para pisos de todos los colores) - Contenido mínimo de sólidos del 5% | D59: Líquido, en recipiente plástico con capacidad mínima de 3.785 ml | E59: 0
A60: 46 | B60: Cera emulsionada roja (Compra) | C60: - Emulsionada - Roja - Contenido mínimo de sólidos del 5% - Antideslizante | D60: Líquido, en recipiente plástico con capacidad mínima de 3.785 ml | E60: 0
A61: 47 | B61: Cera solvente (Compra) | C61: - Solvente - Contenido mínimo de sólidos del 10% | D61: Líquido, en recipiente plástico con capacidad mínima de 3.785 ml | E61: 0
A62: 48 | B62: Sellante para pisos (Compra) | C62: - Polimérico autobrillante. - Con polímeros acrílicos, nivelantes y plastificantes. - Contenido mínimo de sólidos del 20% - El envase debe estar correctamente etiquetado bajo los parámetros establecidos en el sistema globalmente armonizado (Decreto 1496 de 2018) indicando: nombre comercial del producto, pictogramas de los compuestos peligrosos si aplica e instrucciones de uso de acuerdo con los tiempos de transición descritos en el artículo 24 de la Resolución 773 de 2021. | D62: Líquido, en recipiente plástico con capacidad mínima de 3.785 ml | E62: 0
A63: 49 | B63: Mantenedor de pisos (Compra) | C63: - Polimérico autobrillante. - Con polímeros acrílicos, nivelantes y plastificantes. - Contenido mínimo de sólidos del 8% | D63: Líquido, en recipiente plástico con capacidad mínima de 3.785 ml | E63: 0
A64: 50 | B64: Removedor de cera (Compra) | C64: - Con agente activo alcalino en una concentración mínima del 9% - pH entre 11 y 14 | D64: Líquido, en recipiente plástico con capacidad mínima de 3.785 ml | E64: 0
A65: 51 | B65: Abrillantador para piso laminado (Compra) | C65: - Con agente(s) con efecto limpiador y brillador. | D65: Líquido, en recipiente plástico con capacidad mínima de 3.785 ml | E65: 0
A66: 52 | B66: Jabón neutro para pisos 1 (Compra) | C66: - Jabón multiusos - PH Neutro, - No corrosivo ni tóxico - Debe contener concentraciones de fósforo iguales o inferiores a 0.65% de fósforo (Resolución 0689 de 2016) | D66: Líquido, en recipiente plástico con capacidad mínima de 3.785 ml | E66: 0
A67: 53 | B67: Jabón neutro para pisos 2 (Compra) | C67: - Jabón neutro biodegradable multiusos - PH Neutro - No es corrosivo ni tóxico - Color: Azul claro - El envase debe estar correctamente etiquetado bajo los parámetros establecidos en el sistema globalmente armonizado (Decreto 1496 de 2018) indicando: nombre comercial del producto, pictogramas de los compuestos peligrosos si aplica e instrucciones de uso de acuerdo con los tiempos de transición descritos en el artículo 24 de la Resolución 773 de 2021. - Elaborado en material reciclable, no debe contener PVC, Poliestireno expandido u otros plásticos de un solo uso tanto en el envase como en el embalaje. - Debe contener concentraciones de fósforo iguales o inferiores a 0.65% de fósforo (Resolución 0689 de 2016) | D67: Líquido, en cuñete con capacidad de 20 L | E67: 0
A68: 54 | B68: Varsol ecológico 1 (Compra) | C68: - Solución con agentes desinfectantes, desmanchadores y desengrasantes en concentración mínima del 15%. - Biodegradable mínimo en un 95% | D68: Líquido, en recipiente plástico con capacidad mínima de 1000 ml | E68: 0
A69: 55 | B69: Varsol ecológico 2 (Compra) | C69: - Solución con agentes desinfectantes, desmanchadores y desengrasantes en concentración mínima del 15%. - Biodegradable mínimo en un 95% | D69: Líquido, en recipiente plástico con capacidad mínima de 3.785 ml | E69: 0
A70: 56 | B70: Desmanchador multiusos (Compra) | C70: - Con agente(s) tensoactivo(s) con efecto limpiador y desengrasante - Para superficies de todo tipo. | D70: Crema, en bolsa plástica de mínimo 500 g | E70: 0
A71: 57 | B71: Brillametal en crema (Compra) | C71: - Con agentes con efecto limpiador, pulidor y brillador. - Para todo tipo de metales - El envase del producto deberá estar correctamente etiquetado, indicando: nombre comercial del producto, pictogramas de los compuestos peligrosos e instrucciones de uso | D71: En crema de mínimo 70 g | E71: 0
A72: 58 | B72: Brillametal líquido (Compra) | C72: - Con agentes con efecto limpiador, pulidor y brillador. - Para todo tipo de metales | D72: Líquido , en recipiente plástico con capacidad mínima de 200 ml | E72: 0
A73: 59 | B73: Betún (Compra) | C73: - Contenido mínimo de sólidos del 30% - Color negro - No debe contener ningún material que sea cancerígeno ( Clasificación 1 y 2a por la IARC), Mutagénico, Tóxico, Contaminante peligroso del aire o que sea agotador de la capa de ozono - El envase debe estar correctamente etiquetado bajo los parámetros establecidos en el sistema globalmente armonizado (Decreto 1496 de 2018) indicando: nombre comercial del producto, pictogramas de los compuestos peligrosos si aplica e instrucciones de uso de acuerdo con los tiempos de transición descritos en el artículo 24 de la Resolución 773 de 2021. | D73: Tarro de mínimo 100 g | E73: 0
A74: 60 | B74: Ambientador 1 (Compra) | C74: - Solución con alcohol etílico y solventes. - Con fragancia en una concentración del 1,5% - En múltiples fragancias - El envase debe estar correctamente etiquetado bajo los parámetros establecidos en el sistema globalmente armonizado (Decreto 1496 de 2018) indicando: nombre comercial del producto, pictogramas de los compuestos peligrosos si aplica e instrucciones de uso de acuerdo con los tiempos de transición descritos en el artículo 24 de la Resolución 773 de 2021. | D74: Líquido, en recipiente plástico con capacidad mínima de 3.785 ml | E74: 0
A75: 61 | B75: Ambientador 2 (Compra) | C75: - Solución con alcohol etílico y solventes. - Con fragancia en una concentración del 1,5% - En múltiples fragancias - libre de CFC - Envase correctamente etiquetado bajo los parámetros establecidos indicando: nombre comercial del producto, pictogramas de los compuestos peligrosos e instrucciones de uso. - Elaborado en material reciclable | D75: Líquido, en aerosol seguro para la capa de ozono con capacidad mínima de 400 ml | E75: 4 | I75: 1 | J75: 1 | K75: 1 | L75: 1
A76: 62 | B76: Insecticida 1 (Compra) | C76: - Para eliminar insectos rastreros. - Con acción residual hasta por 4 semanas o de larga duración - Sin fuertes olores químicos - Libre de CFC - El envase del producto deberá estar correctamente etiquetado, indicando: nombre comercial del producto, pictogramas de los compuestos peligrosos e instrucciones de uso | D76: Líquido, en aerosol seguro para la capa de ozono con capacidad mínima de 350 ml | E76: 4 | I76: 1 | J76: 1 | K76: 1 | L76: 1
A77: 63 | B77: Insecticida 2 (Compra) | C77: - Para eliminar insectos voladores - Con acción residual hasta por 4 semanas o de larga duración - Sin fuertes olores químicos - Libre de CFC - El envase del producto deberá estar correctamente etiquetado, indicando: nombre comercial del producto, pictogramas de los compuestos peligrosos e instrucciones de uso | D77: Líquido, en aerosol seguro para la capa de ozono con capacidad mínima de 350 ml | E77: 0
A78: 64 | B78: Limpiones 1 (Compra) | C78: - En tela de toalla fileteada - Color blanco sin estampado - Tamaño mínimo de 45cm de largo por 45cm de ancho. | D78: Unidad | E78: 8 | I78: 2 | J78: 2 | K78: 2 | L78: 2
A79: 65 | B79: Limpiones 2 (Compra) | C79: - En tela de toalla fileteada - Color blanco sin estampado -Tamaño mínimo de 100 cm de largo por 70 cm de ancho | D79: Unidad | E79: =SUM(I79:L79) -> 0
A80: 66 | B80: Limpiones 3 (Compra) | C80: - En tela fileteada - Color blanco sin estampado - Tamaño mínimo de 45 cm de largo por 45 cm de ancho | D80: Unidad | E80: 0
A81: 67 | B81: Limpiones 4 (Compra) | C81: - En tela fileteada - Color blanco sin estampado -Tamaño mínimo de 100 cm de largo por 70 cm de ancho | D81: Unidad | E81: 0
A82: 68 | B82: Limpiones 5 (Compra) | C82: - En tela tipo galleta fileteada - Color blanco o beige sin estampado -Tamaño mínimo de 100 cm de largo por 70 cm de ancho | D82: Unidad | E82: 0
A83: 69 | B83: Bayetilla 1 (Compra) | C83: - En tela fileteada - 100% algodón y fibra natural - Color blanco sin estampado -Tamaño mínimo de 100 cm de largo por 70 cm de ancho | D83: Unidad | E83: 4 | I83: 1 | J83: 1 | K83: 1 | L83: 1
A84: 70 | B84: Bayetilla 2 (Compra) | C84: - En tela fileteada - 100% algodón y fibra natural - Color rojo sin estampado -Tamaño mínimo de 100 cm de largo por 70 cm de ancho | D84: Unidad | E84: 4 | I84: 1 | J84: 1 | K84: 1 | L84: 1
A85: 71 | B85: Toalla en tela blanca para pisos por metro (repuesto de haraganes) (Compra) | C85: - Elaborado en microfibras - Color blanco - Tamaño mínimo de 100 cm de largo por 70 cm de ancho | D85: Unidad | E85: 4 | I85: 1 | J85: 1 | K85: 1 | L85: 1
A86: 72 | B86: Paño absorbente multiusos 1 (Compra) | C86: - Retira el polvo sin dejar residuos ni pelusas - Antibacterial reutilizable - Tela con microporos - Tamaño mínimo de 60 cm de largo por 33 cm de ancho | D86: Paquete X 6 unidades | E86: 0
A87: 73 | B87: Paño absorbente multiusos 2 (Compra) | C87: - Retira el polvo sin dejar residuos ni pelusas - Antibacterial reutilizable - Tela con microporos - Tamaño mínimo de 25 cm de largo por 45 cm de ancho | D87: Rollo X 40 unidades | E87: 8 | I87: 2 | J87: 2 | K87: 2 | L87: 2
A88: 74 | B88: Estopa (Compra) | C88: - Hecha 100% de hilos de algodón blanco peinado. -Suave al tacto, para lustrar - No debe contener PVC o Poliestireno expandido u otros plásticos de un solo uso tanto en el envase como en el embalaje. | D88: Bolsa de mínimo 400 g | E88: 0
A89: 75 | B89: Esponjilla 1 (Compra) | C89: - Espuma enmallada - Tamaño mínimo de 7 cm de largo por 10 cm de ancho | D89: Unidad | E89: 0
A90: 76 | B90: Esponjilla 2 (Compra) | C90: - Doble uso (material de esponjilla blanda y abrasiva) - Tamaño mínimo de 7 cm de largo por 10 cm de ancho - No debe contener PVC o Poliestireno expandido u otros plásticos de un solo uso tanto en el envase como en el embalaje | D90: Unidad | E90: 0
A91: 77 | B91: Esponjilla 3 (Compra) | C91: - Abrasiva - Tamaño mínimo de 9 cm de largo por 12 cm de | D91: Unidad | E91: 0
A92: 78 | B92: Esponjilla 4 (Compra) | C92: - Elaborada con fibra de acero inoxidable para dar brillo - Tamaño mínimo de 5 cm de largo por 5 cm de ancho | D92: Paquete X 6 unidades | E92: 0
A93: 79 | B93: Esponjilla 5 (Compra) | C93: - Elaborada con alambre de acero inoxidable - Tamaño mínimo de 7 cm de largo por 10 cm de ancho | D93: Unidad | E93: 0
A94: 80 | B94: Esponjilla 6 (Compra) | C94: - Espuma enmallada - Tamaño mínimo de 7 cm de largo por 10 cm de ancho - No debe contener PVC o Poliestireno expandido u otros plásticos de un solo uso tanto en el envase como en el embalaje. | D94: Unidad | E94: 0
A95: 81 | B95: Esponjilla 7 (Compra) | C95: - Abrasiva - Tamaño mínimo de 9 cm de largo por 12 cm de ancho - No debe contener PVC o Poliestireno expandido u otros plásticos de un solo uso tanto en el envase como en el embalaje. | D95: Unidad | E95: 0
A96: 82 | B96: Escoba 1 (Compra) | C96: - Cerdas suaves elaboradas con PET calibre entre 0,3 y 0,4 mm. - Área de barrido mínima de 25 cm de largo por 8 cm de ancho por 10 cm de alto - Material de base en plástico con acople tipo rosca | D96: Unidad | E96: 0
A97: 83 | B97: Escoba 2 (Compra) | C97: - Cerdas duras elaboradas con PET calibre entre 0,4 y 0,6 mm. - Área de barrido mínima de 25 cm de largo por 8 cm de ancho por 10 cm de alto - Material de base en plástico con acople tipo rosca | D97: Unidad | E97: 0
A98: 84 | B98: Escoba 3 (Compra) | C98: - Cerdas suaves elaboradas con PET calibre entre 0,3 y 0,4 mm. - Área de barrido mínima de 35 cm de largo por 8 cm de ancho por 10 cm de alto - Material de base en plástico con acople tipo rosca | D98: Unidad | E98: 4 | I98: 1 | J98: 1 | K98: 1 | L98: 1
A99: 85 | B99: Escoba 4 (Compra) | C99: - Cerdas duras elaboradas con PET calibre entre 0,4 y 0,6 mm. - Área de barrido mínima de 35 cm de largo por 8 cm de ancho por 10 cm de alto - Material de base en plástico con acople tipo rosca | D99: Unidad | E99: 0
A100: 86 | B100: Escoba 5 (Compra) | C100: - Cerdas suaves elaboradas con PET calibre entre 0,3 y 0,4 mm. - Área de barrido mínima de 35 cm de largo por 8 cm de ancho por 10 cm de alto - Mango de madera proveniente de explotación forestal sostenible certificada ( FSC, PEFC o equivalentes) y/o Mango y Fibra de plástico (reciclado o nuevo) de polipropileno (PP) o polietileno (PE) y/o cabo metálico que no contenga material plastificado - No debe contener PVC u otros plásticos con cloro. - Cabo de madera 140cm elaborada con fibra natural, con soporte para colgar, con capucha plástica protectora que evita que se desprendan las fibras o se deformen | D100: Unidad | E100: 0
A101: 87 | B101: Mango metálico escoba 1 (Compra) | C101: - Extensión mínima de 140 cm -Acople plástico o rosca para palos de escoba | D101: Unidad | E101: 0
A102: 88 | B102: Mango madera escoba 1 (Compra) | C102: - Extensión mínima de 140 cm -Acople plástico o rosca para palos de escoba | D102: Unidad | E102: 0
A103: 89 | B103: Cepillos 1 (Compra) | C103: - Tipo plancha, con mango de plástico - Cuerpo elaborado en plástico - Cerdas duras en fibra plástica - Tamaño mínimo de 15 cm de largo por 5cm de ancho por 6 cm de alto. | D103: Unidad | E103: 0
A104: 90 | B104: Cepillos 2 (Compra) | C104: - Para pisos - Cuerpo elaborado en plástico - Cerdas duras en fibra plástica - Tamaño mínimo de 23 cm de largo por 6 cm de ancho por 7 cm de alto. - Mango metálico con una extensión mínima de 140 cm | D104: Unidad | E104: 0
A105: 91 | B105: Cepillos 3 (Compra) | C105: - Para pisos - Cuerpo elaborado en plástico - Cerdas duras en fibra plástica - Tamaño mínimo de 35 cm de largo por 6 cm de ancho por 7 cm de alto. - Mango metálico con una extensión mínima de 140 cm | D105: Unidad | E105: 0
A106: 92 | B106: Trapero 1 (Compra) | C106: - Elaborado con hilaza de algodón natural - Mecha con peso mínimo 250 gr y extensión mínima de 32 cm de largo - Material de base en plástico con acople tipo rosca | D106: Unidad | E106: 0
A107: 93 | B107: Trapero 2 (Compra) | C107: - Elaborado con hilaza de algodón natural - Mecha con peso mínimo de 350 gr y extensión mínima de 32 cm de largo - Material de base en plástico con acople tipo rosca | D107: Unidad | E107: 0
A108: 94 | B108: Trapero 3 (Compra) | C108: - Elaborado con hilaza de algodón natural - Mecha con peso mínimo de 435 gr y extensión mínima de 32 cm de largo - Material de base en plástico con acople tipo rosca | D108: Unidad | E108: 0
A109: 95 | B109: Trapero 4 (Compra) | C109: - Trapero en hilo encabado o con cabo en madera - Mecha con peso mínimo de 400 gr y extensión mínima de 1.40 cm de largo - Mango de madera proveniente de explotación forestal sostenible certificada ( FSC, PEFC o equivalentes) y/o cabo metálico que no contenga material plastificado - Fibras en tela , algodón o pabilo de fibra de Rayón. - No debe contener PVC o Poliestireno expandido u otros plásticos de un solo uso tanto en el envase como en el embalaje. | D109: Unidad | E109: 4 | I109: 1 | J109: 1 | K109: 1 | L109: 1
A110: 96 | B110: Mango metálico trapero (Compra) | C110: - Extensión mínima de 140 cm - Acople plástico o rosca para palos de escoba | D110: Unidad | E110: 0
A111: 97 | B111: Mango madera trapero (Compra) | C111: - Extensión mínima de 140 cm - Acople plástico o rosca para palos de escoba | D111: Unidad | E111: 0
A112: 98 | B112: Cepillo para sanitario (churrusco) (Compra) | C112: - Cerdas duras elaboradas en fibras plásticas - Extensión mínima de las cerdas es de 2,5 cm - Base y mango elaborados en plástico - Mango con longitud mínima de 33 cm | D112: Unidad | E112: 0
A113: 99 | B113: Pads 1 (Compra) | C113: - Para brillo - Diámetro mínimo de 16 pulgadas - Rojo o blanco | D113: Unidad | E113: 0
A114: 100 | B114: Pads 2 (Compra) | C114: - Para remoción - Diámetro mínimo de 16 pulgadas - Café o negro | D114: Unidad | E114: 0
A115: 101 | B115: Pads 3 (Compra) | C115: - Para brillo - Diámetro mínimo de 20 pulgadas - Rojo o blanco | D115: Unidad | E115: 0
A116: 102 | B116: Pads 4 (Compra) | C116: - Para remoción - Diámetro mínimo de 20 pulgadas - Café o negro | D116: Unidad | E116: 0
A117: 103 | B117: Pads 5 (Compra) | C117: - Pad de fibras para máquinas de baja densidad para lavado suave de mantención, remueve marcas, suciedad y derrames. - Diámetro: 17" - Color: blanco. - No debe contener PVC o Poliestireno expandido u otros plásticos de un solo uso tanto en el envase como en el embalaje. | D117: Unidad | E117: 0
A118: 104 | B118: Boneth 1 (Compra) | C118: - Diámetro mínimo de 16 pulgadas - Elaborado en hilaza de algodón | D118: Unidad | E118: 0
A119: 105 | B119: Boneth 2 (Compra) | C119: - Diámetro mínimo de 20 pulgadas - Elaborado en hilaza de algodón | D119: Unidad | E119: 0
A120: 106 | B120: Bolsas plásticas 1 (Compra) | C120: - Elaborada en polietileno de baja densidad - De color negro - Calibre de mínimo 1 - Tamaño de 40 cm de ancho por 55 cm de largo | D120: Paquete de mínimo 6 | E120: 0
A121: 107 | B121: Bolsas plásticas 2 (Compra) | C121: - Elaborada en polietileno de baja densidad - De color verde - Calibre de mínimo 1 - Tamaño de 40 cm de ancho por 55 cm de largo | D121: Paquete de mínimo 6 | E121: 0
A122: 108 | B122: Bolsas plásticas 3 (Compra) | C122: - Elaborada en polietileno de baja densidad - De color blanco - Calibre de mínimo 1 - Tamaño de 40 cm de ancho por 55 cm de largo | D122: Paquete de mínimo 6 | E122: 0
A123: 109 | B123: Bolsas plásticas 4 (Compra) | C123: - Elaborada en polietileno de baja densidad - De color rojo - Calibre de mínimo 1 - Tamaño de 40 cm de ancho por 55 cm de largo - Con impresión de aviso de riesgo biológico | D123: Paquete de mínimo 6 | E123: 0
A124: 110 | B124: Bolsas plásticas 5 (Compra) | C124: - Elaborada en polietileno de baja densidad - De color azul - Calibre de mínimo 1 - Tamaño de 40 cm de ancho por 55 cm de largo | D124: Paquete de mínimo 6 | E124: 0
A125: 111 | B125: Bolsas plásticas 7 (Compra) | C125: - Elaborada en polietileno de baja densidad - De color amarillo - Calibre de mínimo 1 - Tamaño de 40 cm de ancho por 55 cm de largo | D125: Paquete de mínimo 6 | E125: 0
A126: 112 | B126: Bolsas plásticas 8 (Compra) | C126: - Elaborada en polietileno de baja densidad - De color negro -Calibre de mínimo 2 - Tamaño de 60 cm de ancho por 70 cm de largo | D126: Paquete de mínimo 6 | E126: 12 | I126: 3 | J126: 3 | K126: 3 | L126: 3
A127: 113 | B127: Bolsas plásticas 9 (Compra) | C127: - Elaborada en polietileno de baja densidad - De color verde - Calibre de mínimo 2 - Tamaño de 60 cm de ancho por 70 cm de largo | D127: Paquete de mínimo 6 | E127: 0
A128: 114 | B128: Bolsas plásticas 10 (Compra) | C128: - Elaborada en polietileno de baja densidad - De color blanco - Calibre de mínimo 2 - Tamaño de 60 cm de ancho por 70 cm de largo | D128: Paquete de mínimo 6 | E128: 0
A129: 115 | B129: Bolsas plásticas 11 (Compra) | C129: - Elaborada en polietileno de baja densidad - De color rojo - Calibre de mínimo 2 - Tamaño de 60 cm de ancho por 70 cm de largo - Con impresión de aviso de riesgo biológico | D129: Paquete de mínimo 6 | E129: 0
A130: 116 | B130: Bolsas plásticas 12 (Compra) | C130: - Elaborada en polietileno de baja densidad - De color azul - Calibre de mínimo 2 - Tamaño de 60 cm de ancho por 70 cm de largo | D130: Paquete de mínimo 6 | E130: 0
A131: 117 | B131: Bolsas plásticas 14 (Compra) | C131: - Elaborada en polietileno de baja densidad - De color amarillo - Calibre de mínimo 2 - Tamaño de 60 cm de ancho por 70 cm de largo | D131: Paquete de mínimo 6 | E131: 0
A132: 118 | B132: Bolsas plásticas 15 (Compra) | C132: - Elaborada en polietileno de baja densidad - De color negro - Calibre de mínimo 2 - Tamaño de 70 cm de ancho por 90 cm de largo | D132: Paquete de mínimo 6 | E132: 0
A133: 119 | B133: Bolsas plásticas 16 (Compra) | C133: - Elaborada en polietileno de baja densidad - De color verde - Calibre de mínimo 2 - Tamaño de 70 cm de ancho por 90 cm de largo | D133: Paquete de mínimo 6 | E133: 0
A134: 120 | B134: Bolsas plásticas 17 (Compra) | C134: - Elaborada en polietileno de baja densidad - De color blanco - Calibre de mínimo 2 - Tamaño de 70 cm de ancho por 90 cm de largo | D134: Paquete de mínimo 6 | E134: 0
A135: 121 | B135: Bolsas plásticas 18 (Compra) | C135: - Elaborada en polietileno de baja densidad - De color rojo - Calibre de mínimo 2 - Tamaño de 70 cm de ancho por 90 cm de largo - Con impresión de aviso de riesgo biológico | D135: Paquete de mínimo 6 | E135: 0
A136: 122 | B136: Bolsas plásticas 19 (Compra) | C136: - Elaborada en polietileno de baja densidad - De color azul - Calibre de mínimo 2 - Tamaño de 70 cm de ancho por 90 cm de largo | D136: Paquete de mínimo 6 | E136: 0
A137: 123 | B137: Bolsas plásticas 20 (Compra) | C137: - Elaborada en polietileno de baja densidad - De color amarillo - Calibre de mínimo 2 - Tamaño de 70 cm de ancho por 90 cm de largo | D137: Paquete de mínimo 6 | E137: 0
A138: 124 | B138: Bolsas plásticas 21 (Compra) | C138: - Elaborada en polietileno de baja densidad - De color negro - Calibre de mínimo 3 - Tamaño de 80 cm de ancho por 110 cm de largo | D138: Paquete de mínimo 6 | E138: 20 | I138: 13 | J138: 0 | K138: 0 | L138: 7
A139: 125 | B139: Bolsas plásticas 22 (Compra) | C139: - Elaborada en polietileno de baja densidad - De color verde - Calibre de mínimo 3 - Tamaño de 80 cm de ancho por 110 cm de largo | D139: Paquete de mínimo 6 | E139: 20 | I139: 13 | J139: 0 | K139: 0 | L139: 7
A140: 126 | B140: Bolsas plásticas 23 (Compra) | C140: - Elaborada en polietileno de baja densidad - De color blanco -Calibre de mínimo 3 - Tamaño de 80 cm de ancho por 110 cm de largo | D140: Paquete de mínimo 6 | E140: 20 | I140: 13 | J140: 0 | K140: 0 | L140: 7
A141: 127 | B141: Bolsas plásticas 24 (Compra) | C141: - Elaborada en polietileno de baja densidad - De color rojo -Calibre de mínimo 3 - Tamaño de 80 cm de ancho por 110 cm de largo - Con impresión de aviso de riesgo biológico | D141: Paquete de mínimo 6 | E141: 0
A142: 128 | B142: Bolsas plásticas 25 (Compra) | C142: - Elaborada en polietileno de baja densidad - De color azul -Calibre de mínimo 3 - Tamaño de 80 cm de ancho por 110 cm de largo | D142: Paquete de mínimo 6 | E142: 0
A143: 129 | B143: Bolsas plásticas 26 (Compra) | C143: - Elaborada en polietileno de baja densidad - De color amarilla -Calibre de mínimo 3 - Tamaño de 80 cm de ancho por 110 cm de largo | D143: Paquete de mínimo 6 | E143: =SUM(I143:L143) -> 0
A144: 130 | B144: Guantes 1 (Compra) | C144: - Tipo doméstico - Elaborados en látex - Calibre mínimo de 18 - Tallas 7 a 9 o S a XL - Color amarillo | D144: Par | E144: 0
A145: 131 | B145: Guantes 2 (Compra) | C145: - Tipo doméstico - Elaborados en látex - Calibre mínimo de 18 - Tallas 7 a 9 o S a XL - Color negro | D145: Par | E145: 0
A146: 132 | B146: Guantes 3 (Compra) | C146: - Tipo doméstico - Elaborados en látex - Calibre mínimo de 25 - Tallas 7 a 9 o S a XL - Color negro | D146: Par | E146: 0
A147: 133 | B147: Guantes 4 (Compra) | C147: - Tipo doméstico - Elaborados en látex - Calibre mínimo de 25 - Tallas 7 a 9 o S a XL - Color rojo | D147: Par | E147: 0
A148: 134 | B148: Guantes 5 (Compra) | C148: - Tipo industrial - Elaborados en látex - Calibre mínimo de 35 - Tallas 7 a 9 o S a XL - Color negro | D148: Par | E148: 0
A149: 135 | B149: Guantes 6 (Compra) | C149: - Elaborados en látex desechable (tipo cirugía) - Empovaldos - Tallas XS a XXL | D149: Caja de mínimo 100 unidades | E149: 0
A150: 136 | B150: Guantes 7 (Compra) | C150: - Elaborados en carnaza - Tallas 7 a 9 o S a XL | D150: Par | E150: 0
A151: 137 | B151: Guantes 8 (Compra) | C151: - Tipo mosquetero - Calibre mínimo de 40 - Tallas 7 a 9 o S a XL - Color negro | D151: Par | E151: 0
A152: 138 | B152: Guantes 9 (Compra) | C152: - Elaborados en hilaza - Tallas 7 a 9 o S a XL | D152: Par | E152: 0
A153: 139 | B153: Tapabocas 1 (Compra) | C153: - Elaborado en tela no tejida - Desechable - Con tiras elásticas | D153: Caja de mínimo 50 unidades | E153: 0
A154: 140 | B154: Tapabocas 2 (Compra) | C154: - Elaborado en tela no tejida de Polipropileno y Poliéster - Desechable - Con tiras elásticas - Con soporte nasal | D154: Caja de mínimo 50 unidades | E154: 0
A155: 141 | B155: Papel higiénico 1 (Compra) | C155: - Rollo con longitud mínima de 20 metros - Doble hoja blanca - Sin fragancia | D155: Rollo | E155: 0
A156: 142 | B156: Papel higiénico 2 (Compra) | C156: - Rollo con longitud mínima de 250 metros - Doble hoja de color natural - Sin fragancia | D156: Rollo | E156: 4 | I156: 1 | J156: 1 | K156: 1 | L156: 1
A157: 143 | B157: Papel higiénico 3 (Compra) | C157: - Rollo con longitud mínima de 250 metros - Doble hoja blanca - Sin fragancia | D157: Rollo | E157: 0
A158: 144 | B158: Papel higiénico 4 (Compra) | C158: - Rollo con longitud mínima de 400 metros - Hoja sencilla de color natural - Sinfragancia | D158: Rollo | E158: 0
A159: 145 | B159: Papel higiénico 5 (Compra) | C159: - Rollo con longitud mínima de 400 metros - Hoja sencilla de color blanco - Sin fragancia | D159: Rollo | E159: 4 | I159: 1 | J159: 1 | K159: 1 | L159: 1
A160: 146 | B160: Toallas para manos 1 (Compra) | C160: - Rollo con longitud mínima de 100 metros - Doble hoja con un tamaño mínimo 15 cm de ancho - Disponibles en color blanco | D160: Rollo | E160: 0
A161: 147 | B161: Toallas para manos 2 (Compra) | C161: - Rollo con longitud mínima de 100 metros - Doble hoja con un tamaño mínimo 15 cm de ancho - Disponibles en color natural | D161: Rollo | E161: 0
A162: 148 | B162: Toallas para manos 3 (Compra) | C162: - Rollo con longitud mínima de 150 metros - Doble hoja con un tamaño mínimo 15 cm de ancho - Disponibles en color blanco - Sin olor o fragancia | D162: Rollo | E162: 0
A163: 149 | B163: Toallas para manos 4 (Compra) | C163: - Rollo con longitud mínima de 150 metros - Doble hoja con un tamaño mínimo 15 cm de ancho - Disponibles en color natural - Sin fragancia | D163: Rollo | E163: 4 | I163: 1 | J163: 1 | K163: 1 | L163: 1
A164: 150 | B164: Toallas para manos 5 (Compra) | C164: - Toallas interdobladas, paquete con mínimo 150 unidades - Doble hoja con un tamaño mínimo de 20 cm de largo por 15 cm de ancho - Hoja color natural | D164: Unidad | E164: 0
A165: 151 | B165: Toallas para manos 6 (Compra) | C165: - Toallas interdobladas, paquete con mínimo 150 unidades - Doble hoja con un tamaño mínimo de 20 cm de largo por 15 cm de ancho - Hoja color blanco | D165: Unidad | E165: 4 | I165: 1 | J165: 1 | K165: 1 | L165: 1
A166: 152 | B166: Toallas para manos 7 (Compra) | C166: - Toallas con precorte - Rollo con longitud mínima de 100 metros - Doble hoja con tamaño mínimo de 15 cms de ancho - Color Blanco - Sin fragancia | D166: Unidad | E166: 0
A167: 153 | B167: Toallas para manos 8 (Compra) | C167: - Toallas con precorte - Rollo con longitud mínima de 100 metros - Doble hoja con tamaño mínimo de 15 cms de ancho - Color Natural - Sin fragancia | D167: Unidad | E167: 0
A168: 154 | B168: Pañuelos (Compra) | C168: - Doble hoja - Color blanco | D168: Caja de mínimo 50 unidades | E168: 0
A169: 155 | B169: Vasos biodegradables 1 (Compra) | C169: - Elaborado en cartón 97% biodegradable - Capacidad mínima de 4 oz | D169: Paquete de mínimo 50 unidades | E169: 0
A170: 156 | B170: Vasos biodegradables 2 (Compra) | C170: - Elaborado en cartón 97% biodegradable - Capacidad mínima de 6 oz | D170: Paquete de mínimo 50 | E170: 4 | I170: 1 | J170: 1 | K170: 1 | L170: 1
A171: 157 | B171: Vasos biodegradables 3 (Compra) | C171: - Elaborado en cartón 97% biodegradable - Capacidad mínima de 9 oz | D171: Paquete de mínimo 40 unidades | E171: 0
A172: 158 | B172: Vasos biodegradables 4 (Compra) | C172: - Capacidad mínima de 9 onzas - Sin tapa - Liso - Biodegradable y compostable. - Elaborado en polyboard (cartón) y/ocon la fibra de caña de azúcar o almidón de maíz | D172: Paquete de mínimo 50 unidades | E172: 0
A173: 159 | B173: Mezclador 1 (Compra) | C173: - Mezcladores elaborados en madera y/o apartir de recursos renovables como la caña de azucar y/o almidón de maíz - Longitud mínima de 11 cm | D173: Paquete de mínimo 500 | E173: 0
A174: 160 | B174: Servilleta papel (Compra) | C174: - Tipo cafetería - Dobe hoja - Color blanco - Dimensiones mínimas de 21,5 cm de largo y 14 cm de ancho - 100% Biodegradable - Elaborado a base de papel reciclado no clorado - No debe contener PVC o Poliestireno expandido u otros plásticos de un solo uso tanto en el envase como en el embalaje. | D174: Paquete de mínimo 100 unidades | E174: 0
A175: 161 | B175: Filtro para greca 1 (Compra) | C175: - Elaborada en tela - Para greca - Capacidad de media libra - No debe contener PVC o Poliestireno expandido u otros plásticos de un solo uso tanto en el envase como en el embalaje | D175: Unidad | E175: 0
A176: 162 | B176: Filtro para greca 2 (Compra) | C176: - Elaborada en tela - Para greca - Capacidad de una 1 libra - No debe contener PVC o Poliestireno expandido u otros plásticos de un solo uso tanto en el envase como en el embalaje. | D176: Unidad | E176: 0
A177: 163 | B177: Filtro para greca 3 (Compra) | C177: - Elaborada en tela - Para greca - Capacidad de dos 2 libras - No debe contener PVC o Poliestireno expandido u otros plásticos de un solo uso tanto en el envase como en el embalaje. | D177: Unidad | E177: 0
A178: 164 | B178: Churrusco para tubos de greca (Compra) | C178: - Cepillo para lavado y fregado de grecas. - No debe contener PVC, Poliestireno expandido u otros plásticos de un solo uso tanto en el envase como en el embalaje. - Base y mango elaborados en alambre | D178: Unidad | E178: 0
A179: 165 | B179: Papel Aluminio 1 (Compra) | C179: - Longitud mínima del rollo de 40 metros - Ancho mínimo del rollo de 27 cm | D179: Caja de carton con un 1 rollo de mínimo 40 metros de largo y 27 cm de ancho | E179: 0
A180: 166 | B180: Papel Aluminio 2 (Compra) | C180: - Longitud mínima del rollo de 100 metros - Ancho mínimo del rollo de 27 cm | D180: Caja de carton con un 1 rollo de mínimo 100 metros de largo y 27 cm de ancho | E180: 0
A181: 167 | B181: Película transparente para alimentos (Compra) | C181: - Longitud mínima del rollo de 50 metros - Ancho mínimo del rollo de 27 cm | D181: Caja de carton con un 1 rollo | E181: 0
A182: 168 | B182: Termo para café 1 (Compra) | C182: - Elaborado en plástico - Capacidad mínima de 1 litro | D182: Unidad | E182: 0
A183: 169 | B183: Termo para café 2 (Compra) | C183: - Térmico, con bomba tipo dispensador. Portatil. - Bomba manual para dispensar la bebida. - Acero inoxidable y plastico. - Agarradera plastica, tapa con empaque, bomba manual. - Capacidad mínima de 3 litros | D183: Unidad | E183: 0
A184: 170 | B184: Café 1 (Compra) | C184: - 100% café tostado y molido. - Tostión media. - Puntaje en taza mayor o igual a 80 puntos catación SCA y/o Denominación de Origen (Anexo 6) - Empacada en bolsa de polipropileno aluminizada resistente a la humedad y al oxígeno. - Debe cumplir con las Resoluciones 333 de 2011 y 2674 de 2013 hasta la entrada en vigencia de la Resolución 810 de 2021 y aquellas que la modifiquen, adicionen o deroguen. | D184: Libra | E184: 20 | I184: 8 | J184: 4 | K184: 4 | L184: 4
A185: 171 | B185: Café 2 (Compra) | C185: - Tostión media - Descafeinado - Empacado en bolsa de polipropileno aluminizada resistente a la humedad y al oxigeno - Debe cumplir con las Resoluciones 333 de 2011 y 2674 de 2013 y aquellas que la modifiquen, adicionen o deroguen. | D185: Libra | E185: 0
A186: 172 | B186: Café 3 (Compra) | C186: - Instantáneo, para máquinas automáticas - Tostión media - Empacada en bolsa de polipropileno aluminizada resistente a la humedad y al oxígeno. - Debe cumplir con las Resoluciones 333 de 2011 y 2674 de 2013 hasta la entrada en vigencia de la Resolución 810 de 2021 y aquellas que la modifiquen, adicionen o deroguen. | D186: Bolsa de mínimo 500 g | E186: 0
A187: 173 | B187: Café Social (Compra) | C187: - Diferentes tostiones - Puntaje en taza mayor o igual a a 82 puntos catación SCA y/o orgánico y/o artesanal y/o con Denominación de Origen - Empacada en bolsa de polipropileno aluminizada resistente a la humedad y al oxígeno. - Debe cumplir con las Resoluciones 333 de 2011 y 2674 de 2013 hasta la entrada en vigencia de la Resolución 810 de 2021 y aquellas que la modifiquen, adicionen o deroguen | D187: Bolsa de mínimo 500 g | E187: 0
A188: 174 | B188: Crema para café (Compra) | C188: - No láctea - Debe cumplir con Resolución 333 de 2011 sobre rotulado y etiquetado nutricional y las normas que la modifiquen | D188: Bolsas de mínimo 100 sobres de mínimo 4 g | E188: 0
A189: 175 | B189: Azúcar 1 (Compra) | C189: - Blanca - Empaque elaborado en materiales atóxicos - Debe cumplir con Resolución 333 de 2011 sobre rotulado y etiquetado nutricional y las normas que la modifiquen | D189: Bolsa de mínimo 200 sobres o tubipacks de 5 g | E189: 5 | I189: 2 | J189: 1 | K189: 1 | L189: 1
A190: 176 | B190: Azúcar 2 (Compra) | C190: - Blanca - Empaque elaborado en materiales atóxicos - Debe cumplir con Resolución 333 de 2011 sobre rotulado y etiquetado nutricional y las normas que la modifiquen | D190: Bolsa de mínimo 200 sobres o tubipacks de 3,5 g | E190: 0
A191: 177 | B191: Azúcar 3 (Compra) | C191: - Blanca - Empaque elaborado en materiales atóxicos - Debe cumplir con Resolución 333 de 2011 sobre rotulado y etiquetado nutricional y las normas que la modifiquen | D191: Libra | E191: 0
A192: 178 | B192: Azúcar 4 (Compra) | C192: - Morena - Empaque elaborado en materiales atóxicos - Debe cumplir con Resolución 333 de 2011 sobre rotulado y etiquetado nutricional y las normas que la modifiquen | D192: Libra | E192: 0
A193: 179 | B193: Endulzante (Compra) | C193: - Sin calorías - Empaque elaborado en materiales atóxicos - Debe cumplir con Resolución 333 de 2011 sobre rotulado y etiquetado nutricional y las normas que la modifiquen | D193: Caja de mínimo 100 sobres | E193: 0
A194: 180 | B194: Panela (Compra) | C194: - Panela instantánes pulverizada, deshidratada - Debe cumplir con la NTC 1311 sobreo productos agrícolas - Empaque elaborado en materiales atóxicos - Debe cumplir con la Resolucion 779 de 2006 - Debe cumplir con Resolución 333 de 2011 sobre rotulado y etiquetado nutricional y las normas que la modifiquen | D194: Bolsa de mínimo 100 sobres de mínimo 5 g | E194: 0
A195: 181 | B195: Sal 1 (Compra) | C195: - Refinada, con un 99,9% de pureza - Con adiciones de yodo y flúor - Debe cumplir con Resolución 333 de 2011 sobre rotulado y etiquetado nutricional y las normas que la modifiquen | D195: Libra (500 g) | E195: 0
A196: 182 | B196: Sal 2 (Compra) | C196: - Refinada, con un 99,9% de pureza - Con adiciones de yodo y flúor - Debe cumplir con Resolución 333 de 2011 sobre rotulado y etiquetado nutricional y las normas que la modifiquen | D196: 1 kg (1.000 g) | E196: 0
A197: 183 | B197: Sal 3 (Compra) | C197: - Refinada, con un 99,9% de pureza - Con adiciones de yodo y flúor - Debe cumplir con Resolución 333 de 2011 sobre rotulado y etiquetado nutricional y las normas que la modifiquen | D197: Salero de mínimo 130 g | E197: 0
A198: 184 | B198: Aromática (Compra) | C198: - Para infusión - Cajas disponbiles en mínimo tres (3) sabores - 100% naturales | D198: Cajas de mínimo 20 en sobres. | E198: 4 | I198: 1 | J198: 1 | K198: 1 | L198: 1
A199: 185 | B199: Aromática de panela (Compra) | C199: - Para infusión - Cajas disponbiles en sabor limón, yerbabuena, canela y naranja - Panela 100% natural y ecológica - Embalaje en cartón corrugado - Debe cumplir con la NTC 1311 sobre productos agrícolas - Empaque elaborado en materiales atóxicos - Debe cumplir con la Resolucion 779 de 2006 - Debe cumplir con Resolución 333 de 2011 sobre rotulado y etiquetado nutricional y las normas que la modifiquen. - Uso: Panela instantánea soluble al agua - Azúcares reductores expresados en glucosa, mínimo 5,74%; azúcares no reductores expresados en sacarosa, máximo 90%; proteínas, mínimo 0,2%; cenizas, mínimo 1%; humedad, máximo 5%; plomo expresado como As en mg/kg, máximo 0,1; - No debe contener PVC o Poliestireno expandido u otros plásticos de un solo uso tanto en el envase como en el embalaje. | D199: Cajas de mínimo 20 en sobres. | E199: 4 | I199: 1 | J199: 1 | K199: 1 | L199: 1
A200: 186 | B200: Bebida de frutas (Compra) | C200: - En jarabe - Cajas disponbiles en mínimo tres (3) sabores | D200: Caja de mínimo 20 sobres | E200: 4 | I200: 1 | J200: 1 | K200: 1 | L200: 1
A201: 187 | B201: Bebida de panela (Compra) | C201: - Bebida instantánea granulada - Cajas disponbiles en mínimo tres (3) sabores | D201: Caja de mínimo 25 sobres | E201: 0
A202: 188 | B202: Té (Compra) | C202: - Para infusión - Cajas disponbiles en mínimo tres (3) sabores - 100% naturales | D202: Caja x 20 mínimo sobres | E202: 0
A203: 189 | B203: Infusión frutal (Compra) | C203: - Para infusión - 100% naturales - Sabores surtidos | D203: Caja x 20 mínimo sobres | E203: 0
A204: 190 | B204: Agua potable 1 (Compra) | C204: - Agua potable purificada sin gas | D204: Botella plástica de mínimo 250 ml | E204: 0
A205: 191 | B205: Agua potable 2 (Compra) | C205: - Agua potable purificada sin gas | D205: Botella plástica de mínimo 500 ml | E205: 0
A206: 192 | B206: Agua potable 3 (Compra) | C206: - Agua potable purificada - Con gas | D206: Botella plástica de mínimo 500 ml | E206: 0
A207: 193 | B207: Agua potable 4 (Compra) | C207: - Agua potable potable purificada | D207: Botellón de mínimo 18.9 L | E207: =SUM(I207:L207) -> 44 | I207: 24 | J207: 4 | K207: 8 | L207: 8
A208: 194 | B208: Válvula dispensadora para botellón de agua (Compra) | C208: -Válvula en material plástico con boquilla ajustable a los diferentes tipos de botellones | D208: Unidad | E208: 0
... 214 more rows

Sheet Resumen - CSV
B1: RESUMEN DE COTIZACIÓN
B2: =+'Solicitud de Cotización General'!A4 -> Versión: 42 ---- 14/05/2024
B3: Región de Cobertura: | D3: ='Solicitud de Cotización General'!H9 -> 10
B6: Paquete de Servicios | J6: Valores
B7: Item | C7: Categoría | D7: Servicio | E7: Característica 1 | F7: Disponibilidad | G7: Cantidad | H7: Unidad | I7: Vigencia / Unidad | J7: Valor unitario | K7: Nuevo precio cláusula 8 | L7: Valor Mensual / Valor X Unidad | M7: Recargo por Trabajo nocturno, extra, dominical y festivo | N7: Recargo por dotación especial | O7: Valor Total | P7: NomCoupa
B8: 1 | C8: Servicio de Personal | D8: Operario de aseo y cafetería | E8: Operario de aseo y cafetería | F8: Tiempo Completo | G8: 4 | H8: Mes | I8: 7 | J8: =VLOOKUP(D8,Precios!$F:$K,6,0) -> 2465868 | K8: =ROUND(J8/(1-VLOOKUP("Total porcentaje:",'Solicitud de Cotización General'!D:F,3,0)),2) -> 2465868 | L8: =ROUND(G8*K8,2) -> 9863472 | O8: =ROUND(I8*L8,2) -> 69044304 | P8: =IF($C8="Bienes de Aseo y Cafetería","Bienes de Aseo y Cafetería",IF($C8="Servicios Especiales",$D8&" - "&G8,$E8&" "&$F8&" - "&G8)) -> Operario de aseo y cafetería Tiempo Completo - 4
B9: =B8+1 -> 2 | C9: Bienes de Aseo y Cafetería | D9: Jabón para loza 2 (Compra) | E9: Jabón para loza 2 (Compra) | G9: 4 | H9: Und | I9: 7 | J9: 2934 | K9: =ROUND(J9/(1-VLOOKUP("Total porcentaje:",'Solicitud de Cotización General'!D:F,3,0)),2) -> 2934 | L9: =ROUND(G9*K9,2) -> 11736 | O9: =ROUND(I9*L9,2) -> 82152 | P9: =IF($C9="Servicios Especiales",$D9&" - "&G9,$E9&" "&$F9&" - "&G9) -> Jabón para loza 2 (Compra) - 4
B10: 3 | C10: Bienes de Aseo y Cafetería | D10: Jabón en barra (Compra) | E10: Jabón en barra (Compra) | G10: 8 | H10: Und | I10: 7 | J10: 3309 | K10: =ROUND(J10/(1-VLOOKUP("Total porcentaje:",'Solicitud de Cotización General'!D:F,3,0)),2) -> 3309 | L10: 26472 | O10: 185304 | P10: Jabón en barra (Compra) - 8
B11: 4 | C11: Bienes de Aseo y Cafetería | D11: Jabón abrasivo (Compra) | E11: Jabón abrasivo (Compra) | G11: 4 | H11: Und | I11: 7 | J11: 4225 | K11: =ROUND(J11/(1-VLOOKUP("Total porcentaje:",'Solicitud de Cotización General'!D:F,3,0)),2) -> 4225 | L11: 16900 | O11: 118300 | P11: Jabón abrasivo (Compra) - 4
B12: 5 | C12: Bienes de Aseo y Cafetería | D12: Jabón de dispensador para manos 1 (Compra) | E12: Jabón de dispensador para manos 1 (Compra) | G12: 4 | H12: Und | I12: 7 | J12: 2459 | K12: =ROUND(J12/(1-VLOOKUP("Total porcentaje:",'Solicitud de Cotización General'!D:F,3,0)),2) -> 2459 | L12: 9836 | O12: 68852 | P12: Jabón de dispensador para manos 1 (Compra) - 4
B13: 6 | C13: Bienes de Aseo y Cafetería | D13: Limpiador multiusos 2 (Compra) | E13: Limpiador multiusos 2 (Compra) | G13: 4 | H13: Und | I13: 7 | J13: 2183 | K13: =ROUND(J13/(1-VLOOKUP("Total porcentaje:",'Solicitud de Cotización General'!D:F,3,0)),2) -> 2183 | L13: 8732 | O13: 61124 | P13: Limpiador multiusos 2 (Compra) - 4
B14: 7 | C14: Bienes de Aseo y Cafetería | D14: Limpiador multiusos 3 (Compra) | E14: Limpiador multiusos 3 (Compra) | G14: 4 | H14: Und | I14: 7 | J14: 1946 | K14: =ROUND(J14/(1-VLOOKUP("Total porcentaje:",'Solicitud de Cotización General'!D:F,3,0)),2) -> 1946 | L14: 7784 | O14: 54488 | P14: Limpiador multiusos 3 (Compra) - 4
B15: 8 | C15: Bienes de Aseo y Cafetería | D15: Limpiador desinfectante para uso general 2 (Compra) | E15: Limpiador desinfectante para uso general 2 (Compra) | G15: 4 | H15: Und | I15: 7 | J15: 2976 | K15: =ROUND(J15/(1-VLOOKUP("Total porcentaje:",'Solicitud de Cotización General'!D:F,3,0)),2) -> 2976 | L15: 11904 | O15: 83328 | P15: Limpiador desinfectante para uso general 2 (Compra) - 4
B16: 9 | C16: Bienes de Aseo y Cafetería | D16: Pastilla desinfectante para sanitario (Compra) | E16: Pastilla desinfectante para sanitario (Compra) | G16: 12 | H16: Und | I16: 7 | J16: 3522 | K16: =ROUND(J16/(1-VLOOKUP("Total porcentaje:",'Solicitud de Cotización General'!D:F,3,0)),2) -> 3522 | L16: 42264 | O16: 295848 | P16: Pastilla desinfectante para sanitario (Compra) - 12
B17: 10 | C17: Bienes de Aseo y Cafetería | D17: Líquido para limpiar vidrios 2 (Compra) | E17: Líquido para limpiar vidrios 2 (Compra) | G17: 4 | H17: Und | I17: 7 | J17: 3082 | K17: =ROUND(J17/(1-VLOOKUP("Total porcentaje:",'Solicitud de Cotización General'!D:F,3,0)),2) -> 3082 | L17: 12328 | O17: 86296 | P17: Líquido para limpiar vidrios 2 (Compra) - 4
B18: 11 | C18: Bienes de Aseo y Cafetería | D18: Blanqueador o hipoclorito 1 (Compra) | E18: Blanqueador o hipoclorito 1 (Compra) | G18: 4 | H18: Und | I18: 7 | J18: 5812 | K18: =ROUND(J18/(1-VLOOKUP("Total porcentaje:",'Solicitud de Cotización General'!D:F,3,0)),2) -> 5812 | L18: 23248 | O18: 162736 | P18: Blanqueador o hipoclorito 1 (Compra) - 4
B19: 12 | C19: Bienes de Aseo y Cafetería | D19: Líquido para limpiar equipos de oficina 1 (Compra) | E19: Líquido para limpiar equipos de oficina 1 (Compra) | G19: 4 | H19: Und | I19: 7 | J19: 3606 | K19: =ROUND(J19/(1-VLOOKUP("Total porcentaje:",'Solicitud de Cotización General'!D:F,3,0)),2) -> 3606 | L19: 14424 | O19: 100968 | P19: Líquido para limpiar equipos de oficina 1 (Compra) - 4
B20: 13 | C20: Bienes de Aseo y Cafetería | D20: Lustrador de muebles (Compra) | E20: Lustrador de muebles (Compra) | G20: 4 | H20: Und | I20: 7 | J20: 1992 | K20: =ROUND(J20/(1-VLOOKUP("Total porcentaje:",'Solicitud de Cotización General'!D:F,3,0)),2) -> 1992 | L20: 7968 | O20: 55776 | P20: Lustrador de muebles (Compra) - 4
B21: 14 | C21: Bienes de Aseo y Cafetería | D21: Ambientador 2 (Compra) | E21: Ambientador 2 (Compra) | G21: 4 | H21: Und | I21: 7 | J21: 8436 | K21: =ROUND(J21/(1-VLOOKUP("Total porcentaje:",'Solicitud de Cotización General'!D:F,3,0)),2) -> 8436 | L21: 33744 | O21: 236208 | P21: Ambientador 2 (Compra) - 4
B22: 15 | C22: Bienes de Aseo y Cafetería | D22: Insecticida 1 (Compra) | E22: Insecticida 1 (Compra) | G22: 4 | H22: Und | I22: 7 | J22: 12139 | K22: =ROUND(J22/(1-VLOOKUP("Total porcentaje:",'Solicitud de Cotización General'!D:F,3,0)),2) -> 12139 | L22: 48556 | O22: 339892 | P22: Insecticida 1 (Compra) - 4
B23: 16 | C23: Bienes de Aseo y Cafetería | D23: Limpiones 1 (Compra) | E23: Limpiones 1 (Compra) | G23: 8 | H23: Und | I23: 7 | J23: 1314 | K23: =ROUND(J23/(1-VLOOKUP("Total porcentaje:",'Solicitud de Cotización General'!D:F,3,0)),2) -> 1314 | L23: 10512 | O23: 73584 | P23: Limpiones 1 (Compra) - 8
B24: 17 | C24: Bienes de Aseo y Cafetería | D24: Bayetilla 1 (Compra) | E24: Bayetilla 1 (Compra) | G24: 4 | H24: Und | I24: 7 | J24: 1622 | K24: =ROUND(J24/(1-VLOOKUP("Total porcentaje:",'Solicitud de Cotización General'!D:F,3,0)),2) -> 1622 | L24: 6488 | O24: 45416 | P24: Bayetilla 1 (Compra) - 4
B25: 18 | C25: Bienes de Aseo y Cafetería | D25: Bayetilla 2 (Compra) | E25: Bayetilla 2 (Compra) | G25: 4 | H25: Und | I25: 7 | J25: 1622 | K25: =ROUND(J25/(1-VLOOKUP("Total porcentaje:",'Solicitud de Cotización General'!D:F,3,0)),2) -> 1622 | L25: 6488 | O25: 45416 | P25: Bayetilla 2 (Compra) - 4
B26: 19 | C26: Bienes de Aseo y Cafetería | D26: Toalla en tela blanca para pisos por metro (repuesto de haraganes) (Compra) | E26: Toalla en tela blanca para pisos por metro (repuesto de haraganes) (Compra) | G26: 4 | H26: Und | I26: 7 | J26: 3894 | K26: =ROUND(J26/(1-VLOOKUP("Total porcentaje:",'Solicitud de Cotización General'!D:F,3,0)),2) -> 3894 | L26: 15576 | O26: 109032 | P26: Toalla en tela blanca para pisos por metro (repuesto de haraganes) (Compra) - 4
B27: 20 | C27: Bienes de Aseo y Cafetería | D27: Paño absorbente multiusos 2 (Compra) | E27: Paño absorbente multiusos 2 (Compra) | G27: 8 | H27: Und | I27: 7 | J27: 1299 | K27: =ROUND(J27/(1-VLOOKUP("Total porcentaje:",'Solicitud de Cotización General'!D:F,3,0)),2) -> 1299 | L27: 10392 | O27: 72744 | P27: Paño absorbente multiusos 2 (Compra) - 8
B28: 21 | C28: Bienes de Aseo y Cafetería | D28: Escoba 3 (Compra) | E28: Escoba 3 (Compra) | G28: 4 | H28: Und | I28: 7 | J28: 4054 | K28: =ROUND(J28/(1-VLOOKUP("Total porcentaje:",'Solicitud de Cotización General'!D:F,3,0)),2) -> 4054 | L28: 16216 | O28: 113512 | P28: Escoba 3 (Compra) - 4
B29: 22 | C29: Bienes de Aseo y Cafetería | D29: Trapero 4 (Compra) | E29: Trapero 4 (Compra) | G29: 4 | H29: Und | I29: 7 | J29: 6309 | K29: =ROUND(J29/(1-VLOOKUP("Total porcentaje:",'Solicitud de Cotización General'!D:F,3,0)),2) -> 6309 | L29: 25236 | O29: 176652 | P29: Trapero 4 (Compra) - 4
B30: 23 | C30: Bienes de Aseo y Cafetería | D30: Bolsas plásticas 8 (Compra) | E30: Bolsas plásticas 8 (Compra) | G30: 12 | H30: Und | I30: 7 | J30: 1764 | K30: =ROUND(J30/(1-VLOOKUP("Total porcentaje:",'Solicitud de Cotización General'!D:F,3,0)),2) -> 1764 | L30: 21168 | O30: 148176 | P30: Bolsas plásticas 8 (Compra) - 12
B31: 24 | C31: Bienes de Aseo y Cafetería | D31: Bolsas plásticas 21 (Compra) | E31: Bolsas plásticas 21 (Compra) | G31: 20 | H31: Und | I31: 7 | J31: 4843 | K31: =ROUND(J31/(1-VLOOKUP("Total porcentaje:",'Solicitud de Cotización General'!D:F,3,0)),2) -> 4843 | L31: 96860 | O31: 678020 | P31: Bolsas plásticas 21 (Compra) - 20
B32: 25 | C32: Bienes de Aseo y Cafetería | D32: Bolsas plásticas 22 (Compra) | E32: Bolsas plásticas 22 (Compra) | G32: 20 | H32: Und | I32: 7 | J32: 3697 | K32: =ROUND(J32/(1-VLOOKUP("Total porcentaje:",'Solicitud de Cotización General'!D:F,3,0)),2) -> 3697 | L32: 73940 | O32: 517580 | P32: Bolsas plásticas 22 (Compra) - 20
B33: 26 | C33: Bienes de Aseo y Cafetería | D33: Bolsas plásticas 23 (Compra) | E33: Bolsas plásticas 23 (Compra) | G33: 20 | H33: Und | I33: 7 | J33: 3697 | K33: =ROUND(J33/(1-VLOOKUP("Total porcentaje:",'Solicitud de Cotización General'!D:F,3,0)),2) -> 3697 | L33: 73940 | O33: 517580 | P33: Bolsas plásticas 23 (Compra) - 20
B34: 27 | C34: Bienes de Aseo y Cafetería | D34: Papel higiénico 2 (Compra) | E34: Papel higiénico 2 (Compra) | G34: 4 | H34: Und | I34: 7 | J34: 11403 | K34: =ROUND(J34/(1-VLOOKUP("Total porcentaje:",'Solicitud de Cotización General'!D:F,3,0)),2) -> 11403 | L34: 45612 | O34: 319284 | P34: Papel higiénico 2 (Compra) - 4
B35: 28 | C35: Bienes de Aseo y Cafetería | D35: Papel higiénico 5 (Compra) | E35: Papel higiénico 5 (Compra) | G35: 4 | H35: Und | I35: 7 | J35: 11809 | K35: =ROUND(J35/(1-VLOOKUP("Total porcentaje:",'Solicitud de Cotización General'!D:F,3,0)),2) -> 11809 | L35: 47236 | O35: 330652 | P35: Papel higiénico 5 (Compra) - 4
B36: 29 | C36: Bienes de Aseo y Cafetería | D36: Toallas para manos 4 (Compra) | E36: Toallas para manos 4 (Compra) | G36: 4 | H36: Und | I36: 7 | J36: 24364 | K36: =ROUND(J36/(1-VLOOKUP("Total porcentaje:",'Solicitud de Cotización General'!D:F,3,0)),2) -> 24364 | L36: 97456 | O36: 682192 | P36: Toallas para manos 4 (Compra) - 4
B37: 30 | C37: Bienes de Aseo y Cafetería | D37: Toallas para manos 6 (Compra) | E37: Toallas para manos 6 (Compra) | G37: 4 | H37: Und | I37: 7 | J37: 6092 | K37: =ROUND(J37/(1-VLOOKUP("Total porcentaje:",'Solicitud de Cotización General'!D:F,3,0)),2) -> 6092 | L37: 24368 | O37: 170576 | P37: Toallas para manos 6 (Compra) - 4
B38: 31 | C38: Bienes de Aseo y Cafetería | D38: Vasos biodegradables 2 (Compra) | E38: Vasos biodegradables 2 (Compra) | G38: 4 | H38: Und | I38: 7 | J38: 8839 | K38: =ROUND(J38/(1-VLOOKUP("Total porcentaje:",'Solicitud de Cotización General'!D:F,3,0)),2) -> 8839 | L38: 35356 | O38: 247492 | P38: Vasos biodegradables 2 (Compra) - 4
B39: 32 | C39: Bienes de Aseo y Cafetería | D39: Café 1 (Compra) | E39: Café 1 (Compra) | G39: 20 | H39: Und | I39: 7 | J39: 16725 | K39: =ROUND(J39/(1-VLOOKUP("Total porcentaje:",'Solicitud de Cotización General'!D:F,3,0)),2) -> 16725 | L39: 334500 | O39: 2341500 | P39: Café 1 (Compra) - 20
B40: 33 | C40: Bienes de Aseo y Cafetería | D40: Azúcar 1 (Compra) | E40: Azúcar 1 (Compra) | G40: 5 | H40: Und | I40: 7 | J40: 8540 | K40: =ROUND(J40/(1-VLOOKUP("Total porcentaje:",'Solicitud de Cotización General'!D:F,3,0)),2) -> 8540 | L40: 42700 | O40: 298900 | P40: Azúcar 1 (Compra) - 5
B41: 34 | C41: Bienes de Aseo y Cafetería | D41: Aromática (Compra) | E41: Aromática (Compra) | G41: 4 | H41: Und | I41: 7 | J41: 1496 | K41: =ROUND(J41/(1-VLOOKUP("Total porcentaje:",'Solicitud de Cotización General'!D:F,3,0)),2) -> 1496 | L41: 5984 | O41: 41888 | P41: Aromática (Compra) - 4
B42: 35 | C42: Bienes de Aseo y Cafetería | D42: Aromática de panela (Compra) | E42: Aromática de panela (Compra) | G42: 4 | H42: Und | I42: 7 | J42: 3701 | K42: =ROUND(J42/(1-VLOOKUP("Total porcentaje:",'Solicitud de Cotización General'!D:F,3,0)),2) -> 3701 | L42: 14804 | O42: 103628 | P42: Aromática de panela (Compra) - 4
B43: 36 | C43: Bienes de Aseo y Cafetería | D43: Bebida de frutas (Compra) | E43: Bebida de frutas (Compra) | G43: 4 | H43: Und | I43: 7 | J43: 9639 | K43: =ROUND(J43/(1-VLOOKUP("Total porcentaje:",'Solicitud de Cotización General'!D:F,3,0)),2) -> 9639 | L43: 38556 | O43: 269892 | P43: Bebida de frutas (Compra) - 4
B44: 37 | C44: Bienes de Aseo y Cafetería | D44: Agua potable 4 (Compra) | E44: Agua potable 4 (Compra) | G44: 44 | H44: Und | I44: 7 | J44: 10903 | K44: =ROUND(J44/(1-VLOOKUP("Total porcentaje:",'Solicitud de Cotización General'!D:F,3,0)),2) -> 10903 | L44: 479732 | O44: 3358124 | P44: Agua potable 4 (Compra) - 44
B45: 38 | C45: Bienes de Aseo y Cafetería | D45: Atomizadores (Compra) | E45: Atomizadores (Compra) | G45: 4 | H45: Und | I45: 7 | J45: 1566 | K45: =ROUND(J45/(1-VLOOKUP("Total porcentaje:",'Solicitud de Cotización General'!D:F,3,0)),2) -> 1566 | L45: 6264 | O45: 43848 | P45: Atomizadores (Compra) - 4
B46: 39 | C46: Bienes de Aseo y Cafetería | D46: Greca para tintos 1 (Arrendamiento) | E46: Greca para tintos 1 (Arrendamiento) | G46: 1 | H46: Und | I46: 7 | J46: 36331 | K46: =ROUND(J46/(1-VLOOKUP("Total porcentaje:",'Solicitud de Cotización General'!D:F,3,0)),2) -> 36331 | L46: 36331 | O46: 254317 | P46: Greca para tintos 1 (Arrendamiento) - 1
B47: 1. Si requiere agregue o elimine filas | M47: Recargo por Trabajo nocturno, extra, dominical y festivo | N47: =SUM(L8:L8) -> 9863472 | O47: =SUM(M8:M8) -> 0 | P47: =IF($C47="Servicios Especiales",$D47&" - "&G47,$E47&" "&$F47&" - "&G47) -> -
M48: Recargo por dotación especial | O48: =SUM(N8:N8) -> 0 | P48: -
M49: Subtotal | O49: =SUM(O8:O48) -> 81935581 | P49: -
C50: NOTA: para realizar la solicitud de cotización la Entidad Compradora debe cargar en la plantilla de cotización: 1. Este archivo del Excel con todo el detalle de las especificaciones del servicio. Este archivo se carga como un anexo en la sección "Anexos" de la plantilla. 2. Los ítems que requiere y que se generan en la plantilla creando el archivo CSV al seleccionar el botón "Generar Solicitud" de esta pestaña. Los ítems deben cargarse en la plantilla en la sección "Artículos y lotes" seleccionando "agregar nuevo" y luego "agregar desde CSV". | M50: % AIU | N50: =VLOOKUP("Porcentaje de AIU",Precios!$F:$K,6,0) -> 0.1 | O50: =ROUND(O49*N50,2) -> 8193558.1 | P50: -
M51: IVA | O51: =IF($D$3<>12,ROUND(IF(N50<10%,(O49*10%)*19%,(O49*N50)*19%),0),0) -> 1556776 | P51: -
M52: Total | O52: =SUM(O49:O51) -> 91685915.1 | P52: -
P53: -
P54: -
P55: -
P56: -

Sheet Cotizacion Bienes de Aseo y Ca
A2: FORMATO DE COTIZACIÓN BIENES DE ASEO Y CAFETERÍA
A4: 3. Bienes de Aseo y Cafetería
A5: Regional | C5: =Cotizacion!D3 -> 10 | J5: Items | K5: Porcentaje
A6: Proveedor | C6: =Cotizacion!D4 -> CONSORCIO KIOS | F6: Total Items a cotizar | J6: =COUNTIF(E14:$E$421,">0") -> 38 | K6: 1
A7: Observaciones | F7: Items con descuento hasta 25% | J7: =COUNTIF(H14:$H$421,">"&0.2) -> 19 | K7: =IFERROR(J7/J6,0) -> 0.5
F8: Items con descuento hasta 20% | J8: =COUNTIFS(H14:$H$421,"<="&0.2,H14:$H$421,"<>0") -> 19 | K8: =IFERROR(J8/J6,0) -> 0.5
F9: Items pendientes de cotizar | J9: =J6-J7-J8 -> 0 | K9: =IFERROR(J9/J6,0) -> 0
A11: A. Insumos | J11: =IFERROR(IF(ISEVEN($J$6),IF($K$7<=0.5,0.2501,0.2),IF(($J$7-1)<((($J$6-1)/2)+1),0.2501,0.2)),0) -> 0.2501 | M11: Detalle Sede | N11: Detalle Sede | O11: Detalle Sede | P11: Detalle Sede
A13: No. | B13: Bien | C13: Especificación | D13: Presentación | E13: Cantidad Mensual | F13: Precio unitario | G13: Precio Mínimo | H13: Descuento sobre precio mínimo | I13: Descuento % | J13: Precio Unitario con Descuento | K13: Total | L13: Minimo | M13: Sede 1 | N13: Sede 2 | O13: Sede 3 | P13: Sede 4
A14: 0 | B14: Jardineria mt2 | C14: Servicio especializado de jardinería en metros cuadrados. | D14: Metros cuadrados | E14: =SUM(M14:P14) -> 0 | F14: =IF(E14>0,(VLOOKUP($C$5&$C$6&B14,ConsolidadoServicios!$A:$K,11,0)),0) -> 0 | G14: =IF(E14>0,(VLOOKUP(B14,Minimos!$A:$B,2,0)),0) -> 0 | H14: =IF(E14>0,IF(I14>0,(G14-J14)/G14,0),0) -> 0 | J14: =ROUND((F14*(1-I14)),2) -> 0 | K14: =J14*E14 -> 0 | L14: =ROUND(VLOOKUP($C$5&B14,ConsolidadoServicios!P:Q,2,0)*80%,2) -> 0 | M14: ='Detalle Bienes de Aseo y Caf'!I14 -> 0 | N14: ='Detalle Bienes de Aseo y Caf'!J14 -> 0 | O14: ='Detalle Bienes de Aseo y Caf'!K14 -> 0 | P14: ='Detalle Bienes de Aseo y Caf'!L14 -> 0
A15: 1 | B15: Jabón para loza 1 (Compra) | C15: - Con agente(s) tensoactivo(s) principal(es) con efecto limpiador y desengrasante en una concentración mínima del 8%. - Disponible en mínimo (2) dos fragancias - El envase debe estar correctamente etiquetado bajo los parámetros establecidos en el sistema globalmente armonizado (Decreto 1496 de 2018) indicando: nombre comercial del producto, pictogramas de los compuestos peligrosos si aplica e instrucciones de uso de acuerdo con los tiempos de transición descritos en el artículo 24 de la Resolución 773 de 2021. - Debe contener concentraciones de fósforo iguales o inferiores a 0.65% de fósforo (Resolución 0689 de 2016) | D15: Líquido, en recipiente plástico con capacidad mínima de 3.785 ml | E15: =SUM(M15:P15) -> 0 | F15: =IF(E15>0,(VLOOKUP($C$5&$C$6&B15,ConsolidadoServicios!$A:$K,11,0)),0) -> 0 | G15: =IF(E15>0,(VLOOKUP(B15,Minimos!$A:$B,2,0)),0) -> 0 | H15: =IF(E15>0,IF(I15>0,(G15-J15)/G15,0),0) -> 0 | J15: =ROUND((F15*(1-I15)),2) -> 0 | K15: =J15*E15 -> 0 | L15: =ROUND(VLOOKUP($C$5&B15,ConsolidadoServicios!P:Q,2,0)*80%,2) -> 0 | M15: ='Detalle Bienes de Aseo y Caf'!I15 -> 0 | N15: ='Detalle Bienes de Aseo y Caf'!J15 -> 0 | O15: ='Detalle Bienes de Aseo y Caf'!K15 -> 0 | P15: ='Detalle Bienes de Aseo y Caf'!L15 -> 0
A16: 2 | B16: Jabón para loza 2 (Compra) | C16: - Con agente(s) tensoactivo(s) principal(es) con efecto limpiador y desengrasante en una concentración mínima del 8%. - Disponible en mínimo (2) dos fragancias - El envase debe estar correctamente etiquetado bajo los parámetros establecidos en el sistema globalmente armonizado (Decreto 1496 de 2018) indicando: nombre comercial del producto, pictogramas de los compuestos peligrosos si aplica e instrucciones de uso de acuerdo con los tiempos de transición descritos en el artículo 24 de la Resolución 773 de 2021. - Debe contener concentraciones de fósforo iguales o inferiores a 0.65% de fósforo (Resolución 0689 de 2016) | D16: Líquido, en recipiente plástico de mínimo 500 ml | E16: 4 | F16: =IF(E16>0,(VLOOKUP($C$5&$C$6&B16,ConsolidadoServicios!$A:$K,11,0)),0) -> 4573 | G16: =IF(E16>0,(VLOOKUP(B16,Minimos!$A:$B,2,0)),0) -> 2934 | H16: =IF(E16>0,IF(I16>0,(G16-J16)/G16,0),0) -> 0.2 | I16: 0.4867264378 | J16: =ROUND((F16*(1-I16)),2) -> 2347.2 | K16: =J16*E16 -> 9388.8 | L16: =ROUND(VLOOKUP($C$5&B16,ConsolidadoServicios!P:Q,2,0)*80%,2) -> 0 | M16: ='Detalle Bienes de Aseo y Caf'!I16 -> 1 | N16: ='Detalle Bienes de Aseo y Caf'!J16 -> 1 | O16: ='Detalle Bienes de Aseo y Caf'!K16 -> 1 | P16: ='Detalle Bienes de Aseo y Caf'!L16 -> 1
A17: 3 | B17: Jabón para loza 3 (Compra) | C17: - Con agente(s) tensoactivo(s) principal(es) con efecto limpiador y desengrasante en una concentración mínima del 15%. - Disponible en mínimo (2) dos fragancias - El envase debe estar correctamente etiquetados bajo los parámetros establecidos en el sistema globalmente armonizado (Decreto 1496 de 2018) indicando: nombre comercial del producto, pictogramas de los compuestos peligrosos si aplica e instrucciones de uso. - Debe contener concentraciones de fósforo iguales o inferiores a 0.65% de fósforo (Resolución 0689 de 2016) | D17: Crema, en recipiente plástico de mínimo 850 g | E17: 0 | F17: =IF(E17>0,(VLOOKUP($C$5&$C$6&B17,ConsolidadoServicios!$A:$K,11,0)),0) -> 0 | G17: =IF(E17>0,(VLOOKUP(B17,Minimos!$A:$B,2,0)),0) -> 0 | H17: 0 | J17: 0 | K17: 0 | L17: =ROUND(VLOOKUP($C$5&B17,ConsolidadoServicios!P:Q,2,0)*80%,2) -> 0 | M17: ='Detalle Bienes de Aseo y Caf'!I17 -> 0 | N17: ='Detalle Bienes de Aseo y Caf'!J17 -> 0 | O17: ='Detalle Bienes de Aseo y Caf'!K17 -> 0 | P17: ='Detalle Bienes de Aseo y Caf'!L17 -> 0
A18: 4 | B18: Jabón para loza 4 (Compra) | C18: - Con agente(s) tensoactivo(s) con efecto limpiador y desengrasante. - Disponible en múltiples fragancias. - El envase debe estar correctamente etiquetado bajo los parámetros establecidos en el sistema globalmente armonizado (Decreto 1496 de 2018) indicando: nombre comercial del producto, pictogramas de los compuestos peligrosos si aplica e instrucciones de uso de acuerdo con los tiempos de transición descritos en el artículo 24 de la Resolución 773 de 2021. - Elaborado en material reciclable - Con etiqueta de amigable con el ambiente - Debe contener concentraciones de fósforo iguales o inferiores a 0.65% de fósforo (Resolución 0689 de 2016) | D18: Crema, en recipiente plástico de mínimo 1000 g | E18: 0 | F18: =IF(E18>0,(VLOOKUP($C$5&$C$6&B18,ConsolidadoServicios!$A:$K,11,0)),0) -> 0 | G18: =IF(E18>0,(VLOOKUP(B18,Minimos!$A:$B,2,0)),0) -> 0 | H18: 0 | J18: 0 | K18: 0 | L18: =ROUND(VLOOKUP($C$5&B18,ConsolidadoServicios!P:Q,2,0)*80%,2) -> 0 | M18: ='Detalle Bienes de Aseo y Caf'!I18 -> 0 | N18: ='Detalle Bienes de Aseo y Caf'!J18 -> 0 | O18: ='Detalle Bienes de Aseo y Caf'!K18 -> 0 | P18: ='Detalle Bienes de Aseo y Caf'!L18 -> 0
A19: 5 | B19: Jabón en barra (Compra) | C19: -Composición de ácidos grasos de mínimo 50%. - Debe contener concentraciones de fósforo iguales o inferiores a 0.65% de fósforo (Resolución 0689 de 2016) | D19: Barra, unidad con peso mínimo de 250 g en envoltura individual | E19: 8 | F19: =IF(E19>0,(VLOOKUP($C$5&$C$6&B19,ConsolidadoServicios!$A:$K,11,0)),0) -> 3856 | G19: =IF(E19>0,(VLOOKUP(B19,Minimos!$A:$B,2,0)),0) -> 2086 | H19: 0.25 | I19: 0.5942686722 | J19: 1564.5 | K19: 12516 | L19: =ROUND(VLOOKUP($C$5&B19,ConsolidadoServicios!P:Q,2,0)*80%,2) -> 0 | M19: ='Detalle Bienes de Aseo y Caf'!I19 -> 2 | N19: ='Detalle Bienes de Aseo y Caf'!J19 -> 2 | O19: ='Detalle Bienes de Aseo y Caf'!K19 -> 2 | P19: ='Detalle Bienes de Aseo y Caf'!L19 -> 2
A20: 6 | B20: Jabón en barra azul (Compra) | C20: - Todo tipo de uso - Biodegradable - No debe contener PVC o Poliestireno expandido u otros plásticos de un solo uso tanto en el envase como en el embalaje. - Debe contener concentraciones de fósforo iguales o inferiores a 0.65% de fósforo (Resolución 0689 de 2016) | D20: Barra, unidad con peso mínimo de 250 g en envoltura individual | E20: 0 | F20: =IF(E20>0,(VLOOKUP($C$5&$C$6&B20,ConsolidadoServicios!$A:$K,11,0)),0) -> 0 | G20: =IF(E20>0,(VLOOKUP(B20,Minimos!$A:$B,2,0)),0) -> 0 | H20: 0 | J20: 0 | K20: 0 | L20: =ROUND(VLOOKUP($C$5&B20,ConsolidadoServicios!P:Q,2,0)*80%,2) -> 0 | M20: ='Detalle Bienes de Aseo y Caf'!I20 -> 0 | N20: ='Detalle Bienes de Aseo y Caf'!J20 -> 0 | O20: ='Detalle Bienes de Aseo y Caf'!K20 -> 0 | P20: ='Detalle Bienes de Aseo y Caf'!L20 -> 0
A21: 7 | B21: Jabón abrasivo (Compra) | C21: -Con agente(s) tensoactivo(s) pincipal(es) con efecto limpiador, pulidor y desengrasante - Con agente activo mínimo del 5% - Debe contener concentraciones de fósforo iguales o inferiores a 0.65% de fósforo (Resolución 0689 de 2016) | D21: En polvo, en tarro de mínimo 500 g | E21: 4 | F21: =IF(E21>0,(VLOOKUP($C$5&$C$6&B21,ConsolidadoServicios!$A:$K,11,0)),0) -> 5326 | G21: =IF(E21>0,(VLOOKUP(B21,Minimos!$A:$B,2,0)),0) -> 3446 | H21: 0.2 | I21: 0.4823882839 | J21: 2756.8 | K21: 11027.2 | L21: =ROUND(VLOOKUP($C$5&B21,ConsolidadoServicios!P:Q,2,0)*80%,2) -> 0 | M21: ='Detalle Bienes de Aseo y Caf'!I21 -> 1 | N21: ='Detalle Bienes de Aseo y Caf'!J21 -> 1 | O21: ='Detalle Bienes de Aseo y Caf'!K21 -> 1 | P21: ='Detalle Bienes de Aseo y Caf'!L21 -> 1
A22: 8 | B22: Jabón de tocador 1 (Compra) | C22: - Elaborado con grasas vegetales - Con agente humectante - pH modificar entre PH 5,5 a 7 - Disponible en mínimo (2) dos fragancias - Debe estar correctamente etiquetados bajo los parámetros indicando: nombre comercial del producto, pictogramas de los compuestos peligrosos e instrucciones de uso - Debe contener concentraciones de fósforo iguales o inferiores a 0.65% de fósforo (Resolución 0689 de 2016) | D22: Barra, unidad con peso mínimo de 125 g en envoltura individual | E22: 0 | F22: =IF(E22>0,(VLOOKUP($C$5&$C$6&B22,ConsolidadoServicios!$A:$K,11,0)),0) -> 0 | G22: =IF(E22>0,(VLOOKUP(B22,Minimos!$A:$B,2,0)),0) -> 0 | H22: 0 | J22: 0 | K22: 0 | L22: =ROUND(VLOOKUP($C$5&B22,ConsolidadoServicios!P:Q,2,0)*80%,2) -> 0 | M22: ='Detalle Bienes de Aseo y Caf'!I22 -> 0 | N22: ='Detalle Bienes de Aseo y Caf'!J22 -> 0 | O22: ='Detalle Bienes de Aseo y Caf'!K22 -> 0 | P22: ='Detalle Bienes de Aseo y Caf'!L22 -> 0
A23: 9 | B23: Jabón de tocador 2 (Compra) | C23: - Jabón de tocador para manos en espuma - Líquido para manos en bolsa para dispensador spray y con boquilla especial de dispensador - Tapa tipo válvula, para dispensador, antibacterial y antiséptico - Con agente limpiador en una concentración mínima del 6% - Con agente humectante en una concentración mínima del 3% - Disponible en múltiples fragancias - Producto biodegradable basado en ingredientes orgánicos - El envase debe estar correctamente etiquetado bajo los parámetros establecidos en el sistema globalmente armonizado (Decreto 1496 de 2018) indicando: nombre comercial del producto, pictogramas de los compuestos peligrosos si aplica e instrucciones de uso de acuerdo con los tiempos de transición descritos en el artículo 24 de la Resolución 773 de 2021. - Elaborado en material reciclable - No debe contener PVC, Poliestireno expandido u otros plásticos de un solo uso tanto en el envase como en el embalaje. - Debe contener concentraciones de fósforo iguales o inferiores a 0.65% de fósforo (Resolución 0689 de 2016) | D23: Líquido, en bolsa con capacidad mínima de 800 ml | E23: 0 | F23: =IF(E23>0,(VLOOKUP($C$5&$C$6&B23,ConsolidadoServicios!$A:$K,11,0)),0) -> 0 | G23: =IF(E23>0,(VLOOKUP(B23,Minimos!$A:$B,2,0)),0) -> 0 | H23: 0 | J23: 0 | K23: 0 | L23: =ROUND(VLOOKUP($C$5&B23,ConsolidadoServicios!P:Q,2,0)*80%,2) -> 0 | M23: ='Detalle Bienes de Aseo y Caf'!I23 -> 0 | N23: ='Detalle Bienes de Aseo y Caf'!J23 -> 0 | O23: ='Detalle Bienes de Aseo y Caf'!K23 -> 0 | P23: ='Detalle Bienes de Aseo y Caf'!L23 -> 0
A24: 10 | B24: Jabón de dispensador para manos 1 (Compra) | C24: - Con agente limpiador en una concentración mínima del 6% - Con agente humectante en una concentración mínima del 3% - pH entre 5,5 a 7 - Disponible en mínimo (2) dos fragancias - Debe contener concentraciones de fósforo iguales o inferiores a 0.65% de fósforo (Resolución 0689 de 2016) | D24: Líquido, en recipiente plástico con dispensador y capacidad mínima de 500 ml | E24: 4 | F24: =IF(E24>0,(VLOOKUP($C$5&$C$6&B24,ConsolidadoServicios!$A:$K,11,0)),0) -> 5043 | G24: =IF(E24>0,(VLOOKUP(B24,Minimos!$A:$B,2,0)),0) -> 2459 | H24: 0.2 | I24: 0.6099147333 | J24: 1967.2 | K24: 7868.8 | L24: =ROUND(VLOOKUP($C$5&B24,ConsolidadoServicios!P:Q,2,0)*80%,2) -> 0 | M24: ='Detalle Bienes de Aseo y Caf'!I24 -> 1 | N24: ='Detalle Bienes de Aseo y Caf'!J24 -> 1 | O24: ='Detalle Bienes de Aseo y Caf'!K24 -> 1 | P24: ='Detalle Bienes de Aseo y Caf'!L24 -> 1
A25: 11 | B25: Jabón de dispensador para manos 2 (Compra) | C25: - Con agente limpiador en una concentración mínima del 6% - Con agente humectante en una concentración mínima del 3% - pH entre 5,5 a 7 - Disponible en mínimo (2) dos fragancias - Debe contener concentraciones de fósforo iguales o inferiores a 0.65% de fósforo (Resolución 0689 de 2016) | D25: Líquido, en recipiente plástico con capacidad mínima de 3.785 ml | E25: 0 | F25: =IF(E25>0,(VLOOKUP($C$5&$C$6&B25,ConsolidadoServicios!$A:$K,11,0)),0) -> 0 | G25: =IF(E25>0,(VLOOKUP(B25,Minimos!$A:$B,2,0)),0) -> 0 | H25: 0 | J25: 0 | K25: 0 | L25: =ROUND(VLOOKUP($C$5&B25,ConsolidadoServicios!P:Q,2,0)*80%,2) -> 0 | M25: ='Detalle Bienes de Aseo y Caf'!I25 -> 0 | N25: ='Detalle Bienes de Aseo y Caf'!J25 -> 0 | O25: ='Detalle Bienes de Aseo y Caf'!K25 -> 0 | P25: ='Detalle Bienes de Aseo y Caf'!L25 -> 0
A26: 12 | B26: Jabón de dispensador para manos 3 (Compra) | C26: - Con agente limpiador en una concentración mínima del 6%. - Con agente antibacterial en una concentración mínima del 0,2% - Con agente humectante en una concentración mínima del 3% - pH entre 5,5 a 7 - Disponible en mínimo (2) dos fragancias - Debe contener concentraciones de fósforo iguales o inferiores a 0.65% de fósforo (Resolución 0689 de 2016) | D26: Líquido, en recipiente plástico con capacidad mínima de 3.785 ml | E26: 0 | F26: =IF(E26>0,(VLOOKUP($C$5&$C$6&B26,ConsolidadoServicios!$A:$K,11,0)),0) -> 0 | G26: =IF(E26>0,(VLOOKUP(B26,Minimos!$A:$B,2,0)),0) -> 0 | H26: 0 | J26: 0 | K26: 0 | L26: =ROUND(VLOOKUP($C$5&B26,ConsolidadoServicios!P:Q,2,0)*80%,2) -> 0 | M26: ='Detalle Bienes de Aseo y Caf'!I26 -> 0 | N26: ='Detalle Bienes de Aseo y Caf'!J26 -> 0 | O26: ='Detalle Bienes de Aseo y Caf'!K26 -> 0 | P26: ='Detalle Bienes de Aseo y Caf'!L26 -> 0
A27: 13 | B27: Gel antibacterial para manos (Compra) | C27: - Con agente antibacterial en una concentración mínima del 0,2% - Con agente humectante - pH entre 5, 5 a 7 - Con fragancia | D27: Gel, en recipiente plástico con capacidad mínima de 3.785 ml | E27: 0 | F27: =IF(E27>0,(VLOOKUP($C$5&$C$6&B27,ConsolidadoServicios!$A:$K,11,0)),0) -> 0 | G27: =IF(E27>0,(VLOOKUP(B27,Minimos!$A:$B,2,0)),0) -> 0 | H27: 0 | J27: 0 | K27: 0 | L27: =ROUND(VLOOKUP($C$5&B27,ConsolidadoServicios!P:Q,2,0)*80%,2) -> 0 | M27: ='Detalle Bienes de Aseo y Caf'!I27 -> 0 | N27: ='Detalle Bienes de Aseo y Caf'!J27 -> 0 | O27: ='Detalle Bienes de Aseo y Caf'!K27 -> 0 | P27: ='Detalle Bienes de Aseo y Caf'!L27 -> 0
A28: 14 | B28: Dispensador de gel antibacterial para manos (Compra) | C28: - Material: Plástico - Tipo de instalación: De pared - Incluye Chazos y tornillos - Con visor para determinar el nivel del líquido - Con ventanilla en la parte superior para añadir el gel - Funcionamiento: Manual | D28: Recipiente con capacidad mínima de 500 ml (Unidad) | E28: 0 | F28: =IF(E28>0,(VLOOKUP($C$5&$C$6&B28,ConsolidadoServicios!$A:$K,11,0)),0) -> 0 | G28: =IF(E28>0,(VLOOKUP(B28,Minimos!$A:$B,2,0)),0) -> 0 | H28: 0 | J28: 0 | K28: 0 | L28: =ROUND(VLOOKUP($C$5&B28,ConsolidadoServicios!P:Q,2,0)*80%,2) -> 0 | M28: ='Detalle Bienes de Aseo y Caf'!I28 -> 0 | N28: ='Detalle Bienes de Aseo y Caf'!J28 -> 0 | O28: ='Detalle Bienes de Aseo y Caf'!K28 -> 0 | P28: ='Detalle Bienes de Aseo y Caf'!L28 -> 0
A29: 15 | B29: Limpiador multiusos 1 (Compra) | C29: - Con agente(s) tensoactivo(s) principal(es) con efecto limpiador en una concentración mínima del 8% - Disponible en mínimo (2) dos fragancias - El envase debe estar correctamente etiquetado bajo los parámetros establecidos en el sistema globalmente armonizado (Decreto 1496 de 2018) indicando: nombre comercial del producto, pictogramas de los compuestos peligrosos si aplica e instrucciones de uso de acuerdo con los tiempos de transición descritos en el artículo 24 de la Resolución 773 de 2021. | D29: Líquido, en recipiente plástico con capacidad mínima de 3.785 ml | E29: 0 | F29: =IF(E29>0,(VLOOKUP($C$5&$C$6&B29,ConsolidadoServicios!$A:$K,11,0)),0) -> 0 | G29: =IF(E29>0,(VLOOKUP(B29,Minimos!$A:$B,2,0)),0) -> 0 | H29: 0 | J29: 0 | K29: 0 | L29: =ROUND(VLOOKUP($C$5&B29,ConsolidadoServicios!P:Q,2,0)*80%,2) -> 0 | M29: ='Detalle Bienes de Aseo y Caf'!I29 -> 0 | N29: ='Detalle Bienes de Aseo y Caf'!J29 -> 0 | O29: ='Detalle Bienes de Aseo y Caf'!K29 -> 0 | P29: ='Detalle Bienes de Aseo y Caf'!L29 -> 0
A30: 16 | B30: Limpiador multiusos 2 (Compra) | C30: - Con agente(s) tensoactivo(s) principal(es) con efecto limpiador y desengrasante en una concentración mínima del 8% - Disponible en mínimo (2) dos fragancias - El envase debe estar correctamente etiquetado bajo los parámetros establecidos en el sistema globalmente armonizado (Decreto 1496 de 2018) indicando: nombre comercial del producto, pictogramas de los compuestos peligrosos si aplica e instrucciones de uso de acuerdo con los tiempos de transición descritos en el artículo 24 de la Resolución 773 de 2021. | D30: Líquido, en recipiente plástico con capacidad mínima de 500 ml, con atomizador de pistola. | E30: 4 | F30: =IF(E30>0,(VLOOKUP($C$5&$C$6&B30,ConsolidadoServicios!$A:$K,11,0)),0) -> 4724 | G30: =IF(E30>0,(VLOOKUP(B30,Minimos!$A:$B,2,0)),0) -> 2183 | H30: 0.2 | I30: 0.6303132938 | J30: 1746.4 | K30: 6985.6 | L30: =ROUND(VLOOKUP($C$5&B30,ConsolidadoServicios!P:Q,2,0)*80%,2) -> 0 | M30: ='Detalle Bienes de Aseo y Caf'!I30 -> 1 | N30: ='Detalle Bienes de Aseo y Caf'!J30 -> 1 | O30: ='Detalle Bienes de Aseo y Caf'!K30 -> 1 | P30: ='Detalle Bienes de Aseo y Caf'!L30 -> 1
A31: 17 | B31: Limpiador multiusos 3 (Compra) | C31: - Con agente(s) tensoactivo(s) principal(es) con efecto limpiador y desengrasante en una concentración mínima del 8% - Disponible en mínimo (2) dos fragancias - El envase debe estar correctamente etiquetado bajo los parámetros establecidos en el sistema globalmente armonizado (Decreto 1496 de 2018) indicando: nombre comercial del producto, pictogramas de los compuestos peligrosos si aplica e instrucciones de uso de acuerdo con los tiempos de transición descritos en el artículo 24 de la Resolución 773 de 2021. | D31: Líquido, en recipiente plástico de repuesto con capacidad mínima de 500 ml | E31: 4 | F31: =IF(E31>0,(VLOOKUP($C$5&$C$6&B31,ConsolidadoServicios!$A:$K,11,0)),0) -> 3647 | G31: =IF(E31>0,(VLOOKUP(B31,Minimos!$A:$B,2,0)),0) -> 1946 | H31: 0.2 | I31: 0.5731285988 | J31: 1556.8 | K31: 6227.2 | L31: =ROUND(VLOOKUP($C$5&B31,ConsolidadoServicios!P:Q,2,0)*80%,2) -> 0 | M31: ='Detalle Bienes de Aseo y Caf'!I31 -> 1 | N31: ='Detalle Bienes de Aseo y Caf'!J31 -> 1 | O31: ='Detalle Bienes de Aseo y Caf'!K31 -> 1 | P31: ='Detalle Bienes de Aseo y Caf'!L31 -> 1
A32: 18 | B32: Limpiador desinfectante para pisos (Compra) | C32: - Apariencia: Líquido transparente - Color y olor: De acuerdo a la fragancia - Producto biodegradable que no afectas la capa de ozono - Solubilidad: Total en agua - PH: 7.5 - 8.5 - Composición: Tensoactivos, espesante, coadyuvante, colorante - El envase debe estar correctamente etiquetado bajo los parámetros establecidos en el sistema globalmente armonizado (Decreto 1496 de 2018) indicando: nombre comercial del producto, pictogramas de los compuestos peligrosos si aplica e instrucciones de uso de acuerdo con los tiempos de transición descritos en el artículo 24 de la Resolución 773 de 2021. - Elaborado en material reciclable - No debe contener PVC, poliestireno expandido u otros plásticos de un solo uso tanto en el envase como en el embalaje. | D32: Líquido, en garrafa con capacidad mínima de 3.785 ml | E32: 0 | F32: =IF(E32>0,(VLOOKUP($C$5&$C$6&B32,ConsolidadoServicios!$A:$K,11,0)),0) -> 0 | G32: =IF(E32>0,(VLOOKUP(B32,Minimos!$A:$B,2,0)),0) -> 0 | H32: 0 | J32: 0 | K32: 0 | L32: =ROUND(VLOOKUP($C$5&B32,ConsolidadoServicios!P:Q,2,0)*80%,2) -> 0 | M32: ='Detalle Bienes de Aseo y Caf'!I32 -> 0 | N32: ='Detalle Bienes de Aseo y Caf'!J32 -> 0 | O32: ='Detalle Bienes de Aseo y Caf'!K32 -> 0 | P32: ='Detalle Bienes de Aseo y Caf'!L32 -> 0
A33: 19 | B33: Líquido desengrasante (Compra) | C33: - Con agente(s) tensoactivo(s) principal(es) con efecto limpiador y desengrasante en una concentración mínima del 10% - El envase debe estar correctamente etiquetado bajo los parámetros establecidos en el sistema globalmente armonizado (Decreto 1496 de 2018) indicando: nombre comercial del producto, pictogramas de los compuestos peligrosos si aplica e instrucciones de uso de acuerdo con los tiempos de transición descritos en el artículo 24 de la Resolución 773 de 2021. - Debe contener concentraciones de fósforo iguales o inferiores a 0.65% de fósforo (Resolución 0689 de 2016) | D33: Líquido, en recipiente plástico con capacidad mínima de 3.785 ml | E33: 0 | F33: =IF(E33>0,(VLOOKUP($C$5&$C$6&B33,ConsolidadoServicios!$A:$K,11,0)),0) -> 0 | G33: =IF(E33>0,(VLOOKUP(B33,Minimos!$A:$B,2,0)),0) -> 0 | H33: 0 | J33: 0 | K33: 0 | L33: =ROUND(VLOOKUP($C$5&B33,ConsolidadoServicios!P:Q,2,0)*80%,2) -> 0 | M33: ='Detalle Bienes de Aseo y Caf'!I33 -> 0 | N33: ='Detalle Bienes de Aseo y Caf'!J33 -> 0 | O33: ='Detalle Bienes de Aseo y Caf'!K33 -> 0 | P33: ='Detalle Bienes de Aseo y Caf'!L33 -> 0
A34: 20 | B34: Crema desengrasante (Compra) | C34: - Disponible en múltiples fragancias - Limpia y desengrasa todos los metales, plásticos, gomas, vidrio, cerámica y madera - El envase debe estar correctamente etiquetado bajo los parámetros establecidos en el sistema globalmente armonizado (Decreto 1496 de 2018) indicando: nombre comercial del producto, pictogramas de los compuestos peligrosos si aplica e instrucciones de uso de acuerdo con los tiempos de transición descritos en el artículo 24 de la Resolución 773 de 2021. - Elaborado en material reciclable o biodegradable - No debe contener PVC o Poliestireno expandido u otros plásticos de un solo uso tanto en el envase como en el embalaje. | D34: Crema, en recipiente reciclable o biodegadable con capacidad mínima de 500 g | E34: 0 | F34: =IF(E34>0,(VLOOKUP($C$5&$C$6&B34,ConsolidadoServicios!$A:$K,11,0)),0) -> 0 | G34: =IF(E34>0,(VLOOKUP(B34,Minimos!$A:$B,2,0)),0) -> 0 | H34: 0 | J34: 0 | K34: 0 | L34: =ROUND(VLOOKUP($C$5&B34,ConsolidadoServicios!P:Q,2,0)*80%,2) -> 0 | M34: ='Detalle Bienes de Aseo y Caf'!I34 -> 0 | N34: ='Detalle Bienes de Aseo y Caf'!J34 -> 0 | O34: ='Detalle Bienes de Aseo y Caf'!K34 -> 0 | P34: ='Detalle Bienes de Aseo y Caf'!L34 -> 0
A35: 21 | B35: Detergente multiusos en polvo (Compra) | C35: - Con agente tensoactivo de mínimo 60% de biodegradabilidad -Con efecto limpiador de mínimo 9%. - El envase del producto deberá estar correctamente etiquetado bajo los parámetros: nombre comercial del producto, pictogramas de los compuestos peligrosos e instrucciones de uso - Debe contener concentraciones de fósforo iguales o inferiores a 0.65% de fósforo (Resolución 0689 de 2016) | D35: Polvo, en bolsa plástica o recipiente plástico con un peso de 1.000 g | E35: 0 | F35: =IF(E35>0,(VLOOKUP($C$5&$C$6&B35,ConsolidadoServicios!$A:$K,11,0)),0) -> 0 | G35: =IF(E35>0,(VLOOKUP(B35,Minimos!$A:$B,2,0)),0) -> 0 | H35: 0 | J35: 0 | K35: 0 | L35: =ROUND(VLOOKUP($C$5&B35,ConsolidadoServicios!P:Q,2,0)*80%,2) -> 0 | M35: ='Detalle Bienes de Aseo y Caf'!I35 -> 0 | N35: ='Detalle Bienes de Aseo y Caf'!J35 -> 0 | O35: ='Detalle Bienes de Aseo y Caf'!K35 -> 0 | P35: ='Detalle Bienes de Aseo y Caf'!L35 -> 0
A36: 22 | B36: Limpiador desinfectante para uso general 1 (Compra) | C36: - Con agente(s) tensoactivo(s) con efecto antibacterial en una concentración mínima del 0,2% - Con agente(s) tensoactivo(s) con efecto limpiador y desengrasante en una concentración mínima del 1,5% - El envase debe estar correctamente etiquetado bajo los parámetros establecidos en el sistema globalmente armonizado (Decreto 1496 de 2018) indicando: nombre comercial del producto, pictogramas de los compuestos peligrosos si aplica e instrucciones de uso de acuerdo con los tiempos de transición descritos en el artículo 24 de la Resolución 773 de 2021. | D36: Líquido, en recipiente plástico con capacidad mínima de 3.785 ml | E36: 0 | F36: =IF(E36>0,(VLOOKUP($C$5&$C$6&B36,ConsolidadoServicios!$A:$K,11,0)),0) -> 0 | G36: =IF(E36>0,(VLOOKUP(B36,Minimos!$A:$B,2,0)),0) -> 0 | H36: 0 | J36: 0 | K36: 0 | L36: =ROUND(VLOOKUP($C$5&B36,ConsolidadoServicios!P:Q,2,0)*80%,2) -> 0 | M36: ='Detalle Bienes de Aseo y Caf'!I36 -> 0 | N36: ='Detalle Bienes de Aseo y Caf'!J36 -> 0 | O36: ='Detalle Bienes de Aseo y Caf'!K36 -> 0 | P36: ='Detalle Bienes de Aseo y Caf'!L36 -> 0
A37: 23 | B37: Limpiador desinfectante para uso general 2 (Compra) | C37: - Con agente(s) tensoactivo(s) con efecto antibacterial en una concentración mínima del 0,2% - Con agente(s) tensoactivo(s) con efecto limpiador y desengrasante en una concentración mínima del 1,5% - El envase debe estar correctamente etiquetado bajo los parámetros establecidos en el sistema globalmente armonizado (Decreto 1496 de 2018) indicando: nombre comercial del producto, pictogramas de los compuestos peligrosos si aplica e instrucciones de uso de acuerdo con los tiempos de transición descritos en el artículo 24 de la Resolución 773 de 2021. | D37: Líquido, en recipiente plástico con capacidad mínima de 500 ml, con atomizador de pistola. | E37: 4 | F37: =IF(E37>0,(VLOOKUP($C$5&$C$6&B37,ConsolidadoServicios!$A:$K,11,0)),0) -> 5031 | G37: =IF(E37>0,(VLOOKUP(B37,Minimos!$A:$B,2,0)),0) -> 2976 | H37: 0.2 | I37: 0.5267740012 | J37: 2380.8 | K37: 9523.2 | L37: =ROUND(VLOOKUP($C$5&B37,ConsolidadoServicios!P:Q,2,0)*80%,2) -> 0 | M37: ='Detalle Bienes de Aseo y Caf'!I37 -> 1 | N37: ='Detalle Bienes de Aseo y Caf'!J37 -> 1 | O37: ='Detalle Bienes de Aseo y Caf'!K37 -> 1 | P37: ='Detalle Bienes de Aseo y Caf'!L37 -> 1
A38: 24 | B38: Limpiador desinfectante para uso general 3 (Compra) | C38: - Con agente(s) tensoactivo(s) con efecto antibacterial en una concentración mínima del 0,2% - Con agente(s) tensoactivo(s) con efecto limpiador y desengrasante en una concentración mínima del 1,5% - El envase debe estar correctamente etiquetado bajo los parámetros establecidos en el sistema globalmente armonizado (Decreto 1496 de 2018) indicando: nombre comercial del producto, pictogramas de los compuestos peligrosos si aplica e instrucciones de uso de acuerdo con los tiempos de transición descritos en el artículo 24 de la Resolución 773 de 2021. | D38: Líquido, en recipiente plástico con capacidad mínima de 500 ml | E38: 0 | F38: =IF(E38>0,(VLOOKUP($C$5&$C$6&B38,ConsolidadoServicios!$A:$K,11,0)),0) -> 0 | G38: =IF(E38>0,(VLOOKUP(B38,Minimos!$A:$B,2,0)),0) -> 0 | H38: 0 | J38: 0 | K38: 0 | L38: =ROUND(VLOOKUP($C$5&B38,ConsolidadoServicios!P:Q,2,0)*80%,2) -> 0 | M38: ='Detalle Bienes de Aseo y Caf'!I38 -> 0 | N38: ='Detalle Bienes de Aseo y Caf'!J38 -> 0 | O38: ='Detalle Bienes de Aseo y Caf'!K38 -> 0 | P38: ='Detalle Bienes de Aseo y Caf'!L38 -> 0
A39: 25 | B39: Desinfectante de alto nivel de desinfección para uso hospitalario (Compra) | C39: - Con agentes bactericidas, fungicidas, tubercolicidas, esporicidas y virucidas. - Sin fragacia - El envase debe estar correctamente etiquetado bajo los parámetros establecidos en el sistema globalmente armonizado (Decreto 1496 de 2018) indicando: nombre comercial del producto, pictogramas de los compuestos peligrosos si aplica e instrucciones de uso de acuerdo con los tiempos de transición descritos en el artículo 24 de la Resolución 773 de 2021. | D39: Líquido, en recipiente plástico con capacidad mínima de 3.785 ml | E39: 0 | F39: =IF(E39>0,(VLOOKUP($C$5&$C$6&B39,ConsolidadoServicios!$A:$K,11,0)),0) -> 0 | G39: =IF(E39>0,(VLOOKUP(B39,Minimos!$A:$B,2,0)),0) -> 0 | H39: 0 | J39: 0 | K39: 0 | L39: =ROUND(VLOOKUP($C$5&B39,ConsolidadoServicios!P:Q,2,0)*80%,2) -> 0 | M39: ='Detalle Bienes de Aseo y Caf'!I39 -> 0 | N39: ='Detalle Bienes de Aseo y Caf'!J39 -> 0 | O39: ='Detalle Bienes de Aseo y Caf'!K39 -> 0 | P39: ='Detalle Bienes de Aseo y Caf'!L39 -> 0
A40: 26 | B40: Pastilla desinfectante para sanitario (Compra) | C40: - Con agentes bactericidas, fungicidas y virucidas. | D40: Unidad con peso mínimo de 45 g | E40: 12 | F40: =IF(E40>0,(VLOOKUP($C$5&$C$6&B40,ConsolidadoServicios!$A:$K,11,0)),0) -> 7084 | G40: =IF(E40>0,(VLOOKUP(B40,Minimos!$A:$B,2,0)),0) -> 3522 | H40: 0.25 | I40: 0.6271174478 | J40: 2641.5 | K40: 31698 | L40: =ROUND(VLOOKUP($C$5&B40,ConsolidadoServicios!P:Q,2,0)*80%,2) -> 0 | M40: ='Detalle Bienes de Aseo y Caf'!I40 -> 3 | N40: ='Detalle Bienes de Aseo y Caf'!J40 -> 3 | O40: ='Detalle Bienes de Aseo y Caf'!K40 -> 3 | P40: ='Detalle Bienes de Aseo y Caf'!L40 -> 3
A41: 27 | B41: Líquido para limpiar vidrios 1 (Compra) | C41: - Con agente(s) principal(es) con efecto limpiador y desengrasante en una concentración mínima del 4% - Disponible mínimo en dos (2) fragancias - El envase debe estar correctamente etiquetados bajo los parámetros establecidos en el sistema globalmente armonizado indicando: nombre comercial del producto, pictogramas de los compuestos peligrosos e instrucciones de uso | D41: Líquido, en recipiente plástico con capacidad mínima de 3.785 ml | E41: 0 | F41: =IF(E41>0,(VLOOKUP($C$5&$C$6&B41,ConsolidadoServicios!$A:$K,11,0)),0) -> 0 | G41: =IF(E41>0,(VLOOKUP(B41,Minimos!$A:$B,2,0)),0) -> 0 | H41: 0 | J41: 0 | K41: 0 | L41: =ROUND(VLOOKUP($C$5&B41,ConsolidadoServicios!P:Q,2,0)*80%,2) -> 0 | M41: ='Detalle Bienes de Aseo y Caf'!I41 -> 0 | N41: ='Detalle Bienes de Aseo y Caf'!J41 -> 0 | O41: ='Detalle Bienes de Aseo y Caf'!K41 -> 0 | P41: ='Detalle Bienes de Aseo y Caf'!L41 -> 0
A42: 28 | B42: Líquido para limpiar vidrios 2 (Compra) | C42: - Con agente(s) principal(es) con efecto limpiador y desengrasante en una concentración mínima del 4% - Disponible mínimo en dos (2) fragancias - El envase debe estar correctamente etiquetado bajo los parámetros establecidos en el sistema globalmente armonizado (Decreto 1496 de 2018) indicando: nombre comercial del producto, pictogramas de los compuestos peligrosos si aplica e instrucciones de uso de acuerdo con los tiempos de transición descritos en el artículo 24 de la Resolución 773 de 2021. | D42: Líquido, en recipiente plástico con capacidad mínima de 500 ml, con atomizador de pistola. | E42: 4 | F42: =IF(E42>0,(VLOOKUP($C$5&$C$6&B42,ConsolidadoServicios!$A:$K,11,0)),0) -> 5090 | G42: =IF(E42>0,(VLOOKUP(B42,Minimos!$A:$B,2,0)),0) -> 3082 | H42: 0.2 | I42: 0.5155992141 | J42: 2465.6 | K42: 9862.4 | L42: =ROUND(VLOOKUP($C$5&B42,ConsolidadoServicios!P:Q,2,0)*80%,2) -> 0 | M42: ='Detalle Bienes de Aseo y Caf'!I42 -> 1 | N42: ='Detalle Bienes de Aseo y Caf'!J42 -> 1 | O42: ='Detalle Bienes de Aseo y Caf'!K42 -> 1 | P42: ='Detalle Bienes de Aseo y Caf'!L42 -> 1
A43: 29 | B43: Líquido para limpiar vidrios 3 (Compra) | C43: - Con agente(s) principal(es) con efecto limpiador y desengrasante en una concentración mínima del 4% - Disponible mínimo en dos (2) fragancias - El envase debe estar correctamente etiquetado bajo los parámetros establecidos en el sistema globalmente armonizado (Decreto 1496 de 2018) indicando: nombre comercial del producto, pictogramas de los compuestos peligrosos si aplica e instrucciones de uso de acuerdo con los tiempos de transición descritos en el artículo 24 de la Resolución 773 de 2021. | D43: Líquido, en recipiente plástico de repuesto con capacidad mínima de 500 ml | E43: 0 | F43: =IF(E43>0,(VLOOKUP($C$5&$C$6&B43,ConsolidadoServicios!$A:$K,11,0)),0) -> 0 | G43: =IF(E43>0,(VLOOKUP(B43,Minimos!$A:$B,2,0)),0) -> 0 | H43: 0 | J43: 0 | K43: 0 | L43: =ROUND(VLOOKUP($C$5&B43,ConsolidadoServicios!P:Q,2,0)*80%,2) -> 0 | M43: ='Detalle Bienes de Aseo y Caf'!I43 -> 0 | N43: ='Detalle Bienes de Aseo y Caf'!J43 -> 0 | O43: ='Detalle Bienes de Aseo y Caf'!K43 -> 0 | P43: ='Detalle Bienes de Aseo y Caf'!L43 -> 0
A44: 30 | B44: Blanqueador o hipoclorito 1 (Compra) | C44: - Solución con una concentración mínima del 5% - El envase del producto deberá estar correctamente etiquetado, indicando: nombre comercial del producto, pictogramas de los compuestos peligrosos e instrucciones de uso - El envase debe estar correctamente etiquetado bajo los parámetros establecidos en el sistema globalmente armonizado (Decreto 1496 de 2018) indicando: nombre comercial del producto, pictogramas de los compuestos peligrosos si aplica e instrucciones de uso de acuerdo con los tiempos de transición descritos en el artículo 24 de la Resolución 773 de 2021. | D44: Líquido, en recipiente plástico con capacidad mínima de 3.785 ml | E44: 4 | F44: =IF(E44>0,(VLOOKUP($C$5&$C$6&B44,ConsolidadoServicios!$A:$K,11,0)),0) -> 9696 | G44: =IF(E44>0,(VLOOKUP(B44,Minimos!$A:$B,2,0)),0) -> 5812 | H44: 0.25 | I44: 0.5504331683 | J44: 4359 | K44: 17436 | L44: =ROUND(VLOOKUP($C$5&B44,ConsolidadoServicios!P:Q,2,0)*80%,2) -> 0 | M44: ='Detalle Bienes de Aseo y Caf'!I44 -> 1 | N44: ='Detalle Bienes de Aseo y Caf'!J44 -> 1 | O44: ='Detalle Bienes de Aseo y Caf'!K44 -> 1 | P44: ='Detalle Bienes de Aseo y Caf'!L44 -> 1
A45: 31 | B45: Blanqueador o hipoclorito 2 (Compra) | C45: - Solución con una concentración mínima del 5% - El envase del producto deberá estar correctamente etiquetado, indicando: nombre comercial del producto, pictogramas de los compuestos peligrosos e instrucciones de uso - El envase debe estar correctamente etiquetado bajo los parámetros establecidos en el sistema globalmente armonizado (Decreto 1496 de 2018) indicando: nombre comercial del producto, pictogramas de los compuestos peligrosos si aplica e instrucciones de uso de acuerdo con los tiempos de transición descritos en el artículo 24 de la Resolución 773 de 2021. | D45: Líquido, en recipiente plástico con capacidad mínima de 1.000 ml | E45: 0 | F45: =IF(E45>0,(VLOOKUP($C$5&$C$6&B45,ConsolidadoServicios!$A:$K,11,0)),0) -> 0 | G45: =IF(E45>0,(VLOOKUP(B45,Minimos!$A:$B,2,0)),0) -> 0 | H45: 0 | J45: 0 | K45: 0 | L45: =ROUND(VLOOKUP($C$5&B45,ConsolidadoServicios!P:Q,2,0)*80%,2) -> 0 | M45: ='Detalle Bienes de Aseo y Caf'!I45 -> 0 | N45: ='Detalle Bienes de Aseo y Caf'!J45 -> 0 | O45: ='Detalle Bienes de Aseo y Caf'!K45 -> 0 | P45: ='Detalle Bienes de Aseo y Caf'!L45 -> 0
A46: 32 | B46: Blanqueador o hipoclorito 3 (Compra) | C46: - Granulado con una concentración mínima del 90% - El envase del producto deberá estar correctamente etiquetado, indicando: nombre comercial del producto, pictogramas de los compuestos peligrosos e instrucciones de uso - El envase debe estar correctamente etiquetado bajo los parámetros establecidos en el sistema globalmente armonizado (Decreto 1496 de 2018) indicando: nombre comercial del producto, pictogramas de los compuestos peligrosos si aplica e instrucciones de uso de acuerdo con los tiempos de transición descritos en el artículo 24 de la Resolución 773 de 2021. | D46: ganulado, en bolsa plástica de mínimo 1.000 g | E46: 0 | F46: =IF(E46>0,(VLOOKUP($C$5&$C$6&B46,ConsolidadoServicios!$A:$K,11,0)),0) -> 0 | G46: =IF(E46>0,(VLOOKUP(B46,Minimos!$A:$B,2,0)),0) -> 0 | H46: 0 | J46: 0 | K46: 0 | L46: =ROUND(VLOOKUP($C$5&B46,ConsolidadoServicios!P:Q,2,0)*80%,2) -> 0 | M46: ='Detalle Bienes de Aseo y Caf'!I46 -> 0 | N46: ='Detalle Bienes de Aseo y Caf'!J46 -> 0 | O46: ='Detalle Bienes de Aseo y Caf'!K46 -> 0 | P46: ='Detalle Bienes de Aseo y Caf'!L46 -> 0
A47: 33 | B47: Alcohol industrial 1 (Compra) | C47: - Solución acuosa de alcohol etílico desnaturalizado con una concentración mínima de 70% - Desnaturalizado | D47: Líquido, en recipiente plástico con capacidad mínima de 3.785 ml | E47: 0 | F47: =IF(E47>0,(VLOOKUP($C$5&$C$6&B47,ConsolidadoServicios!$A:$K,11,0)),0) -> 0 | G47: =IF(E47>0,(VLOOKUP(B47,Minimos!$A:$B,2,0)),0) -> 0 | H47: 0 | J47: 0 | K47: 0 | L47: =ROUND(VLOOKUP($C$5&B47,ConsolidadoServicios!P:Q,2,0)*80%,2) -> 0 | M47: ='Detalle Bienes de Aseo y Caf'!I47 -> 0 | N47: ='Detalle Bienes de Aseo y Caf'!J47 -> 0 | O47: ='Detalle Bienes de Aseo y Caf'!K47 -> 0 | P47: ='Detalle Bienes de Aseo y Caf'!L47 -> 0
A48: 34 | B48: Alcohol industrial 2 (Compra) | C48: - Solución acuosa de alcohol etílico desnaturalizado con una concentración mínima de 70% - Desnaturalizado | D48: Líquido, en recipiente plástico con capacidad mínima de 1000ml | E48: 0 | F48: =IF(E48>0,(VLOOKUP($C$5&$C$6&B48,ConsolidadoServicios!$A:$K,11,0)),0) -> 0 | G48: =IF(E48>0,(VLOOKUP(B48,Minimos!$A:$B,2,0)),0) -> 0 | H48: 0 | J48: 0 | K48: 0 | L48: =ROUND(VLOOKUP($C$5&B48,ConsolidadoServicios!P:Q,2,0)*80%,2) -> 0 | M48: ='Detalle Bienes de Aseo y Caf'!I48 -> 0 | N48: ='Detalle Bienes de Aseo y Caf'!J48 -> 0 | O48: ='Detalle Bienes de Aseo y Caf'!K48 -> 0 | P48: ='Detalle Bienes de Aseo y Caf'!L48 -> 0
A49: 35 | B49: Creolina 1 (Compra) | C49: - Solución con una concentración mínima de fenoles de 4% | D49: Líquido, en recipiente plástico con capacidad mínima de 500 ml | E49: 0 | F49: =IF(E49>0,(VLOOKUP($C$5&$C$6&B49,ConsolidadoServicios!$A:$K,11,0)),0) -> 0 | G49: =IF(E49>0,(VLOOKUP(B49,Minimos!$A:$B,2,0)),0) -> 0 | H49: 0 | J49: 0 | K49: 0 | L49: =ROUND(VLOOKUP($C$5&B49,ConsolidadoServicios!P:Q,2,0)*80%,2) -> 0 | M49: ='Detalle Bienes de Aseo y Caf'!I49 -> 0 | N49: ='Detalle Bienes de Aseo y Caf'!J49 -> 0 | O49: ='Detalle Bienes de Aseo y Caf'!K49 -> 0 | P49: ='Detalle Bienes de Aseo y Caf'!L49 -> 0
A50: 36 | B50: Creolina 2 (Compra) | C50: - Solución con una concentración mínima de fenoles de 4% | D50: Líquido, en recipiente plástico con capacidad mínima de 3.785 ml | E50: 0 | F50: =IF(E50>0,(VLOOKUP($C$5&$C$6&B50,ConsolidadoServicios!$A:$K,11,0)),0) -> 0 | G50: =IF(E50>0,(VLOOKUP(B50,Minimos!$A:$B,2,0)),0) -> 0 | H50: 0 | J50: 0 | K50: 0 | L50: =ROUND(VLOOKUP($C$5&B50,ConsolidadoServicios!P:Q,2,0)*80%,2) -> 0 | M50: ='Detalle Bienes de Aseo y Caf'!I50 -> 0 | N50: ='Detalle Bienes de Aseo y Caf'!J50 -> 0 | O50: ='Detalle Bienes de Aseo y Caf'!K50 -> 0 | P50: ='Detalle Bienes de Aseo y Caf'!L50 -> 0
A51: 37 | B51: Líquido para limpiar equipos de oficina 1 (Compra) | C51: - Con agente(s) principal(es) con efecto limpiador, desengrasante y desinfectante en una concentración mínima del 4% - El envase debe estar correctamente etiquetado bajo los parámetros establecidos en el sistema globalmente armonizado (Decreto 1496 de 2018) indicando: nombre comercial del producto, pictogramas de los compuestos peligrosos si aplica e instrucciones de uso de acuerdo con los tiempos de transición descritos en el artículo 24 de la Resolución 773 de 2021. | D51: Líquido, en recipiente plástico con capacidad mínima de 500 ml con atomizador | E51: 4 | F51: =IF(E51>0,(VLOOKUP($C$5&$C$6&B51,ConsolidadoServicios!$A:$K,11,0)),0) -> 6267 | G51: =IF(E51>0,(VLOOKUP(B51,Minimos!$A:$B,2,0)),0) -> 3269 | H51: 0.2 | I51: 0.5827030477 | J51: 2615.2 | K51: 10460.8 | L51: =ROUND(VLOOKUP($C$5&B51,ConsolidadoServicios!P:Q,2,0)*80%,2) -> 0 | M51: ='Detalle Bienes de Aseo y Caf'!I51 -> 1 | N51: ='Detalle Bienes de Aseo y Caf'!J51 -> 1 | O51: ='Detalle Bienes de Aseo y Caf'!K51 -> 1 | P51: ='Detalle Bienes de Aseo y Caf'!L51 -> 1
A52: 38 | B52: Líquido para limpiar equipos de oficina 2 (Compra) | C52: - Con agente(s) principal(es) con efecto limpiador, desengrasante y desinfectante en una concentración mínima del 4% - El envase debe estar correctamente etiquetado bajo los parámetros establecidos en el sistema globalmente armonizado (Decreto 1496 de 2018) indicando: nombre comercial del producto, pictogramas de los compuestos peligrosos si aplica e instrucciones de uso de acuerdo con los tiempos de transición descritos en el artículo 24 de la Resolución 773 de 2021. | D52: Líquido, en recipiente plástico con capacidad mínima de 500 ml | E52: 0 | F52: =IF(E52>0,(VLOOKUP($C$5&$C$6&B52,ConsolidadoServicios!$A:$K,11,0)),0) -> 0 | G52: =IF(E52>0,(VLOOKUP(B52,Minimos!$A:$B,2,0)),0) -> 0 | H52: 0 | J52: 0 | K52: 0 | L52: =ROUND(VLOOKUP($C$5&B52,ConsolidadoServicios!P:Q,2,0)*80%,2) -> 0 | M52: ='Detalle Bienes de Aseo y Caf'!I52 -> 0 | N52: ='Detalle Bienes de Aseo y Caf'!J52 -> 0 | O52: ='Detalle Bienes de Aseo y Caf'!K52 -> 0 | P52: ='Detalle Bienes de Aseo y Caf'!L52 -> 0
A53: 39 | B53: Champú para alfombras y tapizados 1 (Compra) | C53: - Con agente(s) principal(es) con efecto limpiador en una concentración mínima del 8% - El envase debe estar correctamente etiquetado: nombre comercial del producto, pictogramas de los compuestos peligrosos e instrucciones de uso | D53: Líquido, en recipiente plástico con capacidad mínima de 3.785 ml | E53: 0 | F53: =IF(E53>0,(VLOOKUP($C$5&$C$6&B53,ConsolidadoServicios!$A:$K,11,0)),0) -> 0 | G53: =IF(E53>0,(VLOOKUP(B53,Minimos!$A:$B,2,0)),0) -> 0 | H53: 0 | J53: 0 | K53: 0 | L53: =ROUND(VLOOKUP($C$5&B53,ConsolidadoServicios!P:Q,2,0)*80%,2) -> 0 | M53: ='Detalle Bienes de Aseo y Caf'!I53 -> 0 | N53: ='Detalle Bienes de Aseo y Caf'!J53 -> 0 | O53: ='Detalle Bienes de Aseo y Caf'!K53 -> 0 | P53: ='Detalle Bienes de Aseo y Caf'!L53 -> 0
A54: 40 | B54: Champú para alfombras y tapizados 2 (Compra) | C54: - Con agente(s) principal(es) con efecto limpiador en una concentración mínima del 8% - Con agente espumante para la generación de espuma seca - El envase debe estar correctamente etiquetados: nombre comercial del producto, pictogramas de los compuestos peligrosos e instrucciones de uso | D54: Líquido, en recipiente plástico con capacidad mínima de 3.785 ml | E54: 0 | F54: =IF(E54>0,(VLOOKUP($C$5&$C$6&B54,ConsolidadoServicios!$A:$K,11,0)),0) -> 0 | G54: =IF(E54>0,(VLOOKUP(B54,Minimos!$A:$B,2,0)),0) -> 0 | H54: 0 | J54: 0 | K54: 0 | L54: =ROUND(VLOOKUP($C$5&B54,ConsolidadoServicios!P:Q,2,0)*80%,2) -> 0 | M54: ='Detalle Bienes de Aseo y Caf'!I54 -> 0 | N54: ='Detalle Bienes de Aseo y Caf'!J54 -> 0 | O54: ='Detalle Bienes de Aseo y Caf'!K54 -> 0 | P54: ='Detalle Bienes de Aseo y Caf'!L54 -> 0
A55: 41 | B55: Lustrador de muebles (Compra) | C55: - Con agentes limpiadores y abrillantadores en una concentración mínima del 5% - El envase debe estar correctamente etiquetado bajo los parámetros establecidos en el sistema globalmente armonizado (Decreto 1496 de 2018) indicando: nombre comercial del producto, pictogramas de los compuestos peligrosos si aplica e instrucciones de uso de acuerdo con los tiempos de transición descritos en el artículo 24 de la Resolución 773 de 2021. | D55: Líquido, en recipiente plástico con capacidad mínima de 200 ml | E55: 4 | F55: =IF(E55>0,(VLOOKUP($C$5&$C$6&B55,ConsolidadoServicios!$A:$K,11,0)),0) -> 4636 | G55: =IF(E55>0,(VLOOKUP(B55,Minimos!$A:$B,2,0)),0) -> 1992 | H55: 0.2 | I55: 0.6562553926 | J55: 1593.6 | K55: 6374.4 | L55: =ROUND(VLOOKUP($C$5&B55,ConsolidadoServicios!P:Q,2,0)*80%,2) -> 0 | M55: ='Detalle Bienes de Aseo y Caf'!I55 -> 1 | N55: ='Detalle Bienes de Aseo y Caf'!J55 -> 1 | O55: ='Detalle Bienes de Aseo y Caf'!K55 -> 1 | P55: ='Detalle Bienes de Aseo y Caf'!L55 -> 1
A56: 42 | B56: Líquido cubre rasguños para madera (Compra) | C56: - Con agentes limpiadores y abrillantadores en una concentración mínima del 5% - De color oscuro para coayudar a cubrir rasguños en maderas oscuras | D56: En recipiente plástico con capacidad mínima de 200 ml | E56: 0 | F56: =IF(E56>0,(VLOOKUP($C$5&$C$6&B56,ConsolidadoServicios!$A:$K,11,0)),0) -> 0 | G56: =IF(E56>0,(VLOOKUP(B56,Minimos!$A:$B,2,0)),0) -> 0 | H56: 0 | J56: 0 | K56: 0 | L56: =ROUND(VLOOKUP($C$5&B56,ConsolidadoServicios!P:Q,2,0)*80%,2) -> 0 | M56: ='Detalle Bienes de Aseo y Caf'!I56 -> 0 | N56: ='Detalle Bienes de Aseo y Caf'!J56 -> 0 | O56: ='Detalle Bienes de Aseo y Caf'!K56 -> 0 | P56: ='Detalle Bienes de Aseo y Caf'!L56 -> 0
A57: 43 | B57: Crema para cuero (Compra) | C57: - Con agentes limpiadores y abrillantadores en una concentración mínima del 5% | D57: Crema, en recipiente plástico con capacidad mínima de 200 ml | E57: 0 | F57: =IF(E57>0,(VLOOKUP($C$5&$C$6&B57,ConsolidadoServicios!$A:$K,11,0)),0) -> 0 | G57: =IF(E57>0,(VLOOKUP(B57,Minimos!$A:$B,2,0)),0) -> 0 | H57: 0 | J57: 0 | K57: 0 | L57: =ROUND(VLOOKUP($C$5&B57,ConsolidadoServicios!P:Q,2,0)*80%,2) -> 0 | M57: ='Detalle Bienes de Aseo y Caf'!I57 -> 0 | N57: ='Detalle Bienes de Aseo y Caf'!J57 -> 0 | O57: ='Detalle Bienes de Aseo y Caf'!K57 -> 0 | P57: ='Detalle Bienes de Aseo y Caf'!L57 -> 0
A58: 44 | B58: Cera polimérica (Compra) | C58: - Polimérica autobrillante. - Con polímeros acrílicos, nivelantes y plastificantes. - Neutra (para pisos de todos los colores) - Contenido mínimo de sólidos del 10% | D58: Líquido, en recipiente plástico con capacidad mínima de 3.785 ml | E58: 0 | F58: =IF(E58>0,(VLOOKUP($C$5&$C$6&B58,ConsolidadoServicios!$A:$K,11,0)),0) -> 0 | G58: =IF(E58>0,(VLOOKUP(B58,Minimos!$A:$B,2,0)),0) -> 0 | H58: 0 | J58: 0 | K58: 0 | L58: =ROUND(VLOOKUP($C$5&B58,ConsolidadoServicios!P:Q,2,0)*80%,2) -> 0 | M58: ='Detalle Bienes de Aseo y Caf'!I58 -> 0 | N58: ='Detalle Bienes de Aseo y Caf'!J58 -> 0 | O58: ='Detalle Bienes de Aseo y Caf'!K58 -> 0 | P58: ='Detalle Bienes de Aseo y Caf'!L58 -> 0
A59: 45 | B59: Cera emulsionada Neutra (Compra) | C59: - Emulsionada - Neutra (para pisos de todos los colores) - Contenido mínimo de sólidos del 5% | D59: Líquido, en recipiente plástico con capacidad mínima de 3.785 ml | E59: 0 | F59: =IF(E59>0,(VLOOKUP($C$5&$C$6&B59,ConsolidadoServicios!$A:$K,11,0)),0) -> 0 | G59: =IF(E59>0,(VLOOKUP(B59,Minimos!$A:$B,2,0)),0) -> 0 | H59: 0 | J59: 0 | K59: 0 | L59: =ROUND(VLOOKUP($C$5&B59,ConsolidadoServicios!P:Q,2,0)*80%,2) -> 0 | M59: ='Detalle Bienes de Aseo y Caf'!I59 -> 0 | N59: ='Detalle Bienes de Aseo y Caf'!J59 -> 0 | O59: ='Detalle Bienes de Aseo y Caf'!K59 -> 0 | P59: ='Detalle Bienes de Aseo y Caf'!L59 -> 0
A60: 46 | B60: Cera emulsionada roja (Compra) | C60: - Emulsionada - Roja - Contenido mínimo de sólidos del 5% - Antideslizante | D60: Líquido, en recipiente plástico con capacidad mínima de 3.785 ml | E60: 0 | F60: =IF(E60>0,(VLOOKUP($C$5&$C$6&B60,ConsolidadoServicios!$A:$K,11,0)),0) -> 0 | G60: =IF(E60>0,(VLOOKUP(B60,Minimos!$A:$B,2,0)),0) -> 0 | H60: 0 | J60: 0 | K60: 0 | L60: =ROUND(VLOOKUP($C$5&B60,ConsolidadoServicios!P:Q,2,0)*80%,2) -> 0 | M60: ='Detalle Bienes de Aseo y Caf'!I60 -> 0 | N60: ='Detalle Bienes de Aseo y Caf'!J60 -> 0 | O60: ='Detalle Bienes de Aseo y Caf'!K60 -> 0 | P60: ='Detalle Bienes de Aseo y Caf'!L60 -> 0
A61: 47 | B61: Cera solvente (Compra) | C61: - Solvente - Contenido mínimo de sólidos del 10% | D61: Líquido, en recipiente plástico con capacidad mínima de 3.785 ml | E61: 0 | F61: =IF(E61>0,(VLOOKUP($C$5&$C$6&B61,ConsolidadoServicios!$A:$K,11,0)),0) -> 0 | G61: =IF(E61>0,(VLOOKUP(B61,Minimos!$A:$B,2,0)),0) -> 0 | H61: 0 | J61: 0 | K61: 0 | L61: =ROUND(VLOOKUP($C$5&B61,ConsolidadoServicios!P:Q,2,0)*80%,2) -> 0 | M61: ='Detalle Bienes de Aseo y Caf'!I61 -> 0 | N61: ='Detalle Bienes de Aseo y Caf'!J61 -> 0 | O61: ='Detalle Bienes de Aseo y Caf'!K61 -> 0 | P61: ='Detalle Bienes de Aseo y Caf'!L61 -> 0
A62: 48 | B62: Sellante para pisos (Compra) | C62: - Polimérico autobrillante. - Con polímeros acrílicos, nivelantes y plastificantes. - Contenido mínimo de sólidos del 20% - El envase debe estar correctamente etiquetado bajo los parámetros establecidos en el sistema globalmente armonizado (Decreto 1496 de 2018) indicando: nombre comercial del producto, pictogramas de los compuestos peligrosos si aplica e instrucciones de uso de acuerdo con los tiempos de transición descritos en el artículo 24 de la Resolución 773 de 2021. | D62: Líquido, en recipiente plástico con capacidad mínima de 3.785 ml | E62: 0 | F62: =IF(E62>0,(VLOOKUP($C$5&$C$6&B62,ConsolidadoServicios!$A:$K,11,0)),0) -> 0 | G62: =IF(E62>0,(VLOOKUP(B62,Minimos!$A:$B,2,0)),0) -> 0 | H62: 0 | J62: 0 | K62: 0 | L62: =ROUND(VLOOKUP($C$5&B62,ConsolidadoServicios!P:Q,2,0)*80%,2) -> 0 | M62: ='Detalle Bienes de Aseo y Caf'!I62 -> 0 | N62: ='Detalle Bienes de Aseo y Caf'!J62 -> 0 | O62: ='Detalle Bienes de Aseo y Caf'!K62 -> 0 | P62: ='Detalle Bienes de Aseo y Caf'!L62 -> 0
A63: 49 | B63: Mantenedor de pisos (Compra) | C63: - Polimérico autobrillante. - Con polímeros acrílicos, nivelantes y plastificantes. - Contenido mínimo de sólidos del 8% | D63: Líquido, en recipiente plástico con capacidad mínima de 3.785 ml | E63: 0 | F63: =IF(E63>0,(VLOOKUP($C$5&$C$6&B63,ConsolidadoServicios!$A:$K,11,0)),0) -> 0 | G63: =IF(E63>0,(VLOOKUP(B63,Minimos!$A:$B,2,0)),0) -> 0 | H63: 0 | J63: 0 | K63: 0 | L63: =ROUND(VLOOKUP($C$5&B63,ConsolidadoServicios!P:Q,2,0)*80%,2) -> 0 | M63: ='Detalle Bienes de Aseo y Caf'!I63 -> 0 | N63: ='Detalle Bienes de Aseo y Caf'!J63 -> 0 | O63: ='Detalle Bienes de Aseo y Caf'!K63 -> 0 | P63: ='Detalle Bienes de Aseo y Caf'!L63 -> 0
A64: 50 | B64: Removedor de cera (Compra) | C64: - Con agente activo alcalino en una concentración mínima del 9% - pH entre 11 y 14 | D64: Líquido, en recipiente plástico con capacidad mínima de 3.785 ml | E64: 0 | F64: =IF(E64>0,(VLOOKUP($C$5&$C$6&B64,ConsolidadoServicios!$A:$K,11,0)),0) -> 0 | G64: =IF(E64>0,(VLOOKUP(B64,Minimos!$A:$B,2,0)),0) -> 0 | H64: 0 | J64: 0 | K64: 0 | L64: =ROUND(VLOOKUP($C$5&B64,ConsolidadoServicios!P:Q,2,0)*80%,2) -> 0 | M64: ='Detalle Bienes de Aseo y Caf'!I64 -> 0 | N64: ='Detalle Bienes de Aseo y Caf'!J64 -> 0 | O64: ='Detalle Bienes de Aseo y Caf'!K64 -> 0 | P64: ='Detalle Bienes de Aseo y Caf'!L64 -> 0
A65: 51 | B65: Abrillantador para piso laminado (Compra) | C65: - Con agente(s) con efecto limpiador y brillador. | D65: Líquido, en recipiente plástico con capacidad mínima de 3.785 ml | E65: 0 | F65: =IF(E65>0,(VLOOKUP($C$5&$C$6&B65,ConsolidadoServicios!$A:$K,11,0)),0) -> 0 | G65: =IF(E65>0,(VLOOKUP(B65,Minimos!$A:$B,2,0)),0) -> 0 | H65: 0 | J65: 0 | K65: 0 | L65: =ROUND(VLOOKUP($C$5&B65,ConsolidadoServicios!P:Q,2,0)*80%,2) -> 0 | M65: ='Detalle Bienes de Aseo y Caf'!I65 -> 0 | N65: ='Detalle Bienes de Aseo y Caf'!J65 -> 0 | O65: ='Detalle Bienes de Aseo y Caf'!K65 -> 0 | P65: ='Detalle Bienes de Aseo y Caf'!L65 -> 0
A66: 52 | B66: Jabón neutro para pisos 1 (Compra) | C66: - Jabón multiusos - PH Neutro, - No corrosivo ni tóxico - Debe contener concentraciones de fósforo iguales o inferiores a 0.65% de fósforo (Resolución 0689 de 2016) | D66: Líquido, en recipiente plástico con capacidad mínima de 3.785 ml | E66: 0 | F66: =IF(E66>0,(VLOOKUP($C$5&$C$6&B66,ConsolidadoServicios!$A:$K,11,0)),0) -> 0 | G66: =IF(E66>0,(VLOOKUP(B66,Minimos!$A:$B,2,0)),0) -> 0 | H66: 0 | J66: 0 | K66: 0 | L66: =ROUND(VLOOKUP($C$5&B66,ConsolidadoServicios!P:Q,2,0)*80%,2) -> 0 | M66: ='Detalle Bienes de Aseo y Caf'!I66 -> 0 | N66: ='Detalle Bienes de Aseo y Caf'!J66 -> 0 | O66: ='Detalle Bienes de Aseo y Caf'!K66 -> 0 | P66: ='Detalle Bienes de Aseo y Caf'!L66 -> 0
A67: 53 | B67: Jabón neutro para pisos 2 (Compra) | C67: - Jabón neutro biodegradable multiusos - PH Neutro - No es corrosivo ni tóxico - Color: Azul claro - El envase debe estar correctamente etiquetado bajo los parámetros establecidos en el sistema globalmente armonizado (Decreto 1496 de 2018) indicando: nombre comercial del producto, pictogramas de los compuestos peligrosos si aplica e instrucciones de uso de acuerdo con los tiempos de transición descritos en el artículo 24 de la Resolución 773 de 2021. - Elaborado en material reciclable, no debe contener PVC, Poliestireno expandido u otros plásticos de un solo uso tanto en el envase como en el embalaje. - Debe contener concentraciones de fósforo iguales o inferiores a 0.65% de fósforo (Resolución 0689 de 2016) | D67: Líquido, en cuñete con capacidad de 20 L | E67: 0 | F67: =IF(E67>0,(VLOOKUP($C$5&$C$6&B67,ConsolidadoServicios!$A:$K,11,0)),0) -> 0 | G67: =IF(E67>0,(VLOOKUP(B67,Minimos!$A:$B,2,0)),0) -> 0 | H67: 0 | J67: 0 | K67: 0 | L67: =ROUND(VLOOKUP($C$5&B67,ConsolidadoServicios!P:Q,2,0)*80%,2) -> 0 | M67: ='Detalle Bienes de Aseo y Caf'!I67 -> 0 | N67: ='Detalle Bienes de Aseo y Caf'!J67 -> 0 | O67: ='Detalle Bienes de Aseo y Caf'!K67 -> 0 | P67: ='Detalle Bienes de Aseo y Caf'!L67 -> 0
A68: 54 | B68: Varsol ecológico 1 (Compra) | C68: - Solución con agentes desinfectantes, desmanchadores y desengrasantes en concentración mínima del 15%. - Biodegradable mínimo en un 95% | D68: Líquido, en recipiente plástico con capacidad mínima de 1000 ml | E68: 0 | F68: =IF(E68>0,(VLOOKUP($C$5&$C$6&B68,ConsolidadoServicios!$A:$K,11,0)),0) -> 0 | G68: =IF(E68>0,(VLOOKUP(B68,Minimos!$A:$B,2,0)),0) -> 0 | H68: 0 | J68: 0 | K68: 0 | L68: =ROUND(VLOOKUP($C$5&B68,ConsolidadoServicios!P:Q,2,0)*80%,2) -> 0 | M68: ='Detalle Bienes de Aseo y Caf'!I68 -> 0 | N68: ='Detalle Bienes de Aseo y Caf'!J68 -> 0 | O68: ='Detalle Bienes de Aseo y Caf'!K68 -> 0 | P68: ='Detalle Bienes de Aseo y Caf'!L68 -> 0
A69: 55 | B69: Varsol ecológico 2 (Compra) | C69: - Solución con agentes desinfectantes, desmanchadores y desengrasantes en concentración mínima del 15%. - Biodegradable mínimo en un 95% | D69: Líquido, en recipiente plástico con capacidad mínima de 3.785 ml | E69: 0 | F69: =IF(E69>0,(VLOOKUP($C$5&$C$6&B69,ConsolidadoServicios!$A:$K,11,0)),0) -> 0 | G69: =IF(E69>0,(VLOOKUP(B69,Minimos!$A:$B,2,0)),0) -> 0 | H69: 0 | J69: 0 | K69: 0 | L69: =ROUND(VLOOKUP($C$5&B69,ConsolidadoServicios!P:Q,2,0)*80%,2) -> 0 | M69: ='Detalle Bienes de Aseo y Caf'!I69 -> 0 | N69: ='Detalle Bienes de Aseo y Caf'!J69 -> 0 | O69: ='Detalle Bienes de Aseo y Caf'!K69 -> 0 | P69: ='Detalle Bienes de Aseo y Caf'!L69 -> 0
A70: 56 | B70: Desmanchador multiusos (Compra) | C70: - Con agente(s) tensoactivo(s) con efecto limpiador y desengrasante - Para superficies de todo tipo. | D70: Crema, en bolsa plástica de mínimo 500 g | E70: 0 | F70: =IF(E70>0,(VLOOKUP($C$5&$C$6&B70,ConsolidadoServicios!$A:$K,11,0)),0) -> 0 | G70: =IF(E70>0,(VLOOKUP(B70,Minimos!$A:$B,2,0)),0) -> 0 | H70: 0 | J70: 0 | K70: 0 | L70: =ROUND(VLOOKUP($C$5&B70,ConsolidadoServicios!P:Q,2,0)*80%,2) -> 0 | M70: ='Detalle Bienes de Aseo y Caf'!I70 -> 0 | N70: ='Detalle Bienes de Aseo y Caf'!J70 -> 0 | O70: ='Detalle Bienes de Aseo y Caf'!K70 -> 0 | P70: ='Detalle Bienes de Aseo y Caf'!L70 -> 0
A71: 57 | B71: Brillametal en crema (Compra) | C71: - Con agentes con efecto limpiador, pulidor y brillador. - Para todo tipo de metales - El envase del producto deberá estar correctamente etiquetado, indicando: nombre comercial del producto, pictogramas de los compuestos peligrosos e instrucciones de uso | D71: En crema de mínimo 70 g | E71: 0 | F71: =IF(E71>0,(VLOOKUP($C$5&$C$6&B71,ConsolidadoServicios!$A:$K,11,0)),0) -> 0 | G71: =IF(E71>0,(VLOOKUP(B71,Minimos!$A:$B,2,0)),0) -> 0 | H71: 0 | J71: 0 | K71: 0 | L71: =ROUND(VLOOKUP($C$5&B71,ConsolidadoServicios!P:Q,2,0)*80%,2) -> 0 | M71: ='Detalle Bienes de Aseo y Caf'!I71 -> 0 | N71: ='Detalle Bienes de Aseo y Caf'!J71 -> 0 | O71: ='Detalle Bienes de Aseo y Caf'!K71 -> 0 | P71: ='Detalle Bienes de Aseo y Caf'!L71 -> 0
A72: 58 | B72: Brillametal líquido (Compra) | C72: - Con agentes con efecto limpiador, pulidor y brillador. - Para todo tipo de metales | D72: Líquido , en recipiente plástico con capacidad mínima de 200 ml | E72: 0 | F72: =IF(E72>0,(VLOOKUP($C$5&$C$6&B72,ConsolidadoServicios!$A:$K,11,0)),0) -> 0 | G72: =IF(E72>0,(VLOOKUP(B72,Minimos!$A:$B,2,0)),0) -> 0 | H72: 0 | J72: 0 | K72: 0 | L72: =ROUND(VLOOKUP($C$5&B72,ConsolidadoServicios!P:Q,2,0)*80%,2) -> 0 | M72: ='Detalle Bienes de Aseo y Caf'!I72 -> 0 | N72: ='Detalle Bienes de Aseo y Caf'!J72 -> 0 | O72: ='Detalle Bienes de Aseo y Caf'!K72 -> 0 | P72: ='Detalle Bienes de Aseo y Caf'!L72 -> 0
A73: 59 | B73: Betún (Compra) | C73: - Contenido mínimo de sólidos del 30% - Color negro - No debe contener ningún material que sea cancerígeno ( Clasificación 1 y 2a por la IARC), Mutagénico, Tóxico, Contaminante peligroso del aire o que sea agotador de la capa de ozono - El envase debe estar correctamente etiquetado bajo los parámetros establecidos en el sistema globalmente armonizado (Decreto 1496 de 2018) indicando: nombre comercial del producto, pictogramas de los compuestos peligrosos si aplica e instrucciones de uso de acuerdo con los tiempos de transición descritos en el artículo 24 de la Resolución 773 de 2021. | D73: Tarro de mínimo 100 g | E73: 0 | F73: =IF(E73>0,(VLOOKUP($C$5&$C$6&B73,ConsolidadoServicios!$A:$K,11,0)),0) -> 0 | G73: =IF(E73>0,(VLOOKUP(B73,Minimos!$A:$B,2,0)),0) -> 0 | H73: 0 | J73: 0 | K73: 0 | L73: =ROUND(VLOOKUP($C$5&B73,ConsolidadoServicios!P:Q,2,0)*80%,2) -> 0 | M73: ='Detalle Bienes de Aseo y Caf'!I73 -> 0 | N73: ='Detalle Bienes de Aseo y Caf'!J73 -> 0 | O73: ='Detalle Bienes de Aseo y Caf'!K73 -> 0 | P73: ='Detalle Bienes de Aseo y Caf'!L73 -> 0
A74: 60 | B74: Ambientador 1 (Compra) | C74: - Solución con alcohol etílico y solventes. - Con fragancia en una concentración del 1,5% - En múltiples fragancias - El envase debe estar correctamente etiquetado bajo los parámetros establecidos en el sistema globalmente armonizado (Decreto 1496 de 2018) indicando: nombre comercial del producto, pictogramas de los compuestos peligrosos si aplica e instrucciones de uso de acuerdo con los tiempos de transición descritos en el artículo 24 de la Resolución 773 de 2021. | D74: Líquido, en recipiente plástico con capacidad mínima de 3.785 ml | E74: 0 | F74: =IF(E74>0,(VLOOKUP($C$5&$C$6&B74,ConsolidadoServicios!$A:$K,11,0)),0) -> 0 | G74: =IF(E74>0,(VLOOKUP(B74,Minimos!$A:$B,2,0)),0) -> 0 | H74: 0 | J74: 0 | K74: 0 | L74: =ROUND(VLOOKUP($C$5&B74,ConsolidadoServicios!P:Q,2,0)*80%,2) -> 0 | M74: ='Detalle Bienes de Aseo y Caf'!I74 -> 0 | N74: ='Detalle Bienes de Aseo y Caf'!J74 -> 0 | O74: ='Detalle Bienes de Aseo y Caf'!K74 -> 0 | P74: ='Detalle Bienes de Aseo y Caf'!L74 -> 0
A75: 61 | B75: Ambientador 2 (Compra) | C75: - Solución con alcohol etílico y solventes. - Con fragancia en una concentración del 1,5% - En múltiples fragancias - libre de CFC - Envase correctamente etiquetado bajo los parámetros establecidos indicando: nombre comercial del producto, pictogramas de los compuestos peligrosos e instrucciones de uso. - Elaborado en material reciclable | D75: Líquido, en aerosol seguro para la capa de ozono con capacidad mínima de 400 ml | E75: 4 | F75: =IF(E75>0,(VLOOKUP($C$5&$C$6&B75,ConsolidadoServicios!$A:$K,11,0)),0) -> 15205 | G75: =IF(E75>0,(VLOOKUP(B75,Minimos!$A:$B,2,0)),0) -> 8436 | H75: 0.25 | I75: 0.5838868793 | J75: 6327 | K75: 25308 | L75: =ROUND(VLOOKUP($C$5&B75,ConsolidadoServicios!P:Q,2,0)*80%,2) -> 0 | M75: ='Detalle Bienes de Aseo y Caf'!I75 -> 1 | N75: ='Detalle Bienes de Aseo y Caf'!J75 -> 1 | O75: ='Detalle Bienes de Aseo y Caf'!K75 -> 1 | P75: ='Detalle Bienes de Aseo y Caf'!L75 -> 1
A76: 62 | B76: Insecticida 1 (Compra) | C76: - Para eliminar insectos rastreros. - Con acción residual hasta por 4 semanas o de larga duración - Sin fuertes olores químicos - Libre de CFC - El envase del producto deberá estar correctamente etiquetado, indicando: nombre comercial del producto, pictogramas de los compuestos peligrosos e instrucciones de uso | D76: Líquido, en aerosol seguro para la capa de ozono con capacidad mínima de 350 ml | E76: 4 | F76: =IF(E76>0,(VLOOKUP($C$5&$C$6&B76,ConsolidadoServicios!$A:$K,11,0)),0) -> 22160 | G76: =IF(E76>0,(VLOOKUP(B76,Minimos!$A:$B,2,0)),0) -> 10137 | H76: 0.25 | I76: 0.6569156137 | J76: 7602.75 | K76: 30411 | L76: =ROUND(VLOOKUP($C$5&B76,ConsolidadoServicios!P:Q,2,0)*80%,2) -> 0 | M76: ='Detalle Bienes de Aseo y Caf'!I76 -> 1 | N76: ='Detalle Bienes de Aseo y Caf'!J76 -> 1 | O76: ='Detalle Bienes de Aseo y Caf'!K76 -> 1 | P76: ='Detalle Bienes de Aseo y Caf'!L76 -> 1
A77: 63 | B77: Insecticida 2 (Compra) | C77: - Para eliminar insectos voladores - Con acción residual hasta por 4 semanas o de larga duración - Sin fuertes olores químicos - Libre de CFC - El envase del producto deberá estar correctamente etiquetado, indicando: nombre comercial del producto, pictogramas de los compuestos peligrosos e instrucciones de uso | D77: Líquido, en aerosol seguro para la capa de ozono con capacidad mínima de 350 ml | E77: 0 | F77: =IF(E77>0,(VLOOKUP($C$5&$C$6&B77,ConsolidadoServicios!$A:$K,11,0)),0) -> 0 | G77: =IF(E77>0,(VLOOKUP(B77,Minimos!$A:$B,2,0)),0) -> 0 | H77: 0 | J77: 0 | K77: 0 | L77: =ROUND(VLOOKUP($C$5&B77,ConsolidadoServicios!P:Q,2,0)*80%,2) -> 0 | M77: ='Detalle Bienes de Aseo y Caf'!I77 -> 0 | N77: ='Detalle Bienes de Aseo y Caf'!J77 -> 0 | O77: ='Detalle Bienes de Aseo y Caf'!K77 -> 0 | P77: ='Detalle Bienes de Aseo y Caf'!L77 -> 0
A78: 64 | B78: Limpiones 1 (Compra) | C78: - En tela de toalla fileteada - Color blanco sin estampado - Tamaño mínimo de 45cm de largo por 45cm de ancho. | D78: Unidad | E78: 8 | F78: =IF(E78>0,(VLOOKUP($C$5&$C$6&B78,ConsolidadoServicios!$A:$K,11,0)),0) -> 6020 | G78: =IF(E78>0,(VLOOKUP(B78,Minimos!$A:$B,2,0)),0) -> 1314 | H78: 0.2 | I78: 0.8253820598 | J78: 1051.2 | K78: 8409.6 | L78: =ROUND(VLOOKUP($C$5&B78,ConsolidadoServicios!P:Q,2,0)*80%,2) -> 0 | M78: ='Detalle Bienes de Aseo y Caf'!I78 -> 2 | N78: ='Detalle Bienes de Aseo y Caf'!J78 -> 2 | O78: ='Detalle Bienes de Aseo y Caf'!K78 -> 2 | P78: ='Detalle Bienes de Aseo y Caf'!L78 -> 2
A79: 65 | B79: Limpiones 2 (Compra) | C79: - En tela de toalla fileteada - Color blanco sin estampado -Tamaño mínimo de 100 cm de largo por 70 cm de ancho | D79: Unidad | E79: =SUM(M79:P79) -> 0 | F79: =IF(E79>0,(VLOOKUP($C$5&$C$6&B79,ConsolidadoServicios!$A:$K,11,0)),0) -> 0 | G79: =IF(E79>0,(VLOOKUP(B79,Minimos!$A:$B,2,0)),0) -> 0 | H79: 0 | J79: 0 | K79: 0 | L79: =ROUND(VLOOKUP($C$5&B79,ConsolidadoServicios!P:Q,2,0)*80%,2) -> 0 | M79: ='Detalle Bienes de Aseo y Caf'!I79 -> 0 | N79: ='Detalle Bienes de Aseo y Caf'!J79 -> 0 | O79: ='Detalle Bienes de Aseo y Caf'!K79 -> 0 | P79: ='Detalle Bienes de Aseo y Caf'!L79 -> 0
A80: 66 | B80: Limpiones 3 (Compra) | C80: - En tela fileteada - Color blanco sin estampado - Tamaño mínimo de 45 cm de largo por 45 cm de ancho | D80: Unidad | E80: 0 | F80: =IF(E80>0,(VLOOKUP($C$5&$C$6&B80,ConsolidadoServicios!$A:$K,11,0)),0) -> 0 | G80: =IF(E80>0,(VLOOKUP(B80,Minimos!$A:$B,2,0)),0) -> 0 | H80: =IF(E80>0,IF(I80>0,(G80-J80)/G80,0),0) -> 0 | J80: =ROUND((F80*(1-I80)),2) -> 0 | K80: =J80*E80 -> 0 | L80: =ROUND(VLOOKUP($C$5&B80,ConsolidadoServicios!P:Q,2,0)*80%,2) -> 0 | M80: ='Detalle Bienes de Aseo y Caf'!I80 -> 0 | N80: ='Detalle Bienes de Aseo y Caf'!J80 -> 0 | O80: ='Detalle Bienes de Aseo y Caf'!K80 -> 0 | P80: ='Detalle Bienes de Aseo y Caf'!L80 -> 0
A81: 67 | B81: Limpiones 4 (Compra) | C81: - En tela fileteada - Color blanco sin estampado -Tamaño mínimo de 100 cm de largo por 70 cm de ancho | D81: Unidad | E81: 0 | F81: =IF(E81>0,(VLOOKUP($C$5&$C$6&B81,ConsolidadoServicios!$A:$K,11,0)),0) -> 0 | G81: =IF(E81>0,(VLOOKUP(B81,Minimos!$A:$B,2,0)),0) -> 0 | H81: 0 | J81: 0 | K81: 0 | L81: =ROUND(VLOOKUP($C$5&B81,ConsolidadoServicios!P:Q,2,0)*80%,2) -> 0 | M81: ='Detalle Bienes de Aseo y Caf'!I81 -> 0 | N81: ='Detalle Bienes de Aseo y Caf'!J81 -> 0 | O81: ='Detalle Bienes de Aseo y Caf'!K81 -> 0 | P81: ='Detalle Bienes de Aseo y Caf'!L81 -> 0
A82: 68 | B82: Limpiones 5 (Compra) | C82: - En tela tipo galleta fileteada - Color blanco o beige sin estampado -Tamaño mínimo de 100 cm de largo por 70 cm de ancho | D82: Unidad | E82: 0 | F82: =IF(E82>0,(VLOOKUP($C$5&$C$6&B82,ConsolidadoServicios!$A:$K,11,0)),0) -> 0 | G82: =IF(E82>0,(VLOOKUP(B82,Minimos!$A:$B,2,0)),0) -> 0 | H82: 0 | J82: 0 | K82: 0 | L82: =ROUND(VLOOKUP($C$5&B82,ConsolidadoServicios!P:Q,2,0)*80%,2) -> 0 | M82: ='Detalle Bienes de Aseo y Caf'!I82 -> 0 | N82: ='Detalle Bienes de Aseo y Caf'!J82 -> 0 | O82: ='Detalle Bienes de Aseo y Caf'!K82 -> 0 | P82: ='Detalle Bienes de Aseo y Caf'!L82 -> 0
A83: 69 | B83: Bayetilla 1 (Compra) | C83: - En tela fileteada - 100% algodón y fibra natural - Color blanco sin estampado -Tamaño mínimo de 100 cm de largo por 70 cm de ancho | D83: Unidad | E83: 4 | F83: =IF(E83>0,(VLOOKUP($C$5&$C$6&B83,ConsolidadoServicios!$A:$K,11,0)),0) -> 9890 | G83: =IF(E83>0,(VLOOKUP(B83,Minimos!$A:$B,2,0)),0) -> 1622 | H83: 0.2 | I83: 0.8687967644 | J83: 1297.6 | K83: 5190.4 | L83: =ROUND(VLOOKUP($C$5&B83,ConsolidadoServicios!P:Q,2,0)*80%,2) -> 0 | M83: ='Detalle Bienes de Aseo y Caf'!I83 -> 1 | N83: ='Detalle Bienes de Aseo y Caf'!J83 -> 1 | O83: ='Detalle Bienes de Aseo y Caf'!K83 -> 1 | P83: ='Detalle Bienes de Aseo y Caf'!L83 -> 1
A84: 70 | B84: Bayetilla 2 (Compra) | C84: - En tela fileteada - 100% algodón y fibra natural - Color rojo sin estampado -Tamaño mínimo de 100 cm de largo por 70 cm de ancho | D84: Unidad | E84: 4 | F84: =IF(E84>0,(VLOOKUP($C$5&$C$6&B84,ConsolidadoServicios!$A:$K,11,0)),0) -> 9890 | G84: =IF(E84>0,(VLOOKUP(B84,Minimos!$A:$B,2,0)),0) -> 1622 | H84: 0.2 | I84: 0.8687967644 | J84: 1297.6 | K84: 5190.4 | L84: =ROUND(VLOOKUP($C$5&B84,ConsolidadoServicios!P:Q,2,0)*80%,2) -> 0 | M84: ='Detalle Bienes de Aseo y Caf'!I84 -> 1 | N84: ='Detalle Bienes de Aseo y Caf'!J84 -> 1 | O84: ='Detalle Bienes de Aseo y Caf'!K84 -> 1 | P84: ='Detalle Bienes de Aseo y Caf'!L84 -> 1
A85: 71 | B85: Toalla en tela blanca para pisos por metro (repuesto de haraganes) (Compra) | C85: - Elaborado en microfibras - Color blanco - Tamaño mínimo de 100 cm de largo por 70 cm de ancho | D85: Unidad | E85: 4 | F85: =IF(E85>0,(VLOOKUP($C$5&$C$6&B85,ConsolidadoServicios!$A:$K,11,0)),0) -> 16528 | G85: =IF(E85>0,(VLOOKUP(B85,Minimos!$A:$B,2,0)),0) -> 3894 | H85: 0.2 | I85: 0.8115198451 | J85: 3115.2 | K85: 12460.8 | L85: =ROUND(VLOOKUP($C$5&B85,ConsolidadoServicios!P:Q,2,0)*80%,2) -> 0 | M85: ='Detalle Bienes de Aseo y Caf'!I85 -> 1 | N85: ='Detalle Bienes de Aseo y Caf'!J85 -> 1 | O85: ='Detalle Bienes de Aseo y Caf'!K85 -> 1 | P85: ='Detalle Bienes de Aseo y Caf'!L85 -> 1
A86: 72 | B86: Paño absorbente multiusos 1 (Compra) | C86: - Retira el polvo sin dejar residuos ni pelusas - Antibacterial reutilizable - Tela con microporos - Tamaño mínimo de 60 cm de largo por 33 cm de ancho | D86: Paquete X 6 unidades | E86: 0 | F86: =IF(E86>0,(VLOOKUP($C$5&$C$6&B86,ConsolidadoServicios!$A:$K,11,0)),0) -> 0 | G86: =IF(E86>0,(VLOOKUP(B86,Minimos!$A:$B,2,0)),0) -> 0 | H86: 0 | J86: 0 | K86: 0 | L86: =ROUND(VLOOKUP($C$5&B86,ConsolidadoServicios!P:Q,2,0)*80%,2) -> 0 | M86: ='Detalle Bienes de Aseo y Caf'!I86 -> 0 | N86: ='Detalle Bienes de Aseo y Caf'!J86 -> 0 | O86: ='Detalle Bienes de Aseo y Caf'!K86 -> 0 | P86: ='Detalle Bienes de Aseo y Caf'!L86 -> 0
A87: 73 | B87: Paño absorbente multiusos 2 (Compra) | C87: - Retira el polvo sin dejar residuos ni pelusas - Antibacterial reutilizable - Tela con microporos - Tamaño mínimo de 25 cm de largo por 45 cm de ancho | D87: Rollo X 40 unidades | E87: 8 | F87: =IF(E87>0,(VLOOKUP($C$5&$C$6&B87,ConsolidadoServicios!$A:$K,11,0)),0) -> 31065 | G87: =IF(E87>0,(VLOOKUP(B87,Minimos!$A:$B,2,0)),0) -> 1299 | H87: 0.2 | I87: 0.9665475616 | J87: 1039.2 | K87: 8313.6 | L87: =ROUND(VLOOKUP($C$5&B87,ConsolidadoServicios!P:Q,2,0)*80%,2) -> 0 | M87: ='Detalle Bienes de Aseo y Caf'!I87 -> 2 | N87: ='Detalle Bienes de Aseo y Caf'!J87 -> 2 | O87: ='Detalle Bienes de Aseo y Caf'!K87 -> 2 | P87: ='Detalle Bienes de Aseo y Caf'!L87 -> 2
A88: 74 | B88: Estopa (Compra) | C88: - Hecha 100% de hilos de algodón blanco peinado. -Suave al tacto, para lustrar - No debe contener PVC o Poliestireno expandido u otros plásticos de un solo uso tanto en el envase como en el embalaje. | D88: Bolsa de mínimo 400 g | E88: 0 | F88: =IF(E88>0,(VLOOKUP($C$5&$C$6&B88,ConsolidadoServicios!$A:$K,11,0)),0) -> 0 | G88: =IF(E88>0,(VLOOKUP(B88,Minimos!$A:$B,2,0)),0) -> 0 | H88: 0 | J88: 0 | K88: 0 | L88: =ROUND(VLOOKUP($C$5&B88,ConsolidadoServicios!P:Q,2,0)*80%,2) -> 0 | M88: ='Detalle Bienes de Aseo y Caf'!I88 -> 0 | N88: ='Detalle Bienes de Aseo y Caf'!J88 -> 0 | O88: ='Detalle Bienes de Aseo y Caf'!K88 -> 0 | P88: ='Detalle Bienes de Aseo y Caf'!L88 -> 0
A89: 75 | B89: Esponjilla 1 (Compra) | C89: - Espuma enmallada - Tamaño mínimo de 7 cm de largo por 10 cm de ancho | D89: Unidad | E89: 0 | F89: =IF(E89>0,(VLOOKUP($C$5&$C$6&B89,ConsolidadoServicios!$A:$K,11,0)),0) -> 0 | G89: =IF(E89>0,(VLOOKUP(B89,Minimos!$A:$B,2,0)),0) -> 0 | H89: 0 | J89: 0 | K89: 0 | L89: =ROUND(VLOOKUP($C$5&B89,ConsolidadoServicios!P:Q,2,0)*80%,2) -> 0 | M89: ='Detalle Bienes de Aseo y Caf'!I89 -> 0 | N89: ='Detalle Bienes de Aseo y Caf'!J89 -> 0 | O89: ='Detalle Bienes de Aseo y Caf'!K89 -> 0 | P89: ='Detalle Bienes de Aseo y Caf'!L89 -> 0
A90: 76 | B90: Esponjilla 2 (Compra) | C90: - Doble uso (material de esponjilla blanda y abrasiva) - Tamaño mínimo de 7 cm de largo por 10 cm de ancho - No debe contener PVC o Poliestireno expandido u otros plásticos de un solo uso tanto en el envase como en el embalaje | D90: Unidad | E90: 0 | F90: =IF(E90>0,(VLOOKUP($C$5&$C$6&B90,ConsolidadoServicios!$A:$K,11,0)),0) -> 0 | G90: =IF(E90>0,(VLOOKUP(B90,Minimos!$A:$B,2,0)),0) -> 0 | H90: 0 | J90: 0 | K90: 0 | L90: =ROUND(VLOOKUP($C$5&B90,ConsolidadoServicios!P:Q,2,0)*80%,2) -> 0 | M90: ='Detalle Bienes de Aseo y Caf'!I90 -> 0 | N90: ='Detalle Bienes de Aseo y Caf'!J90 -> 0 | O90: ='Detalle Bienes de Aseo y Caf'!K90 -> 0 | P90: ='Detalle Bienes de Aseo y Caf'!L90 -> 0
A91: 77 | B91: Esponjilla 3 (Compra) | C91: - Abrasiva - Tamaño mínimo de 9 cm de largo por 12 cm de | D91: Unidad | E91: 0 | F91: =IF(E91>0,(VLOOKUP($C$5&$C$6&B91,ConsolidadoServicios!$A:$K,11,0)),0) -> 0 | G91: =IF(E91>0,(VLOOKUP(B91,Minimos!$A:$B,2,0)),0) -> 0 | H91: 0 | J91: 0 | K91: 0 | L91: =ROUND(VLOOKUP($C$5&B91,ConsolidadoServicios!P:Q,2,0)*80%,2) -> 0 | M91: ='Detalle Bienes de Aseo y Caf'!I91 -> 0 | N91: ='Detalle Bienes de Aseo y Caf'!J91 -> 0 | O91: ='Detalle Bienes de Aseo y Caf'!K91 -> 0 | P91: ='Detalle Bienes de Aseo y Caf'!L91 -> 0
A92: 78 | B92: Esponjilla 4 (Compra) | C92: - Elaborada con fibra de acero inoxidable para dar brillo - Tamaño mínimo de 5 cm de largo por 5 cm de ancho | D92: Paquete X 6 unidades | E92: 0 | F92: =IF(E92>0,(VLOOKUP($C$5&$C$6&B92,ConsolidadoServicios!$A:$K,11,0)),0) -> 0 | G92: =IF(E92>0,(VLOOKUP(B92,Minimos!$A:$B,2,0)),0) -> 0 | H92: 0 | J92: 0 | K92: 0 | L92: =ROUND(VLOOKUP($C$5&B92,ConsolidadoServicios!P:Q,2,0)*80%,2) -> 0 | M92: ='Detalle Bienes de Aseo y Caf'!I92 -> 0 | N92: ='Detalle Bienes de Aseo y Caf'!J92 -> 0 | O92: ='Detalle Bienes de Aseo y Caf'!K92 -> 0 | P92: ='Detalle Bienes de Aseo y Caf'!L92 -> 0
A93: 79 | B93: Esponjilla 5 (Compra) | C93: - Elaborada con alambre de acero inoxidable - Tamaño mínimo de 7 cm de largo por 10 cm de ancho | D93: Unidad | E93: 0 | F93: =IF(E93>0,(VLOOKUP($C$5&$C$6&B93,ConsolidadoServicios!$A:$K,11,0)),0) -> 0 | G93: =IF(E93>0,(VLOOKUP(B93,Minimos!$A:$B,2,0)),0) -> 0 | H93: 0 | J93: 0 | K93: 0 | L93: =ROUND(VLOOKUP($C$5&B93,ConsolidadoServicios!P:Q,2,0)*80%,2) -> 0 | M93: ='Detalle Bienes de Aseo y Caf'!I93 -> 0 | N93: ='Detalle Bienes de Aseo y Caf'!J93 -> 0 | O93: ='Detalle Bienes de Aseo y Caf'!K93 -> 0 | P93: ='Detalle Bienes de Aseo y Caf'!L93 -> 0
A94: 80 | B94: Esponjilla 6 (Compra) | C94: - Espuma enmallada - Tamaño mínimo de 7 cm de largo por 10 cm de ancho - No debe contener PVC o Poliestireno expandido u otros plásticos de un solo uso tanto en el envase como en el embalaje. | D94: Unidad | E94: 0 | F94: =IF(E94>0,(VLOOKUP($C$5&$C$6&B94,ConsolidadoServicios!$A:$K,11,0)),0) -> 0 | G94: =IF(E94>0,(VLOOKUP(B94,Minimos!$A:$B,2,0)),0) -> 0 | H94: 0 | J94: 0 | K94: 0 | L94: =ROUND(VLOOKUP($C$5&B94,ConsolidadoServicios!P:Q,2,0)*80%,2) -> 0 | M94: ='Detalle Bienes de Aseo y Caf'!I94 -> 0 | N94: ='Detalle Bienes de Aseo y Caf'!J94 -> 0 | O94: ='Detalle Bienes de Aseo y Caf'!K94 -> 0 | P94: ='Detalle Bienes de Aseo y Caf'!L94 -> 0
A95: 81 | B95: Esponjilla 7 (Compra) | C95: - Abrasiva - Tamaño mínimo de 9 cm de largo por 12 cm de ancho - No debe contener PVC o Poliestireno expandido u otros plásticos de un solo uso tanto en el envase como en el embalaje. | D95: Unidad | E95: 0 | F95: =IF(E95>0,(VLOOKUP($C$5&$C$6&B95,ConsolidadoServicios!$A:$K,11,0)),0) -> 0 | G95: =IF(E95>0,(VLOOKUP(B95,Minimos!$A:$B,2,0)),0) -> 0 | H95: 0 | J95: 0 | K95: 0 | L95: =ROUND(VLOOKUP($C$5&B95,ConsolidadoServicios!P:Q,2,0)*80%,2) -> 0 | M95: ='Detalle Bienes de Aseo y Caf'!I95 -> 0 | N95: ='Detalle Bienes de Aseo y Caf'!J95 -> 0 | O95: ='Detalle Bienes de Aseo y Caf'!K95 -> 0 | P95: ='Detalle Bienes de Aseo y Caf'!L95 -> 0
A96: 82 | B96: Escoba 1 (Compra) | C96: - Cerdas suaves elaboradas con PET calibre entre 0,3 y 0,4 mm. - Área de barrido mínima de 25 cm de largo por 8 cm de ancho por 10 cm de alto - Material de base en plástico con acople tipo rosca | D96: Unidad | E96: 0 | F96: =IF(E96>0,(VLOOKUP($C$5&$C$6&B96,ConsolidadoServicios!$A:$K,11,0)),0) -> 0 | G96: =IF(E96>0,(VLOOKUP(B96,Minimos!$A:$B,2,0)),0) -> 0 | H96: 0 | J96: 0 | K96: 0 | L96: =ROUND(VLOOKUP($C$5&B96,ConsolidadoServicios!P:Q,2,0)*80%,2) -> 0 | M96: ='Detalle Bienes de Aseo y Caf'!I96 -> 0 | N96: ='Detalle Bienes de Aseo y Caf'!J96 -> 0 | O96: ='Detalle Bienes de Aseo y Caf'!K96 -> 0 | P96: ='Detalle Bienes de Aseo y Caf'!L96 -> 0
A97: 83 | B97: Escoba 2 (Compra) | C97: - Cerdas duras elaboradas con PET calibre entre 0,4 y 0,6 mm. - Área de barrido mínima de 25 cm de largo por 8 cm de ancho por 10 cm de alto - Material de base en plástico con acople tipo rosca | D97: Unidad | E97: 0 | F97: =IF(E97>0,(VLOOKUP($C$5&$C$6&B97,ConsolidadoServicios!$A:$K,11,0)),0) -> 0 | G97: =IF(E97>0,(VLOOKUP(B97,Minimos!$A:$B,2,0)),0) -> 0 | H97: 0 | J97: 0 | K97: 0 | L97: =ROUND(VLOOKUP($C$5&B97,ConsolidadoServicios!P:Q,2,0)*80%,2) -> 0 | M97: ='Detalle Bienes de Aseo y Caf'!I97 -> 0 | N97: ='Detalle Bienes de Aseo y Caf'!J97 -> 0 | O97: ='Detalle Bienes de Aseo y Caf'!K97 -> 0 | P97: ='Detalle Bienes de Aseo y Caf'!L97 -> 0
A98: 84 | B98: Escoba 3 (Compra) | C98: - Cerdas suaves elaboradas con PET calibre entre 0,3 y 0,4 mm. - Área de barrido mínima de 35 cm de largo por 8 cm de ancho por 10 cm de alto - Material de base en plástico con acople tipo rosca | D98: Unidad | E98: 4 | F98: =IF(E98>0,(VLOOKUP($C$5&$C$6&B98,ConsolidadoServicios!$A:$K,11,0)),0) -> 6455 | G98: =IF(E98>0,(VLOOKUP(B98,Minimos!$A:$B,2,0)),0) -> 3489 | H98: 0.2 | I98: 0.5675910147 | J98: 2791.2 | K98: 11164.8 | L98: =ROUND(VLOOKUP($C$5&B98,ConsolidadoServicios!P:Q,2,0)*80%,2) -> 0 | M98: ='Detalle Bienes de Aseo y Caf'!I98 -> 1 | N98: ='Detalle Bienes de Aseo y Caf'!J98 -> 1 | O98: ='Detalle Bienes de Aseo y Caf'!K98 -> 1 | P98: ='Detalle Bienes de Aseo y Caf'!L98 -> 1
A99: 85 | B99: Escoba 4 (Compra) | C99: - Cerdas duras elaboradas con PET calibre entre 0,4 y 0,6 mm. - Área de barrido mínima de 35 cm de largo por 8 cm de ancho por 10 cm de alto - Material de base en plástico con acople tipo rosca | D99: Unidad | E99: 0 | F99: =IF(E99>0,(VLOOKUP($C$5&$C$6&B99,ConsolidadoServicios!$A:$K,11,0)),0) -> 0 | G99: =IF(E99>0,(VLOOKUP(B99,Minimos!$A:$B,2,0)),0) -> 0 | H99: 0 | J99: 0 | K99: 0 | L99: =ROUND(VLOOKUP($C$5&B99,ConsolidadoServicios!P:Q,2,0)*80%,2) -> 0 | M99: ='Detalle Bienes de Aseo y Caf'!I99 -> 0 | N99: ='Detalle Bienes de Aseo y Caf'!J99 -> 0 | O99: ='Detalle Bienes de Aseo y Caf'!K99 -> 0 | P99: ='Detalle Bienes de Aseo y Caf'!L99 -> 0
A100: 86 | B100: Escoba 5 (Compra) | C100: - Cerdas suaves elaboradas con PET calibre entre 0,3 y 0,4 mm. - Área de barrido mínima de 35 cm de largo por 8 cm de ancho por 10 cm de alto - Mango de madera proveniente de explotación forestal sostenible certificada ( FSC, PEFC o equivalentes) y/o Mango y Fibra de plástico (reciclado o nuevo) de polipropileno (PP) o polietileno (PE) y/o cabo metálico que no contenga material plastificado - No debe contener PVC u otros plásticos con cloro. - Cabo de madera 140cm elaborada con fibra natural, con soporte para colgar, con capucha plástica protectora que evita que se desprendan las fibras o se deformen | D100: Unidad | E100: 0 | F100: =IF(E100>0,(VLOOKUP($C$5&$C$6&B100,ConsolidadoServicios!$A:$K,11,0)),0) -> 0 | G100: =IF(E100>0,(VLOOKUP(B100,Minimos!$A:$B,2,0)),0) -> 0 | H100: 0 | J100: 0 | K100: 0 | L100: =ROUND(VLOOKUP($C$5&B100,ConsolidadoServicios!P:Q,2,0)*80%,2) -> 0 | M100: ='Detalle Bienes de Aseo y Caf'!I100 -> 0 | N100: ='Detalle Bienes de Aseo y Caf'!J100 -> 0 | O100: ='Detalle Bienes de Aseo y Caf'!K100 -> 0 | P100: ='Detalle Bienes de Aseo y Caf'!L100 -> 0
A101: 87 | B101: Mango metálico escoba 1 (Compra) | C101: - Extensión mínima de 140 cm -Acople plástico o rosca para palos de escoba | D101: Unidad | E101: 0 | F101: =IF(E101>0,(VLOOKUP($C$5&$C$6&B101,ConsolidadoServicios!$A:$K,11,0)),0) -> 0 | G101: =IF(E101>0,(VLOOKUP(B101,Minimos!$A:$B,2,0)),0) -> 0 | H101: 0 | J101: 0 | K101: 0 | L101: =ROUND(VLOOKUP($C$5&B101,ConsolidadoServicios!P:Q,2,0)*80%,2) -> 0 | M101: ='Detalle Bienes de Aseo y Caf'!I101 -> 0 | N101: ='Detalle Bienes de Aseo y Caf'!J101 -> 0 | O101: ='Detalle Bienes de Aseo y Caf'!K101 -> 0 | P101: ='Detalle Bienes de Aseo y Caf'!L101 -> 0
A102: 88 | B102: Mango madera escoba 1 (Compra) | C102: - Extensión mínima de 140 cm -Acople plástico o rosca para palos de escoba | D102: Unidad | E102: 0 | F102: =IF(E102>0,(VLOOKUP($C$5&$C$6&B102,ConsolidadoServicios!$A:$K,11,0)),0) -> 0 | G102: =IF(E102>0,(VLOOKUP(B102,Minimos!$A:$B,2,0)),0) -> 0 | H102: 0 | J102: 0 | K102: 0 | L102: =ROUND(VLOOKUP($C$5&B102,ConsolidadoServicios!P:Q,2,0)*80%,2) -> 0 | M102: ='Detalle Bienes de Aseo y Caf'!I102 -> 0 | N102: ='Detalle Bienes de Aseo y Caf'!J102 -> 0 | O102: ='Detalle Bienes de Aseo y Caf'!K102 -> 0 | P102: ='Detalle Bienes de Aseo y Caf'!L102 -> 0
A103: 89 | B103: Cepillos 1 (Compra) | C103: - Tipo plancha, con mango de plástico - Cuerpo elaborado en plástico - Cerdas duras en fibra plástica - Tamaño mínimo de 15 cm de largo por 5cm de ancho por 6 cm de alto. | D103: Unidad | E103: 0 | F103: =IF(E103>0,(VLOOKUP($C$5&$C$6&B103,ConsolidadoServicios!$A:$K,11,0)),0) -> 0 | G103: =IF(E103>0,(VLOOKUP(B103,Minimos!$A:$B,2,0)),0) -> 0 | H103: 0 | J103: 0 | K103: 0 | L103: =ROUND(VLOOKUP($C$5&B103,ConsolidadoServicios!P:Q,2,0)*80%,2) -> 0 | M103: ='Detalle Bienes de Aseo y Caf'!I103 -> 0 | N103: ='Detalle Bienes de Aseo y Caf'!J103 -> 0 | O103: ='Detalle Bienes de Aseo y Caf'!K103 -> 0 | P103: ='Detalle Bienes de Aseo y Caf'!L103 -> 0
A104: 90 | B104: Cepillos 2 (Compra) | C104: - Para pisos - Cuerpo elaborado en plástico - Cerdas duras en fibra plástica - Tamaño mínimo de 23 cm de largo por 6 cm de ancho por 7 cm de alto. - Mango metálico con una extensión mínima de 140 cm | D104: Unidad | E104: 0 | F104: =IF(E104>0,(VLOOKUP($C$5&$C$6&B104,ConsolidadoServicios!$A:$K,11,0)),0) -> 0 | G104: =IF(E104>0,(VLOOKUP(B104,Minimos!$A:$B,2,0)),0) -> 0 | H104: 0 | J104: 0 | K104: 0 | L104: =ROUND(VLOOKUP($C$5&B104,ConsolidadoServicios!P:Q,2,0)*80%,2) -> 0 | M104: ='Detalle Bienes de Aseo y Caf'!I104 -> 0 | N104: ='Detalle Bienes de Aseo y Caf'!J104 -> 0 | O104: ='Detalle Bienes de Aseo y Caf'!K104 -> 0 | P104: ='Detalle Bienes de Aseo y Caf'!L104 -> 0
A105: 91 | B105: Cepillos 3 (Compra) | C105: - Para pisos - Cuerpo elaborado en plástico - Cerdas duras en fibra plástica - Tamaño mínimo de 35 cm de largo por 6 cm de ancho por 7 cm de alto. - Mango metálico con una extensión mínima de 140 cm | D105: Unidad | E105: 0 | F105: =IF(E105>0,(VLOOKUP($C$5&$C$6&B105,ConsolidadoServicios!$A:$K,11,0)),0) -> 0 | G105: =IF(E105>0,(VLOOKUP(B105,Minimos!$A:$B,2,0)),0) -> 0 | H105: 0 | J105: 0 | K105: 0 | L105: =ROUND(VLOOKUP($C$5&B105,ConsolidadoServicios!P:Q,2,0)*80%,2) -> 0 | M105: ='Detalle Bienes de Aseo y Caf'!I105 -> 0 | N105: ='Detalle Bienes de Aseo y Caf'!J105 -> 0 | O105: ='Detalle Bienes de Aseo y Caf'!K105 -> 0 | P105: ='Detalle Bienes de Aseo y Caf'!L105 -> 0
A106: 92 | B106: Trapero 1 (Compra) | C106: - Elaborado con hilaza de algodón natural - Mecha con peso mínimo 250 gr y extensión mínima de 32 cm de largo - Material de base en plástico con acople tipo rosca | D106: Unidad | E106: 0 | F106: =IF(E106>0,(VLOOKUP($C$5&$C$6&B106,ConsolidadoServicios!$A:$K,11,0)),0) -> 0 | G106: =IF(E106>0,(VLOOKUP(B106,Minimos!$A:$B,2,0)),0) -> 0 | H106: 0 | J106: 0 | K106: 0 | L106: =ROUND(VLOOKUP($C$5&B106,ConsolidadoServicios!P:Q,2,0)*80%,2) -> 0 | M106: ='Detalle Bienes de Aseo y Caf'!I106 -> 0 | N106: ='Detalle Bienes de Aseo y Caf'!J106 -> 0 | O106: ='Detalle Bienes de Aseo y Caf'!K106 -> 0 | P106: ='Detalle Bienes de Aseo y Caf'!L106 -> 0
A107: 93 | B107: Trapero 2 (Compra) | C107: - Elaborado con hilaza de algodón natural - Mecha con peso mínimo de 350 gr y extensión mínima de 32 cm de largo - Material de base en plástico con acople tipo rosca | D107: Unidad | E107: 0 | F107: =IF(E107>0,(VLOOKUP($C$5&$C$6&B107,ConsolidadoServicios!$A:$K,11,0)),0) -> 0 | G107: =IF(E107>0,(VLOOKUP(B107,Minimos!$A:$B,2,0)),0) -> 0 | H107: 0 | J107: 0 | K107: 0 | L107: =ROUND(VLOOKUP($C$5&B107,ConsolidadoServicios!P:Q,2,0)*80%,2) -> 0 | M107: ='Detalle Bienes de Aseo y Caf'!I107 -> 0 | N107: ='Detalle Bienes de Aseo y Caf'!J107 -> 0 | O107: ='Detalle Bienes de Aseo y Caf'!K107 -> 0 | P107: ='Detalle Bienes de Aseo y Caf'!L107 -> 0
A108: 94 | B108: Trapero 3 (Compra) | C108: - Elaborado con hilaza de algodón natural - Mecha con peso mínimo de 435 gr y extensión mínima de 32 cm de largo - Material de base en plástico con acople tipo rosca | D108: Unidad | E108: 0 | F108: =IF(E108>0,(VLOOKUP($C$5&$C$6&B108,ConsolidadoServicios!$A:$K,11,0)),0) -> 0 | G108: =IF(E108>0,(VLOOKUP(B108,Minimos!$A:$B,2,0)),0) -> 0 | H108: 0 | J108: 0 | K108: 0 | L108: =ROUND(VLOOKUP($C$5&B108,ConsolidadoServicios!P:Q,2,0)*80%,2) -> 0 | M108: ='Detalle Bienes de Aseo y Caf'!I108 -> 0 | N108: ='Detalle Bienes de Aseo y Caf'!J108 -> 0 | O108: ='Detalle Bienes de Aseo y Caf'!K108 -> 0 | P108: ='Detalle Bienes de Aseo y Caf'!L108 -> 0
A109: 95 | B109: Trapero 4 (Compra) | C109: - Trapero en hilo encabado o con cabo en madera - Mecha con peso mínimo de 400 gr y extensión mínima de 1.40 cm de largo - Mango de madera proveniente de explotación forestal sostenible certificada ( FSC, PEFC o equivalentes) y/o cabo metálico que no contenga material plastificado - Fibras en tela , algodón o pabilo de fibra de Rayón. - No debe contener PVC o Poliestireno expandido u otros plásticos de un solo uso tanto en el envase como en el embalaje. | D109: Unidad | E109: 4 | F109: =IF(E109>0,(VLOOKUP($C$5&$C$6&B109,ConsolidadoServicios!$A:$K,11,0)),0) -> 22295 | G109: =IF(E109>0,(VLOOKUP(B109,Minimos!$A:$B,2,0)),0) -> 4573 | H109: 0.25 | I109: 0.8461650594 | J109: 3429.75 | K109: 13719 | L109: =ROUND(VLOOKUP($C$5&B109,ConsolidadoServicios!P:Q,2,0)*80%,2) -> 0 | M109: ='Detalle Bienes de Aseo y Caf'!I109 -> 1 | N109: ='Detalle Bienes de Aseo y Caf'!J109 -> 1 | O109: ='Detalle Bienes de Aseo y Caf'!K109 -> 1 | P109: ='Detalle Bienes de Aseo y Caf'!L109 -> 1
A110: 96 | B110: Mango metálico trapero (Compra) | C110: - Extensión mínima de 140 cm - Acople plástico o rosca para palos de escoba | D110: Unidad | E110: 0 | F110: =IF(E110>0,(VLOOKUP($C$5&$C$6&B110,ConsolidadoServicios!$A:$K,11,0)),0) -> 0 | G110: =IF(E110>0,(VLOOKUP(B110,Minimos!$A:$B,2,0)),0) -> 0 | H110: 0 | J110: 0 | K110: 0 | L110: =ROUND(VLOOKUP($C$5&B110,ConsolidadoServicios!P:Q,2,0)*80%,2) -> 0 | M110: ='Detalle Bienes de Aseo y Caf'!I110 -> 0 | N110: ='Detalle Bienes de Aseo y Caf'!J110 -> 0 | O110: ='Detalle Bienes de Aseo y Caf'!K110 -> 0 | P110: ='Detalle Bienes de Aseo y Caf'!L110 -> 0
A111: 97 | B111: Mango madera trapero (Compra) | C111: - Extensión mínima de 140 cm - Acople plástico o rosca para palos de escoba | D111: Unidad | E111: 0 | F111: =IF(E111>0,(VLOOKUP($C$5&$C$6&B111,ConsolidadoServicios!$A:$K,11,0)),0) -> 0 | G111: =IF(E111>0,(VLOOKUP(B111,Minimos!$A:$B,2,0)),0) -> 0 | H111: 0 | J111: 0 | K111: 0 | L111: =ROUND(VLOOKUP($C$5&B111,ConsolidadoServicios!P:Q,2,0)*80%,2) -> 0 | M111: ='Detalle Bienes de Aseo y Caf'!I111 -> 0 | N111: ='Detalle Bienes de Aseo y Caf'!J111 -> 0 | O111: ='Detalle Bienes de Aseo y Caf'!K111 -> 0 | P111: ='Detalle Bienes de Aseo y Caf'!L111 -> 0
A112: 98 | B112: Cepillo para sanitario (churrusco) (Compra) | C112: - Cerdas duras elaboradas en fibras plásticas - Extensión mínima de las cerdas es de 2,5 cm - Base y mango elaborados en plástico - Mango con longitud mínima de 33 cm | D112: Unidad | E112: 0 | F112: =IF(E112>0,(VLOOKUP($C$5&$C$6&B112,ConsolidadoServicios!$A:$K,11,0)),0) -> 0 | G112: =IF(E112>0,(VLOOKUP(B112,Minimos!$A:$B,2,0)),0) -> 0 | H112: 0 | J112: 0 | K112: 0 | L112: =ROUND(VLOOKUP($C$5&B112,ConsolidadoServicios!P:Q,2,0)*80%,2) -> 0 | M112: ='Detalle Bienes de Aseo y Caf'!I112 -> 0 | N112: ='Detalle Bienes de Aseo y Caf'!J112 -> 0 | O112: ='Detalle Bienes de Aseo y Caf'!K112 -> 0 | P112: ='Detalle Bienes de Aseo y Caf'!L112 -> 0
A113: 99 | B113: Pads 1 (Compra) | C113: - Para brillo - Diámetro mínimo de 16 pulgadas - Rojo o blanco | D113: Unidad | E113: 0 | F113: =IF(E113>0,(VLOOKUP($C$5&$C$6&B113,ConsolidadoServicios!$A:$K,11,0)),0) -> 0 | G113: =IF(E113>0,(VLOOKUP(B113,Minimos!$A:$B,2,0)),0) -> 0 | H113: 0 | J113: 0 | K113: 0 | L113: =ROUND(VLOOKUP($C$5&B113,ConsolidadoServicios!P:Q,2,0)*80%,2) -> 0 | M113: ='Detalle Bienes de Aseo y Caf'!I113 -> 0 | N113: ='Detalle Bienes de Aseo y Caf'!J113 -> 0 | O113: ='Detalle Bienes de Aseo y Caf'!K113 -> 0 | P113: ='Detalle Bienes de Aseo y Caf'!L113 -> 0
A114: 100 | B114: Pads 2 (Compra) | C114: - Para remoción - Diámetro mínimo de 16 pulgadas - Café o negro | D114: Unidad | E114: 0 | F114: =IF(E114>0,(VLOOKUP($C$5&$C$6&B114,ConsolidadoServicios!$A:$K,11,0)),0) -> 0 | G114: =IF(E114>0,(VLOOKUP(B114,Minimos!$A:$B,2,0)),0) -> 0 | H114: 0 | J114: 0 | K114: 0 | L114: =ROUND(VLOOKUP($C$5&B114,ConsolidadoServicios!P:Q,2,0)*80%,2) -> 0 | M114: ='Detalle Bienes de Aseo y Caf'!I114 -> 0 | N114: ='Detalle Bienes de Aseo y Caf'!J114 -> 0 | O114: ='Detalle Bienes de Aseo y Caf'!K114 -> 0 | P114: ='Detalle Bienes de Aseo y Caf'!L114 -> 0
A115: 101 | B115: Pads 3 (Compra) | C115: - Para brillo - Diámetro mínimo de 20 pulgadas - Rojo o blanco | D115: Unidad | E115: 0 | F115: =IF(E115>0,(VLOOKUP($C$5&$C$6&B115,ConsolidadoServicios!$A:$K,11,0)),0) -> 0 | G115: =IF(E115>0,(VLOOKUP(B115,Minimos!$A:$B,2,0)),0) -> 0 | H115: 0 | J115: 0 | K115: 0 | L115: =ROUND(VLOOKUP($C$5&B115,ConsolidadoServicios!P:Q,2,0)*80%,2) -> 0 | M115: ='Detalle Bienes de Aseo y Caf'!I115 -> 0 | N115: ='Detalle Bienes de Aseo y Caf'!J115 -> 0 | O115: ='Detalle Bienes de Aseo y Caf'!K115 -> 0 | P115: ='Detalle Bienes de Aseo y Caf'!L115 -> 0
A116: 102 | B116: Pads 4 (Compra) | C116: - Para remoción - Diámetro mínimo de 20 pulgadas - Café o negro | D116: Unidad | E116: 0 | F116: =IF(E116>0,(VLOOKUP($C$5&$C$6&B116,ConsolidadoServicios!$A:$K,11,0)),0) -> 0 | G116: =IF(E116>0,(VLOOKUP(B116,Minimos!$A:$B,2,0)),0) -> 0 | H116: 0 | J116: 0 | K116: 0 | L116: =ROUND(VLOOKUP($C$5&B116,ConsolidadoServicios!P:Q,2,0)*80%,2) -> 0 | M116: ='Detalle Bienes de Aseo y Caf'!I116 -> 0 | N116: ='Detalle Bienes de Aseo y Caf'!J116 -> 0 | O116: ='Detalle Bienes de Aseo y Caf'!K116 -> 0 | P116: ='Detalle Bienes de Aseo y Caf'!L116 -> 0
A117: 103 | B117: Pads 5 (Compra) | C117: - Pad de fibras para máquinas de baja densidad para lavado suave de mantención, remueve marcas, suciedad y derrames. - Diámetro: 17" - Color: blanco. - No debe contener PVC o Poliestireno expandido u otros plásticos de un solo uso tanto en el envase como en el embalaje. | D117: Unidad | E117: 0 | F117: =IF(E117>0,(VLOOKUP($C$5&$C$6&B117,ConsolidadoServicios!$A:$K,11,0)),0) -> 0 | G117: =IF(E117>0,(VLOOKUP(B117,Minimos!$A:$B,2,0)),0) -> 0 | H117: 0 | J117: 0 | K117: 0 | L117: =ROUND(VLOOKUP($C$5&B117,ConsolidadoServicios!P:Q,2,0)*80%,2) -> 0 | M117: ='Detalle Bienes de Aseo y Caf'!I117 -> 0 | N117: ='Detalle Bienes de Aseo y Caf'!J117 -> 0 | O117: ='Detalle Bienes de Aseo y Caf'!K117 -> 0 | P117: ='Detalle Bienes de Aseo y Caf'!L117 -> 0
A118: 104 | B118: Boneth 1 (Compra) | C118: - Diámetro mínimo de 16 pulgadas - Elaborado en hilaza de algodón | D118: Unidad | E118: 0 | F118: =IF(E118>0,(VLOOKUP($C$5&$C$6&B118,ConsolidadoServicios!$A:$K,11,0)),0) -> 0 | G118: =IF(E118>0,(VLOOKUP(B118,Minimos!$A:$B,2,0)),0) -> 0 | H118: 0 | J118: 0 | K118: 0 | L118: =ROUND(VLOOKUP($C$5&B118,ConsolidadoServicios!P:Q,2,0)*80%,2) -> 0 | M118: ='Detalle Bienes de Aseo y Caf'!I118 -> 0 | N118: ='Detalle Bienes de Aseo y Caf'!J118 -> 0 | O118: ='Detalle Bienes de Aseo y Caf'!K118 -> 0 | P118: ='Detalle Bienes de Aseo y Caf'!L118 -> 0
A119: 105 | B119: Boneth 2 (Compra) | C119: - Diámetro mínimo de 20 pulgadas - Elaborado en hilaza de algodón | D119: Unidad | E119: 0 | F119: =IF(E119>0,(VLOOKUP($C$5&$C$6&B119,ConsolidadoServicios!$A:$K,11,0)),0) -> 0 | G119: =IF(E119>0,(VLOOKUP(B119,Minimos!$A:$B,2,0)),0) -> 0 | H119: 0 | J119: 0 | K119: 0 | L119: =ROUND(VLOOKUP($C$5&B119,ConsolidadoServicios!P:Q,2,0)*80%,2) -> 0 | M119: ='Detalle Bienes de Aseo y Caf'!I119 -> 0 | N119: ='Detalle Bienes de Aseo y Caf'!J119 -> 0 | O119: ='Detalle Bienes de Aseo y Caf'!K119 -> 0 | P119: ='Detalle Bienes de Aseo y Caf'!L119 -> 0
A120: 106 | B120: Bolsas plásticas 1 (Compra) | C120: - Elaborada en polietileno de baja densidad - De color negro - Calibre de mínimo 1 - Tamaño de 40 cm de ancho por 55 cm de largo | D120: Paquete de mínimo 6 | E120: 0 | F120: =IF(E120>0,(VLOOKUP($C$5&$C$6&B120,ConsolidadoServicios!$A:$K,11,0)),0) -> 0 | G120: =IF(E120>0,(VLOOKUP(B120,Minimos!$A:$B,2,0)),0) -> 0 | H120: 0 | J120: 0 | K120: 0 | L120: =ROUND(VLOOKUP($C$5&B120,ConsolidadoServicios!P:Q,2,0)*80%,2) -> 0 | M120: ='Detalle Bienes de Aseo y Caf'!I120 -> 0 | N120: ='Detalle Bienes de Aseo y Caf'!J120 -> 0 | O120: ='Detalle Bienes de Aseo y Caf'!K120 -> 0 | P120: ='Detalle Bienes de Aseo y Caf'!L120 -> 0
A121: 107 | B121: Bolsas plásticas 2 (Compra) | C121: - Elaborada en polietileno de baja densidad - De color verde - Calibre de mínimo 1 - Tamaño de 40 cm de ancho por 55 cm de largo | D121: Paquete de mínimo 6 | E121: 0 | F121: =IF(E121>0,(VLOOKUP($C$5&$C$6&B121,ConsolidadoServicios!$A:$K,11,0)),0) -> 0 | G121: =IF(E121>0,(VLOOKUP(B121,Minimos!$A:$B,2,0)),0) -> 0 | H121: 0 | J121: 0 | K121: 0 | L121: =ROUND(VLOOKUP($C$5&B121,ConsolidadoServicios!P:Q,2,0)*80%,2) -> 0 | M121: ='Detalle Bienes de Aseo y Caf'!I121 -> 0 | N121: ='Detalle Bienes de Aseo y Caf'!J121 -> 0 | O121: ='Detalle Bienes de Aseo y Caf'!K121 -> 0 | P121: ='Detalle Bienes de Aseo y Caf'!L121 -> 0
A122: 108 | B122: Bolsas plásticas 3 (Compra) | C122: - Elaborada en polietileno de baja densidad - De color blanco - Calibre de mínimo 1 - Tamaño de 40 cm de ancho por 55 cm de largo | D122: Paquete de mínimo 6 | E122: 0 | F122: =IF(E122>0,(VLOOKUP($C$5&$C$6&B122,ConsolidadoServicios!$A:$K,11,0)),0) -> 0 | G122: =IF(E122>0,(VLOOKUP(B122,Minimos!$A:$B,2,0)),0) -> 0 | H122: 0 | J122: 0 | K122: 0 | L122: =ROUND(VLOOKUP($C$5&B122,ConsolidadoServicios!P:Q,2,0)*80%,2) -> 0 | M122: ='Detalle Bienes de Aseo y Caf'!I122 -> 0 | N122: ='Detalle Bienes de Aseo y Caf'!J122 -> 0 | O122: ='Detalle Bienes de Aseo y Caf'!K122 -> 0 | P122: ='Detalle Bienes de Aseo y Caf'!L122 -> 0
A123: 109 | B123: Bolsas plásticas 4 (Compra) | C123: - Elaborada en polietileno de baja densidad - De color rojo - Calibre de mínimo 1 - Tamaño de 40 cm de ancho por 55 cm de largo - Con impresión de aviso de riesgo biológico | D123: Paquete de mínimo 6 | E123: 0 | F123: =IF(E123>0,(VLOOKUP($C$5&$C$6&B123,ConsolidadoServicios!$A:$K,11,0)),0) -> 0 | G123: =IF(E123>0,(VLOOKUP(B123,Minimos!$A:$B,2,0)),0) -> 0 | H123: 0 | J123: 0 | K123: 0 | L123: =ROUND(VLOOKUP($C$5&B123,ConsolidadoServicios!P:Q,2,0)*80%,2) -> 0 | M123: ='Detalle Bienes de Aseo y Caf'!I123 -> 0 | N123: ='Detalle Bienes de Aseo y Caf'!J123 -> 0 | O123: ='Detalle Bienes de Aseo y Caf'!K123 -> 0 | P123: ='Detalle Bienes de Aseo y Caf'!L123 -> 0
A124: 110 | B124: Bolsas plásticas 5 (Compra) | C124: - Elaborada en polietileno de baja densidad - De color azul - Calibre de mínimo 1 - Tamaño de 40 cm de ancho por 55 cm de largo | D124: Paquete de mínimo 6 | E124: 0 | F124: =IF(E124>0,(VLOOKUP($C$5&$C$6&B124,ConsolidadoServicios!$A:$K,11,0)),0) -> 0 | G124: =IF(E124>0,(VLOOKUP(B124,Minimos!$A:$B,2,0)),0) -> 0 | H124: 0 | J124: 0 | K124: 0 | L124: =ROUND(VLOOKUP($C$5&B124,ConsolidadoServicios!P:Q,2,0)*80%,2) -> 0 | M124: ='Detalle Bienes de Aseo y Caf'!I124 -> 0 | N124: ='Detalle Bienes de Aseo y Caf'!J124 -> 0 | O124: ='Detalle Bienes de Aseo y Caf'!K124 -> 0 | P124: ='Detalle Bienes de Aseo y Caf'!L124 -> 0
A125: 111 | B125: Bolsas plásticas 7 (Compra) | C125: - Elaborada en polietileno de baja densidad - De color amarillo - Calibre de mínimo 1 - Tamaño de 40 cm de ancho por 55 cm de largo | D125: Paquete de mínimo 6 | E125: 0 | F125: =IF(E125>0,(VLOOKUP($C$5&$C$6&B125,ConsolidadoServicios!$A:$K,11,0)),0) -> 0 | G125: =IF(E125>0,(VLOOKUP(B125,Minimos!$A:$B,2,0)),0) -> 0 | H125: 0 | J125: 0 | K125: 0 | L125: =ROUND(VLOOKUP($C$5&B125,ConsolidadoServicios!P:Q,2,0)*80%,2) -> 0 | M125: ='Detalle Bienes de Aseo y Caf'!I125 -> 0 | N125: ='Detalle Bienes de Aseo y Caf'!J125 -> 0 | O125: ='Detalle Bienes de Aseo y Caf'!K125 -> 0 | P125: ='Detalle Bienes de Aseo y Caf'!L125 -> 0
A126: 112 | B126: Bolsas plásticas 8 (Compra) | C126: - Elaborada en polietileno de baja densidad - De color negro -Calibre de mínimo 2 - Tamaño de 60 cm de ancho por 70 cm de largo | D126: Paquete de mínimo 6 | E126: 12 | F126: =IF(E126>0,(VLOOKUP($C$5&$C$6&B126,ConsolidadoServicios!$A:$K,11,0)),0) -> 3629 | G126: =IF(E126>0,(VLOOKUP(B126,Minimos!$A:$B,2,0)),0) -> 1335 | H126: 0.25 | I126: 0.7240975475 | J126: 1001.25 | K126: 12015 | L126: =ROUND(VLOOKUP($C$5&B126,ConsolidadoServicios!P:Q,2,0)*80%,2) -> 0 | M126: ='Detalle Bienes de Aseo y Caf'!I126 -> 3 | N126: ='Detalle Bienes de Aseo y Caf'!J126 -> 3 | O126: ='Detalle Bienes de Aseo y Caf'!K126 -> 3 | P126: ='Detalle Bienes de Aseo y Caf'!L126 -> 3
A127: 113 | B127: Bolsas plásticas 9 (Compra) | C127: - Elaborada en polietileno de baja densidad - De color verde - Calibre de mínimo 2 - Tamaño de 60 cm de ancho por 70 cm de largo | D127: Paquete de mínimo 6 | E127: 0 | F127: =IF(E127>0,(VLOOKUP($C$5&$C$6&B127,ConsolidadoServicios!$A:$K,11,0)),0) -> 0 | G127: =IF(E127>0,(VLOOKUP(B127,Minimos!$A:$B,2,0)),0) -> 0 | H127: 0 | J127: 0 | K127: 0 | L127: =ROUND(VLOOKUP($C$5&B127,ConsolidadoServicios!P:Q,2,0)*80%,2) -> 0 | M127: ='Detalle Bienes de Aseo y Caf'!I127 -> 0 | N127: ='Detalle Bienes de Aseo y Caf'!J127 -> 0 | O127: ='Detalle Bienes de Aseo y Caf'!K127 -> 0 | P127: ='Detalle Bienes de Aseo y Caf'!L127 -> 0
A128: 114 | B128: Bolsas plásticas 10 (Compra) | C128: - Elaborada en polietileno de baja densidad - De color blanco - Calibre de mínimo 2 - Tamaño de 60 cm de ancho por 70 cm de largo | D128: Paquete de mínimo 6 | E128: 0 | F128: =IF(E128>0,(VLOOKUP($C$5&$C$6&B128,ConsolidadoServicios!$A:$K,11,0)),0) -> 0 | G128: =IF(E128>0,(VLOOKUP(B128,Minimos!$A:$B,2,0)),0) -> 0 | H128: 0 | J128: 0 | K128: 0 | L128: =ROUND(VLOOKUP($C$5&B128,ConsolidadoServicios!P:Q,2,0)*80%,2) -> 0 | M128: ='Detalle Bienes de Aseo y Caf'!I128 -> 0 | N128: ='Detalle Bienes de Aseo y Caf'!J128 -> 0 | O128: ='Detalle Bienes de Aseo y Caf'!K128 -> 0 | P128: ='Detalle Bienes de Aseo y Caf'!L128 -> 0
A129: 115 | B129: Bolsas plásticas 11 (Compra) | C129: - Elaborada en polietileno de baja densidad - De color rojo - Calibre de mínimo 2 - Tamaño de 60 cm de ancho por 70 cm de largo - Con impresión de aviso de riesgo biológico | D129: Paquete de mínimo 6 | E129: 0 | F129: =IF(E129>0,(VLOOKUP($C$5&$C$6&B129,ConsolidadoServicios!$A:$K,11,0)),0) -> 0 | G129: =IF(E129>0,(VLOOKUP(B129,Minimos!$A:$B,2,0)),0) -> 0 | H129: 0 | J129: 0 | K129: 0 | L129: =ROUND(VLOOKUP($C$5&B129,ConsolidadoServicios!P:Q,2,0)*80%,2) -> 0 | M129: ='Detalle Bienes de Aseo y Caf'!I129 -> 0 | N129: ='Detalle Bienes de Aseo y Caf'!J129 -> 0 | O129: ='Detalle Bienes de Aseo y Caf'!K129 -> 0 | P129: ='Detalle Bienes de Aseo y Caf'!L129 -> 0
A130: 116 | B130: Bolsas plásticas 12 (Compra) | C130: - Elaborada en polietileno de baja densidad - De color azul - Calibre de mínimo 2 - Tamaño de 60 cm de ancho por 70 cm de largo | D130: Paquete de mínimo 6 | E130: 0 | F130: =IF(E130>0,(VLOOKUP($C$5&$C$6&B130,ConsolidadoServicios!$A:$K,11,0)),0) -> 0 | G130: =IF(E130>0,(VLOOKUP(B130,Minimos!$A:$B,2,0)),0) -> 0 | H130: 0 | J130: 0 | K130: 0 | L130: =ROUND(VLOOKUP($C$5&B130,ConsolidadoServicios!P:Q,2,0)*80%,2) -> 0 | M130: ='Detalle Bienes de Aseo y Caf'!I130 -> 0 | N130: ='Detalle Bienes de Aseo y Caf'!J130 -> 0 | O130: ='Detalle Bienes de Aseo y Caf'!K130 -> 0 | P130: ='Detalle Bienes de Aseo y Caf'!L130 -> 0
A131: 117 | B131: Bolsas plásticas 14 (Compra) | C131: - Elaborada en polietileno de baja densidad - De color amarillo - Calibre de mínimo 2 - Tamaño de 60 cm de ancho por 70 cm de largo | D131: Paquete de mínimo 6 | E131: 0 | F131: =IF(E131>0,(VLOOKUP($C$5&$C$6&B131,ConsolidadoServicios!$A:$K,11,0)),0) -> 0 | G131: =IF(E131>0,(VLOOKUP(B131,Minimos!$A:$B,2,0)),0) -> 0 | H131: 0 | J131: 0 | K131: 0 | L131: =ROUND(VLOOKUP($C$5&B131,ConsolidadoServicios!P:Q,2,0)*80%,2) -> 0 | M131: ='Detalle Bienes de Aseo y Caf'!I131 -> 0 | N131: ='Detalle Bienes de Aseo y Caf'!J131 -> 0 | O131: ='Detalle Bienes de Aseo y Caf'!K131 -> 0 | P131: ='Detalle Bienes de Aseo y Caf'!L131 -> 0
A132: 118 | B132: Bolsas plásticas 15 (Compra) | C132: - Elaborada en polietileno de baja densidad - De color negro - Calibre de mínimo 2 - Tamaño de 70 cm de ancho por 90 cm de largo | D132: Paquete de mínimo 6 | E132: 0 | F132: =IF(E132>0,(VLOOKUP($C$5&$C$6&B132,ConsolidadoServicios!$A:$K,11,0)),0) -> 0 | G132: =IF(E132>0,(VLOOKUP(B132,Minimos!$A:$B,2,0)),0) -> 0 | H132: 0 | J132: 0 | K132: 0 | L132: =ROUND(VLOOKUP($C$5&B132,ConsolidadoServicios!P:Q,2,0)*80%,2) -> 0 | M132: ='Detalle Bienes de Aseo y Caf'!I132 -> 0 | N132: ='Detalle Bienes de Aseo y Caf'!J132 -> 0 | O132: ='Detalle Bienes de Aseo y Caf'!K132 -> 0 | P132: ='Detalle Bienes de Aseo y Caf'!L132 -> 0
A133: 119 | B133: Bolsas plásticas 16 (Compra) | C133: - Elaborada en polietileno de baja densidad - De color verde - Calibre de mínimo 2 - Tamaño de 70 cm de ancho por 90 cm de largo | D133: Paquete de mínimo 6 | E133: 0 | F133: =IF(E133>0,(VLOOKUP($C$5&$C$6&B133,ConsolidadoServicios!$A:$K,11,0)),0) -> 0 | G133: =IF(E133>0,(VLOOKUP(B133,Minimos!$A:$B,2,0)),0) -> 0 | H133: 0 | J133: 0 | K133: 0 | L133: =ROUND(VLOOKUP($C$5&B133,ConsolidadoServicios!P:Q,2,0)*80%,2) -> 0 | M133: ='Detalle Bienes de Aseo y Caf'!I133 -> 0 | N133: ='Detalle Bienes de Aseo y Caf'!J133 -> 0 | O133: ='Detalle Bienes de Aseo y Caf'!K133 -> 0 | P133: ='Detalle Bienes de Aseo y Caf'!L133 -> 0
A134: 120 | B134: Bolsas plásticas 17 (Compra) | C134: - Elaborada en polietileno de baja densidad - De color blanco - Calibre de mínimo 2 - Tamaño de 70 cm de ancho por 90 cm de largo | D134: Paquete de mínimo 6 | E134: 0 | F134: =IF(E134>0,(VLOOKUP($C$5&$C$6&B134,ConsolidadoServicios!$A:$K,11,0)),0) -> 0 | G134: =IF(E134>0,(VLOOKUP(B134,Minimos!$A:$B,2,0)),0) -> 0 | H134: 0 | J134: 0 | K134: 0 | L134: =ROUND(VLOOKUP($C$5&B134,ConsolidadoServicios!P:Q,2,0)*80%,2) -> 0 | M134: ='Detalle Bienes de Aseo y Caf'!I134 -> 0 | N134: ='Detalle Bienes de Aseo y Caf'!J134 -> 0 | O134: ='Detalle Bienes de Aseo y Caf'!K134 -> 0 | P134: ='Detalle Bienes de Aseo y Caf'!L134 -> 0
A135: 121 | B135: Bolsas plásticas 18 (Compra) | C135: - Elaborada en polietileno de baja densidad - De color rojo - Calibre de mínimo 2 - Tamaño de 70 cm de ancho por 90 cm de largo - Con impresión de aviso de riesgo biológico | D135: Paquete de mínimo 6 | E135: 0 | F135: =IF(E135>0,(VLOOKUP($C$5&$C$6&B135,ConsolidadoServicios!$A:$K,11,0)),0) -> 0 | G135: =IF(E135>0,(VLOOKUP(B135,Minimos!$A:$B,2,0)),0) -> 0 | H135: 0 | J135: 0 | K135: 0 | L135: =ROUND(VLOOKUP($C$5&B135,ConsolidadoServicios!P:Q,2,0)*80%,2) -> 0 | M135: ='Detalle Bienes de Aseo y Caf'!I135 -> 0 | N135: ='Detalle Bienes de Aseo y Caf'!J135 -> 0 | O135: ='Detalle Bienes de Aseo y Caf'!K135 -> 0 | P135: ='Detalle Bienes de Aseo y Caf'!L135 -> 0
A136: 122 | B136: Bolsas plásticas 19 (Compra) | C136: - Elaborada en polietileno de baja densidad - De color azul - Calibre de mínimo 2 - Tamaño de 70 cm de ancho por 90 cm de largo | D136: Paquete de mínimo 6 | E136: 0 | F136: =IF(E136>0,(VLOOKUP($C$5&$C$6&B136,ConsolidadoServicios!$A:$K,11,0)),0) -> 0 | G136: =IF(E136>0,(VLOOKUP(B136,Minimos!$A:$B,2,0)),0) -> 0 | H136: 0 | J136: 0 | K136: 0 | L136: =ROUND(VLOOKUP($C$5&B136,ConsolidadoServicios!P:Q,2,0)*80%,2) -> 0 | M136: ='Detalle Bienes de Aseo y Caf'!I136 -> 0 | N136: ='Detalle Bienes de Aseo y Caf'!J136 -> 0 | O136: ='Detalle Bienes de Aseo y Caf'!K136 -> 0 | P136: ='Detalle Bienes de Aseo y Caf'!L136 -> 0
A137: 123 | B137: Bolsas plásticas 20 (Compra) | C137: - Elaborada en polietileno de baja densidad - De color amarillo - Calibre de mínimo 2 - Tamaño de 70 cm de ancho por 90 cm de largo | D137: Paquete de mínimo 6 | E137: 0 | F137: =IF(E137>0,(VLOOKUP($C$5&$C$6&B137,ConsolidadoServicios!$A:$K,11,0)),0) -> 0 | G137: =IF(E137>0,(VLOOKUP(B137,Minimos!$A:$B,2,0)),0) -> 0 | H137: 0 | J137: 0 | K137: 0 | L137: =ROUND(VLOOKUP($C$5&B137,ConsolidadoServicios!P:Q,2,0)*80%,2) -> 0 | M137: ='Detalle Bienes de Aseo y Caf'!I137 -> 0 | N137: ='Detalle Bienes de Aseo y Caf'!J137 -> 0 | O137: ='Detalle Bienes de Aseo y Caf'!K137 -> 0 | P137: ='Detalle Bienes de Aseo y Caf'!L137 -> 0
A138: 124 | B138: Bolsas plásticas 21 (Compra) | C138: - Elaborada en polietileno de baja densidad - De color negro - Calibre de mínimo 3 - Tamaño de 80 cm de ancho por 110 cm de largo | D138: Paquete de mínimo 6 | E138: 20 | F138: =IF(E138>0,(VLOOKUP($C$5&$C$6&B138,ConsolidadoServicios!$A:$K,11,0)),0) -> 8770 | G138: =IF(E138>0,(VLOOKUP(B138,Minimos!$A:$B,2,0)),0) -> 1929 | H138: 0.25 | I138: 0.8350342075 | J138: 1446.75 | K138: 28935 | L138: =ROUND(VLOOKUP($C$5&B138,ConsolidadoServicios!P:Q,2,0)*80%,2) -> 0 | M138: ='Detalle Bienes de Aseo y Caf'!I138 -> 13 | N138: ='Detalle Bienes de Aseo y Caf'!J138 -> 0 | O138: ='Detalle Bienes de Aseo y Caf'!K138 -> 0 | P138: ='Detalle Bienes de Aseo y Caf'!L138 -> 7
A139: 125 | B139: Bolsas plásticas 22 (Compra) | C139: - Elaborada en polietileno de baja densidad - De color verde - Calibre de mínimo 3 - Tamaño de 80 cm de ancho por 110 cm de largo | D139: Paquete de mínimo 6 | E139: 20 | F139: =IF(E139>0,(VLOOKUP($C$5&$C$6&B139,ConsolidadoServicios!$A:$K,11,0)),0) -> 9561 | G139: =IF(E139>0,(VLOOKUP(B139,Minimos!$A:$B,2,0)),0) -> 3055 | H139: 0.25 | I139: 0.7603545654 | J139: 2291.25 | K139: 45825 | L139: =ROUND(VLOOKUP($C$5&B139,ConsolidadoServicios!P:Q,2,0)*80%,2) -> 0 | M139: ='Detalle Bienes de Aseo y Caf'!I139 -> 13 | N139: ='Detalle Bienes de Aseo y Caf'!J139 -> 0 | O139: ='Detalle Bienes de Aseo y Caf'!K139 -> 0 | P139: ='Detalle Bienes de Aseo y Caf'!L139 -> 7
A140: 126 | B140: Bolsas plásticas 23 (Compra) | C140: - Elaborada en polietileno de baja densidad - De color blanco -Calibre de mínimo 3 - Tamaño de 80 cm de ancho por 110 cm de largo | D140: Paquete de mínimo 6 | E140: 20 | F140: =IF(E140>0,(VLOOKUP($C$5&$C$6&B140,ConsolidadoServicios!$A:$K,11,0)),0) -> 9561 | G140: =IF(E140>0,(VLOOKUP(B140,Minimos!$A:$B,2,0)),0) -> 3568 | H140: 0.25 | I140: 0.7201129589 | J140: 2676 | K140: 53520 | L140: =ROUND(VLOOKUP($C$5&B140,ConsolidadoServicios!P:Q,2,0)*80%,2) -> 0 | M140: ='Detalle Bienes de Aseo y Caf'!I140 -> 13 | N140: ='Detalle Bienes de Aseo y Caf'!J140 -> 0 | O140: ='Detalle Bienes de Aseo y Caf'!K140 -> 0 | P140: ='Detalle Bienes de Aseo y Caf'!L140 -> 7
A141: 127 | B141: Bolsas plásticas 24 (Compra) | C141: - Elaborada en polietileno de baja densidad - De color rojo -Calibre de mínimo 3 - Tamaño de 80 cm de ancho por 110 cm de largo - Con impresión de aviso de riesgo biológico | D141: Paquete de mínimo 6 | E141: 0 | F141: =IF(E141>0,(VLOOKUP($C$5&$C$6&B141,ConsolidadoServicios!$A:$K,11,0)),0) -> 0 | G141: =IF(E141>0,(VLOOKUP(B141,Minimos!$A:$B,2,0)),0) -> 0 | H141: 0 | J141: 0 | K141: 0 | L141: =ROUND(VLOOKUP($C$5&B141,ConsolidadoServicios!P:Q,2,0)*80%,2) -> 0 | M141: ='Detalle Bienes de Aseo y Caf'!I141 -> 0 | N141: ='Detalle Bienes de Aseo y Caf'!J141 -> 0 | O141: ='Detalle Bienes de Aseo y Caf'!K141 -> 0 | P141: ='Detalle Bienes de Aseo y Caf'!L141 -> 0
A142: 128 | B142: Bolsas plásticas 25 (Compra) | C142: - Elaborada en polietileno de baja densidad - De color azul -Calibre de mínimo 3 - Tamaño de 80 cm de ancho por 110 cm de largo | D142: Paquete de mínimo 6 | E142: 0 | F142: =IF(E142>0,(VLOOKUP($C$5&$C$6&B142,ConsolidadoServicios!$A:$K,11,0)),0) -> 0 | G142: =IF(E142>0,(VLOOKUP(B142,Minimos!$A:$B,2,0)),0) -> 0 | H142: 0 | J142: 0 | K142: 0 | L142: =ROUND(VLOOKUP($C$5&B142,ConsolidadoServicios!P:Q,2,0)*80%,2) -> 0 | M142: ='Detalle Bienes de Aseo y Caf'!I142 -> 0 | N142: ='Detalle Bienes de Aseo y Caf'!J142 -> 0 | O142: ='Detalle Bienes de Aseo y Caf'!K142 -> 0 | P142: ='Detalle Bienes de Aseo y Caf'!L142 -> 0
A143: 129 | B143: Bolsas plásticas 26 (Compra) | C143: - Elaborada en polietileno de baja densidad - De color amarilla -Calibre de mínimo 3 - Tamaño de 80 cm de ancho por 110 cm de largo | D143: Paquete de mínimo 6 | E143: =SUM(M143:P143) -> 0 | F143: =IF(E143>0,(VLOOKUP($C$5&$C$6&B143,ConsolidadoServicios!$A:$K,11,0)),0) -> 0 | G143: =IF(E143>0,(VLOOKUP(B143,Minimos!$A:$B,2,0)),0) -> 0 | H143: 0 | J143: 0 | K143: 0 | L143: =ROUND(VLOOKUP($C$5&B143,ConsolidadoServicios!P:Q,2,0)*80%,2) -> 0 | M143: ='Detalle Bienes de Aseo y Caf'!I143 -> 0 | N143: ='Detalle Bienes de Aseo y Caf'!J143 -> 0 | O143: ='Detalle Bienes de Aseo y Caf'!K143 -> 0 | P143: ='Detalle Bienes de Aseo y Caf'!L143 -> 0
A144: 130 | B144: Guantes 1 (Compra) | C144: - Tipo doméstico - Elaborados en látex - Calibre mínimo de 18 - Tallas 7 a 9 o S a XL - Color amarillo | D144: Par | E144: 0 | F144: =IF(E144>0,(VLOOKUP($C$5&$C$6&B144,ConsolidadoServicios!$A:$K,11,0)),0) -> 0 | G144: =IF(E144>0,(VLOOKUP(B144,Minimos!$A:$B,2,0)),0) -> 0 | H144: =IF(E144>0,IF(I144>0,(G144-J144)/G144,0),0) -> 0 | J144: =ROUND((F144*(1-I144)),2) -> 0 | K144: =J144*E144 -> 0 | L144: =ROUND(VLOOKUP($C$5&B144,ConsolidadoServicios!P:Q,2,0)*80%,2) -> 0 | M144: ='Detalle Bienes de Aseo y Caf'!I144 -> 0 | N144: ='Detalle Bienes de Aseo y Caf'!J144 -> 0 | O144: ='Detalle Bienes de Aseo y Caf'!K144 -> 0 | P144: ='Detalle Bienes de Aseo y Caf'!L144 -> 0
A145: 131 | B145: Guantes 2 (Compra) | C145: - Tipo doméstico - Elaborados en látex - Calibre mínimo de 18 - Tallas 7 a 9 o S a XL - Color negro | D145: Par | E145: 0 | F145: =IF(E145>0,(VLOOKUP($C$5&$C$6&B145,ConsolidadoServicios!$A:$K,11,0)),0) -> 0 | G145: =IF(E145>0,(VLOOKUP(B145,Minimos!$A:$B,2,0)),0) -> 0 | H145: 0 | J145: 0 | K145: 0 | L145: =ROUND(VLOOKUP($C$5&B145,ConsolidadoServicios!P:Q,2,0)*80%,2) -> 0 | M145: ='Detalle Bienes de Aseo y Caf'!I145 -> 0 | N145: ='Detalle Bienes de Aseo y Caf'!J145 -> 0 | O145: ='Detalle Bienes de Aseo y Caf'!K145 -> 0 | P145: ='Detalle Bienes de Aseo y Caf'!L145 -> 0
A146: 132 | B146: Guantes 3 (Compra) | C146: - Tipo doméstico - Elaborados en látex - Calibre mínimo de 25 - Tallas 7 a 9 o S a XL - Color negro | D146: Par | E146: 0 | F146: =IF(E146>0,(VLOOKUP($C$5&$C$6&B146,ConsolidadoServicios!$A:$K,11,0)),0) -> 0 | G146: =IF(E146>0,(VLOOKUP(B146,Minimos!$A:$B,2,0)),0) -> 0 | H146: 0 | J146: 0 | K146: 0 | L146: =ROUND(VLOOKUP($C$5&B146,ConsolidadoServicios!P:Q,2,0)*80%,2) -> 0 | M146: ='Detalle Bienes de Aseo y Caf'!I146 -> 0 | N146: ='Detalle Bienes de Aseo y Caf'!J146 -> 0 | O146: ='Detalle Bienes de Aseo y Caf'!K146 -> 0 | P146: ='Detalle Bienes de Aseo y Caf'!L146 -> 0
A147: 133 | B147: Guantes 4 (Compra) | C147: - Tipo doméstico - Elaborados en látex - Calibre mínimo de 25 - Tallas 7 a 9 o S a XL - Color rojo | D147: Par | E147: 0 | F147: =IF(E147>0,(VLOOKUP($C$5&$C$6&B147,ConsolidadoServicios!$A:$K,11,0)),0) -> 0 | G147: =IF(E147>0,(VLOOKUP(B147,Minimos!$A:$B,2,0)),0) -> 0 | H147: 0 | J147: 0 | K147: 0 | L147: =ROUND(VLOOKUP($C$5&B147,ConsolidadoServicios!P:Q,2,0)*80%,2) -> 0 | M147: ='Detalle Bienes de Aseo y Caf'!I147 -> 0 | N147: ='Detalle Bienes de Aseo y Caf'!J147 -> 0 | O147: ='Detalle Bienes de Aseo y Caf'!K147 -> 0 | P147: ='Detalle Bienes de Aseo y Caf'!L147 -> 0
A148: 134 | B148: Guantes 5 (Compra) | C148: - Tipo industrial - Elaborados en látex - Calibre mínimo de 35 - Tallas 7 a 9 o S a XL - Color negro | D148: Par | E148: 0 | F148: =IF(E148>0,(VLOOKUP($C$5&$C$6&B148,ConsolidadoServicios!$A:$K,11,0)),0) -> 0 | G148: =IF(E148>0,(VLOOKUP(B148,Minimos!$A:$B,2,0)),0) -> 0 | H148: 0 | J148: 0 | K148: 0 | L148: =ROUND(VLOOKUP($C$5&B148,ConsolidadoServicios!P:Q,2,0)*80%,2) -> 0 | M148: ='Detalle Bienes de Aseo y Caf'!I148 -> 0 | N148: ='Detalle Bienes de Aseo y Caf'!J148 -> 0 | O148: ='Detalle Bienes de Aseo y Caf'!K148 -> 0 | P148: ='Detalle Bienes de Aseo y Caf'!L148 -> 0
A149: 135 | B149: Guantes 6 (Compra) | C149: - Elaborados en látex desechable (tipo cirugía) - Empovaldos - Tallas XS a XXL | D149: Caja de mínimo 100 unidades | E149: 0 | F149: =IF(E149>0,(VLOOKUP($C$5&$C$6&B149,ConsolidadoServicios!$A:$K,11,0)),0) -> 0 | G149: =IF(E149>0,(VLOOKUP(B149,Minimos!$A:$B,2,0)),0) -> 0 | H149: 0 | J149: 0 | K149: 0 | L149: =ROUND(VLOOKUP($C$5&B149,ConsolidadoServicios!P:Q,2,0)*80%,2) -> 0 | M149: ='Detalle Bienes de Aseo y Caf'!I149 -> 0 | N149: ='Detalle Bienes de Aseo y Caf'!J149 -> 0 | O149: ='Detalle Bienes de Aseo y Caf'!K149 -> 0 | P149: ='Detalle Bienes de Aseo y Caf'!L149 -> 0
A150: 136 | B150: Guantes 7 (Compra) | C150: - Elaborados en carnaza - Tallas 7 a 9 o S a XL | D150: Par | E150: 0 | F150: =IF(E150>0,(VLOOKUP($C$5&$C$6&B150,ConsolidadoServicios!$A:$K,11,0)),0) -> 0 | G150: =IF(E150>0,(VLOOKUP(B150,Minimos!$A:$B,2,0)),0) -> 0 | H150: 0 | J150: 0 | K150: 0 | L150: =ROUND(VLOOKUP($C$5&B150,ConsolidadoServicios!P:Q,2,0)*80%,2) -> 0 | M150: ='Detalle Bienes de Aseo y Caf'!I150 -> 0 | N150: ='Detalle Bienes de Aseo y Caf'!J150 -> 0 | O150: ='Detalle Bienes de Aseo y Caf'!K150 -> 0 | P150: ='Detalle Bienes de Aseo y Caf'!L150 -> 0
A151: 137 | B151: Guantes 8 (Compra) | C151: - Tipo mosquetero - Calibre mínimo de 40 - Tallas 7 a 9 o S a XL - Color negro | D151: Par | E151: 0 | F151: =IF(E151>0,(VLOOKUP($C$5&$C$6&B151,ConsolidadoServicios!$A:$K,11,0)),0) -> 0 | G151: =IF(E151>0,(VLOOKUP(B151,Minimos!$A:$B,2,0)),0) -> 0 | H151: 0 | J151: 0 | K151: 0 | L151: =ROUND(VLOOKUP($C$5&B151,ConsolidadoServicios!P:Q,2,0)*80%,2) -> 0 | M151: ='Detalle Bienes de Aseo y Caf'!I151 -> 0 | N151: ='Detalle Bienes de Aseo y Caf'!J151 -> 0 | O151: ='Detalle Bienes de Aseo y Caf'!K151 -> 0 | P151: ='Detalle Bienes de Aseo y Caf'!L151 -> 0
A152: 138 | B152: Guantes 9 (Compra) | C152: - Elaborados en hilaza - Tallas 7 a 9 o S a XL | D152: Par | E152: 0 | F152: =IF(E152>0,(VLOOKUP($C$5&$C$6&B152,ConsolidadoServicios!$A:$K,11,0)),0) -> 0 | G152: =IF(E152>0,(VLOOKUP(B152,Minimos!$A:$B,2,0)),0) -> 0 | H152: 0 | J152: 0 | K152: 0 | L152: =ROUND(VLOOKUP($C$5&B152,ConsolidadoServicios!P:Q,2,0)*80%,2) -> 0 | M152: ='Detalle Bienes de Aseo y Caf'!I152 -> 0 | N152: ='Detalle Bienes de Aseo y Caf'!J152 -> 0 | O152: ='Detalle Bienes de Aseo y Caf'!K152 -> 0 | P152: ='Detalle Bienes de Aseo y Caf'!L152 -> 0
A153: 139 | B153: Tapabocas 1 (Compra) | C153: - Elaborado en tela no tejida - Desechable - Con tiras elásticas | D153: Caja de mínimo 50 unidades | E153: 0 | F153: =IF(E153>0,(VLOOKUP($C$5&$C$6&B153,ConsolidadoServicios!$A:$K,11,0)),0) -> 0 | G153: =IF(E153>0,(VLOOKUP(B153,Minimos!$A:$B,2,0)),0) -> 0 | H153: 0 | J153: 0 | K153: 0 | L153: =ROUND(VLOOKUP($C$5&B153,ConsolidadoServicios!P:Q,2,0)*80%,2) -> 0 | M153: ='Detalle Bienes de Aseo y Caf'!I153 -> 0 | N153: ='Detalle Bienes de Aseo y Caf'!J153 -> 0 | O153: ='Detalle Bienes de Aseo y Caf'!K153 -> 0 | P153: ='Detalle Bienes de Aseo y Caf'!L153 -> 0
A154: 140 | B154: Tapabocas 2 (Compra) | C154: - Elaborado en tela no tejida de Polipropileno y Poliéster - Desechable - Con tiras elásticas - Con soporte nasal | D154: Caja de mínimo 50 unidades | E154: 0 | F154: =IF(E154>0,(VLOOKUP($C$5&$C$6&B154,ConsolidadoServicios!$A:$K,11,0)),0) -> 0 | G154: =IF(E154>0,(VLOOKUP(B154,Minimos!$A:$B,2,0)),0) -> 0 | H154: 0 | J154: 0 | K154: 0 | L154: =ROUND(VLOOKUP($C$5&B154,ConsolidadoServicios!P:Q,2,0)*80%,2) -> 0 | M154: ='Detalle Bienes de Aseo y Caf'!I154 -> 0 | N154: ='Detalle Bienes de Aseo y Caf'!J154 -> 0 | O154: ='Detalle Bienes de Aseo y Caf'!K154 -> 0 | P154: ='Detalle Bienes de Aseo y Caf'!L154 -> 0
A155: 141 | B155: Papel higiénico 1 (Compra) | C155: - Rollo con longitud mínima de 20 metros - Doble hoja blanca - Sin fragancia | D155: Rollo | E155: 0 | F155: =IF(E155>0,(VLOOKUP($C$5&$C$6&B155,ConsolidadoServicios!$A:$K,11,0)),0) -> 0 | G155: =IF(E155>0,(VLOOKUP(B155,Minimos!$A:$B,2,0)),0) -> 0 | H155: 0 | J155: 0 | K155: 0 | L155: =ROUND(VLOOKUP($C$5&B155,ConsolidadoServicios!P:Q,2,0)*80%,2) -> 0 | M155: ='Detalle Bienes de Aseo y Caf'!I155 -> 0 | N155: ='Detalle Bienes de Aseo y Caf'!J155 -> 0 | O155: ='Detalle Bienes de Aseo y Caf'!K155 -> 0 | P155: ='Detalle Bienes de Aseo y Caf'!L155 -> 0
A156: 142 | B156: Papel higiénico 2 (Compra) | C156: - Rollo con longitud mínima de 250 metros - Doble hoja de color natural - Sin fragancia | D156: Rollo | E156: 4 | F156: =IF(E156>0,(VLOOKUP($C$5&$C$6&B156,ConsolidadoServicios!$A:$K,11,0)),0) -> 14861 | G156: =IF(E156>0,(VLOOKUP(B156,Minimos!$A:$B,2,0)),0) -> 8702 | H156: 0.25 | I156: 0.5608303613 | J156: 6526.5 | K156: 26106 | L156: =ROUND(VLOOKUP($C$5&B156,ConsolidadoServicios!P:Q,2,0)*80%,2) -> 0 | M156: ='Detalle Bienes de Aseo y Caf'!I156 -> 1 | N156: ='Detalle Bienes de Aseo y Caf'!J156 -> 1 | O156: ='Detalle Bienes de Aseo y Caf'!K156 -> 1 | P156: ='Detalle Bienes de Aseo y Caf'!L156 -> 1
A157: 143 | B157: Papel higiénico 3 (Compra) | C157: - Rollo con longitud mínima de 250 metros - Doble hoja blanca - Sin fragancia | D157: Rollo | E157: 0 | F157: =IF(E157>0,(VLOOKUP($C$5&$C$6&B157,ConsolidadoServicios!$A:$K,11,0)),0) -> 0 | G157: =IF(E157>0,(VLOOKUP(B157,Minimos!$A:$B,2,0)),0) -> 0 | H157: 0 | J157: 0 | K157: 0 | L157: =ROUND(VLOOKUP($C$5&B157,ConsolidadoServicios!P:Q,2,0)*80%,2) -> 0 | M157: ='Detalle Bienes de Aseo y Caf'!I157 -> 0 | N157: ='Detalle Bienes de Aseo y Caf'!J157 -> 0 | O157: ='Detalle Bienes de Aseo y Caf'!K157 -> 0 | P157: ='Detalle Bienes de Aseo y Caf'!L157 -> 0
A158: 144 | B158: Papel higiénico 4 (Compra) | C158: - Rollo con longitud mínima de 400 metros - Hoja sencilla de color natural - Sinfragancia | D158: Rollo | E158: 0 | F158: =IF(E158>0,(VLOOKUP($C$5&$C$6&B158,ConsolidadoServicios!$A:$K,11,0)),0) -> 0 | G158: =IF(E158>0,(VLOOKUP(B158,Minimos!$A:$B,2,0)),0) -> 0 | H158: 0 | J158: 0 | K158: 0 | L158: =ROUND(VLOOKUP($C$5&B158,ConsolidadoServicios!P:Q,2,0)*80%,2) -> 0 | M158: ='Detalle Bienes de Aseo y Caf'!I158 -> 0 | N158: ='Detalle Bienes de Aseo y Caf'!J158 -> 0 | O158: ='Detalle Bienes de Aseo y Caf'!K158 -> 0 | P158: ='Detalle Bienes de Aseo y Caf'!L158 -> 0
A159: 145 | B159: Papel higiénico 5 (Compra) | C159: - Rollo con longitud mínima de 400 metros - Hoja sencilla de color blanco - Sin fragancia | D159: Rollo | E159: 4 | F159: =IF(E159>0,(VLOOKUP($C$5&$C$6&B159,ConsolidadoServicios!$A:$K,11,0)),0) -> 19037 | G159: =IF(E159>0,(VLOOKUP(B159,Minimos!$A:$B,2,0)),0) -> 11809 | H159: 0.25 | I159: 0.5347612544 | J159: 8856.75 | K159: 35427 | L159: =ROUND(VLOOKUP($C$5&B159,ConsolidadoServicios!P:Q,2,0)*80%,2) -> 0 | M159: ='Detalle Bienes de Aseo y Caf'!I159 -> 1 | N159: ='Detalle Bienes de Aseo y Caf'!J159 -> 1 | O159: ='Detalle Bienes de Aseo y Caf'!K159 -> 1 | P159: ='Detalle Bienes de Aseo y Caf'!L159 -> 1
A160: 146 | B160: Toallas para manos 1 (Compra) | C160: - Rollo con longitud mínima de 100 metros - Doble hoja con un tamaño mínimo 15 cm de ancho - Disponibles en color blanco | D160: Rollo | E160: 0 | F160: =IF(E160>0,(VLOOKUP($C$5&$C$6&B160,ConsolidadoServicios!$A:$K,11,0)),0) -> 0 | G160: =IF(E160>0,(VLOOKUP(B160,Minimos!$A:$B,2,0)),0) -> 0 | H160: 0 | J160: 0 | K160: 0 | L160: =ROUND(VLOOKUP($C$5&B160,ConsolidadoServicios!P:Q,2,0)*80%,2) -> 0 | M160: ='Detalle Bienes de Aseo y Caf'!I160 -> 0 | N160: ='Detalle Bienes de Aseo y Caf'!J160 -> 0 | O160: ='Detalle Bienes de Aseo y Caf'!K160 -> 0 | P160: ='Detalle Bienes de Aseo y Caf'!L160 -> 0
A161: 147 | B161: Toallas para manos 2 (Compra) | C161: - Rollo con longitud mínima de 100 metros - Doble hoja con un tamaño mínimo 15 cm de ancho - Disponibles en color natural | D161: Rollo | E161: 0 | F161: =IF(E161>0,(VLOOKUP($C$5&$C$6&B161,ConsolidadoServicios!$A:$K,11,0)),0) -> 0 | G161: =IF(E161>0,(VLOOKUP(B161,Minimos!$A:$B,2,0)),0) -> 0 | H161: 0 | J161: 0 | K161: 0 | L161: =ROUND(VLOOKUP($C$5&B161,ConsolidadoServicios!P:Q,2,0)*80%,2) -> 0 | M161: ='Detalle Bienes de Aseo y Caf'!I161 -> 0 | N161: ='Detalle Bienes de Aseo y Caf'!J161 -> 0 | O161: ='Detalle Bienes de Aseo y Caf'!K161 -> 0 | P161: ='Detalle Bienes de Aseo y Caf'!L161 -> 0
A162: 148 | B162: Toallas para manos 3 (Compra) | C162: - Rollo con longitud mínima de 150 metros - Doble hoja con un tamaño mínimo 15 cm de ancho - Disponibles en color blanco - Sin olor o fragancia | D162: Rollo | E162: 0 | F162: =IF(E162>0,(VLOOKUP($C$5&$C$6&B162,ConsolidadoServicios!$A:$K,11,0)),0) -> 0 | G162: =IF(E162>0,(VLOOKUP(B162,Minimos!$A:$B,2,0)),0) -> 0 | H162: 0 | J162: 0 | K162: 0 | L162: =ROUND(VLOOKUP($C$5&B162,ConsolidadoServicios!P:Q,2,0)*80%,2) -> 0 | M162: ='Detalle Bienes de Aseo y Caf'!I162 -> 0 | N162: ='Detalle Bienes de Aseo y Caf'!J162 -> 0 | O162: ='Detalle Bienes de Aseo y Caf'!K162 -> 0 | P162: ='Detalle Bienes de Aseo y Caf'!L162 -> 0
A163: 149 | B163: Toallas para manos 4 (Compra) | C163: - Rollo con longitud mínima de 150 metros - Doble hoja con un tamaño mínimo 15 cm de ancho - Disponibles en color natural - Sin fragancia | D163: Rollo | E163: 4 | F163: =IF(E163>0,(VLOOKUP($C$5&$C$6&B163,ConsolidadoServicios!$A:$K,11,0)),0) -> 32387 | G163: =IF(E163>0,(VLOOKUP(B163,Minimos!$A:$B,2,0)),0) -> 21936 | H163: 0.25 | I163: 0.4920184024 | J163: 16452 | K163: 65808 | L163: =ROUND(VLOOKUP($C$5&B163,ConsolidadoServicios!P:Q,2,0)*80%,2) -> 0 | M163: ='Detalle Bienes de Aseo y Caf'!I163 -> 1 | N163: ='Detalle Bienes de Aseo y Caf'!J163 -> 1 | O163: ='Detalle Bienes de Aseo y Caf'!K163 -> 1 | P163: ='Detalle Bienes de Aseo y Caf'!L163 -> 1
A164: 150 | B164: Toallas para manos 5 (Compra) | C164: - Toallas interdobladas, paquete con mínimo 150 unidades - Doble hoja con un tamaño mínimo de 20 cm de largo por 15 cm de ancho - Hoja color natural | D164: Unidad | E164: 0 | F164: =IF(E164>0,(VLOOKUP($C$5&$C$6&B164,ConsolidadoServicios!$A:$K,11,0)),0) -> 0 | G164: =IF(E164>0,(VLOOKUP(B164,Minimos!$A:$B,2,0)),0) -> 0 | H164: 0 | J164: 0 | K164: 0 | L164: =ROUND(VLOOKUP($C$5&B164,ConsolidadoServicios!P:Q,2,0)*80%,2) -> 0 | M164: ='Detalle Bienes de Aseo y Caf'!I164 -> 0 | N164: ='Detalle Bienes de Aseo y Caf'!J164 -> 0 | O164: ='Detalle Bienes de Aseo y Caf'!K164 -> 0 | P164: ='Detalle Bienes de Aseo y Caf'!L164 -> 0
A165: 151 | B165: Toallas para manos 6 (Compra) | C165: - Toallas interdobladas, paquete con mínimo 150 unidades - Doble hoja con un tamaño mínimo de 20 cm de largo por 15 cm de ancho - Hoja color blanco | D165: Unidad | E165: 4 | F165: =IF(E165>0,(VLOOKUP($C$5&$C$6&B165,ConsolidadoServicios!$A:$K,11,0)),0) -> 8901 | G165: =IF(E165>0,(VLOOKUP(B165,Minimos!$A:$B,2,0)),0) -> 6092 | H165: 0.25 | I165: 0.4866868891 | J165: 4569 | K165: 18276 | L165: =ROUND(VLOOKUP($C$5&B165,ConsolidadoServicios!P:Q,2,0)*80%,2) -> 0 | M165: ='Detalle Bienes de Aseo y Caf'!I165 -> 1 | N165: ='Detalle Bienes de Aseo y Caf'!J165 -> 1 | O165: ='Detalle Bienes de Aseo y Caf'!K165 -> 1 | P165: ='Detalle Bienes de Aseo y Caf'!L165 -> 1
A166: 152 | B166: Toallas para manos 7 (Compra) | C166: - Toallas con precorte - Rollo con longitud mínima de 100 metros - Doble hoja con tamaño mínimo de 15 cms de ancho - Color Blanco - Sin fragancia | D166: Unidad | E166: 0 | F166: =IF(E166>0,(VLOOKUP($C$5&$C$6&B166,ConsolidadoServicios!$A:$K,11,0)),0) -> 0 | G166: =IF(E166>0,(VLOOKUP(B166,Minimos!$A:$B,2,0)),0) -> 0 | H166: 0 | J166: 0 | K166: 0 | L166: =ROUND(VLOOKUP($C$5&B166,ConsolidadoServicios!P:Q,2,0)*80%,2) -> 0 | M166: ='Detalle Bienes de Aseo y Caf'!I166 -> 0 | N166: ='Detalle Bienes de Aseo y Caf'!J166 -> 0 | O166: ='Detalle Bienes de Aseo y Caf'!K166 -> 0 | P166: ='Detalle Bienes de Aseo y Caf'!L166 -> 0
A167: 153 | B167: Toallas para manos 8 (Compra) | C167: - Toallas con precorte - Rollo con longitud mínima de 100 metros - Doble hoja con tamaño mínimo de 15 cms de ancho - Color Natural - Sin fragancia | D167: Unidad | E167: 0 | F167: =IF(E167>0,(VLOOKUP($C$5&$C$6&B167,ConsolidadoServicios!$A:$K,11,0)),0) -> 0 | G167: =IF(E167>0,(VLOOKUP(B167,Minimos!$A:$B,2,0)),0) -> 0 | H167: 0 | J167: 0 | K167: 0 | L167: =ROUND(VLOOKUP($C$5&B167,ConsolidadoServicios!P:Q,2,0)*80%,2) -> 0 | M167: ='Detalle Bienes de Aseo y Caf'!I167 -> 0 | N167: ='Detalle Bienes de Aseo y Caf'!J167 -> 0 | O167: ='Detalle Bienes de Aseo y Caf'!K167 -> 0 | P167: ='Detalle Bienes de Aseo y Caf'!L167 -> 0
A168: 154 | B168: Pañuelos (Compra) | C168: - Doble hoja - Color blanco | D168: Caja de mínimo 50 unidades | E168: 0 | F168: =IF(E168>0,(VLOOKUP($C$5&$C$6&B168,ConsolidadoServicios!$A:$K,11,0)),0) -> 0 | G168: =IF(E168>0,(VLOOKUP(B168,Minimos!$A:$B,2,0)),0) -> 0 | H168: 0 | J168: 0 | K168: 0 | L168: =ROUND(VLOOKUP($C$5&B168,ConsolidadoServicios!P:Q,2,0)*80%,2) -> 0 | M168: ='Detalle Bienes de Aseo y Caf'!I168 -> 0 | N168: ='Detalle Bienes de Aseo y Caf'!J168 -> 0 | O168: ='Detalle Bienes de Aseo y Caf'!K168 -> 0 | P168: ='Detalle Bienes de Aseo y Caf'!L168 -> 0
A169: 155 | B169: Vasos biodegradables 1 (Compra) | C169: - Elaborado en cartón 97% biodegradable - Capacidad mínima de 4 oz | D169: Paquete de mínimo 50 unidades | E169: 0 | F169: =IF(E169>0,(VLOOKUP($C$5&$C$6&B169,ConsolidadoServicios!$A:$K,11,0)),0) -> 0 | G169: =IF(E169>0,(VLOOKUP(B169,Minimos!$A:$B,2,0)),0) -> 0 | H169: 0 | J169: 0 | K169: 0 | L169: =ROUND(VLOOKUP($C$5&B169,ConsolidadoServicios!P:Q,2,0)*80%,2) -> 0 | M169: ='Detalle Bienes de Aseo y Caf'!I169 -> 0 | N169: ='Detalle Bienes de Aseo y Caf'!J169 -> 0 | O169: ='Detalle Bienes de Aseo y Caf'!K169 -> 0 | P169: ='Detalle Bienes de Aseo y Caf'!L169 -> 0
A170: 156 | B170: Vasos biodegradables 2 (Compra) | C170: - Elaborado en cartón 97% biodegradable - Capacidad mínima de 6 oz | D170: Paquete de mínimo 50 | E170: 4 | F170: =IF(E170>0,(VLOOKUP($C$5&$C$6&B170,ConsolidadoServicios!$A:$K,11,0)),0) -> 13721 | G170: =IF(E170>0,(VLOOKUP(B170,Minimos!$A:$B,2,0)),0) -> 5524 | H170: 0.25 | I170: 0.6980540777 | J170: 4143 | K170: 16572 | L170: =ROUND(VLOOKUP($C$5&B170,ConsolidadoServicios!P:Q,2,0)*80%,2) -> 0 | M170: ='Detalle Bienes de Aseo y Caf'!I170 -> 1 | N170: ='Detalle Bienes de Aseo y Caf'!J170 -> 1 | O170: ='Detalle Bienes de Aseo y Caf'!K170 -> 1 | P170: ='Detalle Bienes de Aseo y Caf'!L170 -> 1
A171: 157 | B171: Vasos biodegradables 3 (Compra) | C171: - Elaborado en cartón 97% biodegradable - Capacidad mínima de 9 oz | D171: Paquete de mínimo 40 unidades | E171: 0 | F171: =IF(E171>0,(VLOOKUP($C$5&$C$6&B171,ConsolidadoServicios!$A:$K,11,0)),0) -> 0 | G171: =IF(E171>0,(VLOOKUP(B171,Minimos!$A:$B,2,0)),0) -> 0 | H171: 0 | J171: 0 | K171: 0 | L171: =ROUND(VLOOKUP($C$5&B171,ConsolidadoServicios!P:Q,2,0)*80%,2) -> 0 | M171: ='Detalle Bienes de Aseo y Caf'!I171 -> 0 | N171: ='Detalle Bienes de Aseo y Caf'!J171 -> 0 | O171: ='Detalle Bienes de Aseo y Caf'!K171 -> 0 | P171: ='Detalle Bienes de Aseo y Caf'!L171 -> 0
A172: 158 | B172: Vasos biodegradables 4 (Compra) | C172: - Capacidad mínima de 9 onzas - Sin tapa - Liso - Biodegradable y compostable. - Elaborado en polyboard (cartón) y/ocon la fibra de caña de azúcar o almidón de maíz | D172: Paquete de mínimo 50 unidades | E172: 0 | F172: =IF(E172>0,(VLOOKUP($C$5&$C$6&B172,ConsolidadoServicios!$A:$K,11,0)),0) -> 0 | G172: =IF(E172>0,(VLOOKUP(B172,Minimos!$A:$B,2,0)),0) -> 0 | H172: 0 | J172: 0 | K172: 0 | L172: =ROUND(VLOOKUP($C$5&B172,ConsolidadoServicios!P:Q,2,0)*80%,2) -> 0 | M172: ='Detalle Bienes de Aseo y Caf'!I172 -> 0 | N172: ='Detalle Bienes de Aseo y Caf'!J172 -> 0 | O172: ='Detalle Bienes de Aseo y Caf'!K172 -> 0 | P172: ='Detalle Bienes de Aseo y Caf'!L172 -> 0
A173: 159 | B173: Mezclador 1 (Compra) | C173: - Mezcladores elaborados en madera y/o apartir de recursos renovables como la caña de azucar y/o almidón de maíz - Longitud mínima de 11 cm | D173: Paquete de mínimo 500 | E173: 0 | F173: =IF(E173>0,(VLOOKUP($C$5&$C$6&B173,ConsolidadoServicios!$A:$K,11,0)),0) -> 0 | G173: =IF(E173>0,(VLOOKUP(B173,Minimos!$A:$B,2,0)),0) -> 0 | H173: 0 | J173: 0 | K173: 0 | L173: =ROUND(VLOOKUP($C$5&B173,ConsolidadoServicios!P:Q,2,0)*80%,2) -> 0 | M173: ='Detalle Bienes de Aseo y Caf'!I173 -> 0 | N173: ='Detalle Bienes de Aseo y Caf'!J173 -> 0 | O173: ='Detalle Bienes de Aseo y Caf'!K173 -> 0 | P173: ='Detalle Bienes de Aseo y Caf'!L173 -> 0
A174: 160 | B174: Servilleta papel (Compra) | C174: - Tipo cafetería - Dobe hoja - Color blanco - Dimensiones mínimas de 21,5 cm de largo y 14 cm de ancho - 100% Biodegradable - Elaborado a base de papel reciclado no clorado - No debe contener PVC o Poliestireno expandido u otros plásticos de un solo uso tanto en el envase como en el embalaje. | D174: Paquete de mínimo 100 unidades | E174: 0 | F174: =IF(E174>0,(VLOOKUP($C$5&$C$6&B174,ConsolidadoServicios!$A:$K,11,0)),0) -> 0 | G174: =IF(E174>0,(VLOOKUP(B174,Minimos!$A:$B,2,0)),0) -> 0 | H174: 0 | J174: 0 | K174: 0 | L174: =ROUND(VLOOKUP($C$5&B174,ConsolidadoServicios!P:Q,2,0)*80%,2) -> 0 | M174: ='Detalle Bienes de Aseo y Caf'!I174 -> 0 | N174: ='Detalle Bienes de Aseo y Caf'!J174 -> 0 | O174: ='Detalle Bienes de Aseo y Caf'!K174 -> 0 | P174: ='Detalle Bienes de Aseo y Caf'!L174 -> 0
A175: 161 | B175: Filtro para greca 1 (Compra) | C175: - Elaborada en tela - Para greca - Capacidad de media libra - No debe contener PVC o Poliestireno expandido u otros plásticos de un solo uso tanto en el envase como en el embalaje | D175: Unidad | E175: 0 | F175: =IF(E175>0,(VLOOKUP($C$5&$C$6&B175,ConsolidadoServicios!$A:$K,11,0)),0) -> 0 | G175: =IF(E175>0,(VLOOKUP(B175,Minimos!$A:$B,2,0)),0) -> 0 | H175: 0 | J175: 0 | K175: 0 | L175: =ROUND(VLOOKUP($C$5&B175,ConsolidadoServicios!P:Q,2,0)*80%,2) -> 0 | M175: ='Detalle Bienes de Aseo y Caf'!I175 -> 0 | N175: ='Detalle Bienes de Aseo y Caf'!J175 -> 0 | O175: ='Detalle Bienes de Aseo y Caf'!K175 -> 0 | P175: ='Detalle Bienes de Aseo y Caf'!L175 -> 0
A176: 162 | B176: Filtro para greca 2 (Compra) | C176: - Elaborada en tela - Para greca - Capacidad de una 1 libra - No debe contener PVC o Poliestireno expandido u otros plásticos de un solo uso tanto en el envase como en el embalaje. | D176: Unidad | E176: 0 | F176: =IF(E176>0,(VLOOKUP($C$5&$C$6&B176,ConsolidadoServicios!$A:$K,11,0)),0) -> 0 | G176: =IF(E176>0,(VLOOKUP(B176,Minimos!$A:$B,2,0)),0) -> 0 | H176: 0 | J176: 0 | K176: 0 | L176: =ROUND(VLOOKUP($C$5&B176,ConsolidadoServicios!P:Q,2,0)*80%,2) -> 0 | M176: ='Detalle Bienes de Aseo y Caf'!I176 -> 0 | N176: ='Detalle Bienes de Aseo y Caf'!J176 -> 0 | O176: ='Detalle Bienes de Aseo y Caf'!K176 -> 0 | P176: ='Detalle Bienes de Aseo y Caf'!L176 -> 0
A177: 163 | B177: Filtro para greca 3 (Compra) | C177: - Elaborada en tela - Para greca - Capacidad de dos 2 libras - No debe contener PVC o Poliestireno expandido u otros plásticos de un solo uso tanto en el envase como en el embalaje. | D177: Unidad | E177: 0 | F177: =IF(E177>0,(VLOOKUP($C$5&$C$6&B177,ConsolidadoServicios!$A:$K,11,0)),0) -> 0 | G177: =IF(E177>0,(VLOOKUP(B177,Minimos!$A:$B,2,0)),0) -> 0 | H177: 0 | J177: 0 | K177: 0 | L177: =ROUND(VLOOKUP($C$5&B177,ConsolidadoServicios!P:Q,2,0)*80%,2) -> 0 | M177: ='Detalle Bienes de Aseo y Caf'!I177 -> 0 | N177: ='Detalle Bienes de Aseo y Caf'!J177 -> 0 | O177: ='Detalle Bienes de Aseo y Caf'!K177 -> 0 | P177: ='Detalle Bienes de Aseo y Caf'!L177 -> 0
A178: 164 | B178: Churrusco para tubos de greca (Compra) | C178: - Cepillo para lavado y fregado de grecas. - No debe contener PVC, Poliestireno expandido u otros plásticos de un solo uso tanto en el envase como en el embalaje. - Base y mango elaborados en alambre | D178: Unidad | E178: 0 | F178: =IF(E178>0,(VLOOKUP($C$5&$C$6&B178,ConsolidadoServicios!$A:$K,11,0)),0) -> 0 | G178: =IF(E178>0,(VLOOKUP(B178,Minimos!$A:$B,2,0)),0) -> 0 | H178: 0 | J178: 0 | K178: 0 | L178: =ROUND(VLOOKUP($C$5&B178,ConsolidadoServicios!P:Q,2,0)*80%,2) -> 0 | M178: ='Detalle Bienes de Aseo y Caf'!I178 -> 0 | N178: ='Detalle Bienes de Aseo y Caf'!J178 -> 0 | O178: ='Detalle Bienes de Aseo y Caf'!K178 -> 0 | P178: ='Detalle Bienes de Aseo y Caf'!L178 -> 0
A179: 165 | B179: Papel Aluminio 1 (Compra) | C179: - Longitud mínima del rollo de 40 metros - Ancho mínimo del rollo de 27 cm | D179: Caja de carton con un 1 rollo de mínimo 40 metros de largo y 27 cm de ancho | E179: 0 | F179: =IF(E179>0,(VLOOKUP($C$5&$C$6&B179,ConsolidadoServicios!$A:$K,11,0)),0) -> 0 | G179: =IF(E179>0,(VLOOKUP(B179,Minimos!$A:$B,2,0)),0) -> 0 | H179: 0 | J179: 0 | K179: 0 | L179: =ROUND(VLOOKUP($C$5&B179,ConsolidadoServicios!P:Q,2,0)*80%,2) -> 0 | M179: ='Detalle Bienes de Aseo y Caf'!I179 -> 0 | N179: ='Detalle Bienes de Aseo y Caf'!J179 -> 0 | O179: ='Detalle Bienes de Aseo y Caf'!K179 -> 0 | P179: ='Detalle Bienes de Aseo y Caf'!L179 -> 0
A180: 166 | B180: Papel Aluminio 2 (Compra) | C180: - Longitud mínima del rollo de 100 metros - Ancho mínimo del rollo de 27 cm | D180: Caja de carton con un 1 rollo de mínimo 100 metros de largo y 27 cm de ancho | E180: 0 | F180: =IF(E180>0,(VLOOKUP($C$5&$C$6&B180,ConsolidadoServicios!$A:$K,11,0)),0) -> 0 | G180: =IF(E180>0,(VLOOKUP(B180,Minimos!$A:$B,2,0)),0) -> 0 | H180: 0 | J180: 0 | K180: 0 | L180: =ROUND(VLOOKUP($C$5&B180,ConsolidadoServicios!P:Q,2,0)*80%,2) -> 0 | M180: ='Detalle Bienes de Aseo y Caf'!I180 -> 0 | N180: ='Detalle Bienes de Aseo y Caf'!J180 -> 0 | O180: ='Detalle Bienes de Aseo y Caf'!K180 -> 0 | P180: ='Detalle Bienes de Aseo y Caf'!L180 -> 0
A181: 167 | B181: Película transparente para alimentos (Compra) | C181: - Longitud mínima del rollo de 50 metros - Ancho mínimo del rollo de 27 cm | D181: Caja de carton con un 1 rollo | E181: 0 | F181: =IF(E181>0,(VLOOKUP($C$5&$C$6&B181,ConsolidadoServicios!$A:$K,11,0)),0) -> 0 | G181: =IF(E181>0,(VLOOKUP(B181,Minimos!$A:$B,2,0)),0) -> 0 | H181: 0 | J181: 0 | K181: 0 | L181: =ROUND(VLOOKUP($C$5&B181,ConsolidadoServicios!P:Q,2,0)*80%,2) -> 0 | M181: ='Detalle Bienes de Aseo y Caf'!I181 -> 0 | N181: ='Detalle Bienes de Aseo y Caf'!J181 -> 0 | O181: ='Detalle Bienes de Aseo y Caf'!K181 -> 0 | P181: ='Detalle Bienes de Aseo y Caf'!L181 -> 0
A182: 168 | B182: Termo para café 1 (Compra) | C182: - Elaborado en plástico - Capacidad mínima de 1 litro | D182: Unidad | E182: 0 | F182: =IF(E182>0,(VLOOKUP($C$5&$C$6&B182,ConsolidadoServicios!$A:$K,11,0)),0) -> 0 | G182: =IF(E182>0,(VLOOKUP(B182,Minimos!$A:$B,2,0)),0) -> 0 | H182: 0 | J182: 0 | K182: 0 | L182: =ROUND(VLOOKUP($C$5&B182,ConsolidadoServicios!P:Q,2,0)*80%,2) -> 0 | M182: ='Detalle Bienes de Aseo y Caf'!I182 -> 0 | N182: ='Detalle Bienes de Aseo y Caf'!J182 -> 0 | O182: ='Detalle Bienes de Aseo y Caf'!K182 -> 0 | P182: ='Detalle Bienes de Aseo y Caf'!L182 -> 0
A183: 169 | B183: Termo para café 2 (Compra) | C183: - Térmico, con bomba tipo dispensador. Portatil. - Bomba manual para dispensar la bebida. - Acero inoxidable y plastico. - Agarradera plastica, tapa con empaque, bomba manual. - Capacidad mínima de 3 litros | D183: Unidad | E183: 0 | F183: =IF(E183>0,(VLOOKUP($C$5&$C$6&B183,ConsolidadoServicios!$A:$K,11,0)),0) -> 0 | G183: =IF(E183>0,(VLOOKUP(B183,Minimos!$A:$B,2,0)),0) -> 0 | H183: 0 | J183: 0 | K183: 0 | L183: =ROUND(VLOOKUP($C$5&B183,ConsolidadoServicios!P:Q,2,0)*80%,2) -> 0 | M183: ='Detalle Bienes de Aseo y Caf'!I183 -> 0 | N183: ='Detalle Bienes de Aseo y Caf'!J183 -> 0 | O183: ='Detalle Bienes de Aseo y Caf'!K183 -> 0 | P183: ='Detalle Bienes de Aseo y Caf'!L183 -> 0
A184: 170 | B184: Café 1 (Compra) | C184: - 100% café tostado y molido. - Tostión media. - Puntaje en taza mayor o igual a 80 puntos catación SCA y/o Denominación de Origen (Anexo 6) - Empacada en bolsa de polipropileno aluminizada resistente a la humedad y al oxígeno. - Debe cumplir con las Resoluciones 333 de 2011 y 2674 de 2013 hasta la entrada en vigencia de la Resolución 810 de 2021 y aquellas que la modifiquen, adicionen o deroguen. | D184: Libra | E184: 20 | F184: =IF(E184>0,(VLOOKUP($C$5&$C$6&B184,ConsolidadoServicios!$A:$K,11,0)),0) -> 35849 | G184: =IF(E184>0,(VLOOKUP(B184,Minimos!$A:$B,2,0)),0) -> 14359 | H184: 0.25 | I184: 0.6995941309 | J184: 10769.25 | K184: 215385 | L184: =ROUND(VLOOKUP($C$5&B184,ConsolidadoServicios!P:Q,2,0)*80%,2) -> 0 | M184: ='Detalle Bienes de Aseo y Caf'!I184 -> 8 | N184: ='Detalle Bienes de Aseo y Caf'!J184 -> 4 | O184: ='Detalle Bienes de Aseo y Caf'!K184 -> 4 | P184: ='Detalle Bienes de Aseo y Caf'!L184 -> 4
A185: 171 | B185: Café 2 (Compra) | C185: - Tostión media - Descafeinado - Empacado en bolsa de polipropileno aluminizada resistente a la humedad y al oxigeno - Debe cumplir con las Resoluciones 333 de 2011 y 2674 de 2013 y aquellas que la modifiquen, adicionen o deroguen. | D185: Libra | E185: 0 | F185: =IF(E185>0,(VLOOKUP($C$5&$C$6&B185,ConsolidadoServicios!$A:$K,11,0)),0) -> 0 | G185: =IF(E185>0,(VLOOKUP(B185,Minimos!$A:$B,2,0)),0) -> 0 | H185: 0 | J185: 0 | K185: 0 | L185: =ROUND(VLOOKUP($C$5&B185,ConsolidadoServicios!P:Q,2,0)*80%,2) -> 0 | M185: ='Detalle Bienes de Aseo y Caf'!I185 -> 0 | N185: ='Detalle Bienes de Aseo y Caf'!J185 -> 0 | O185: ='Detalle Bienes de Aseo y Caf'!K185 -> 0 | P185: ='Detalle Bienes de Aseo y Caf'!L185 -> 0
A186: 172 | B186: Café 3 (Compra) | C186: - Instantáneo, para máquinas automáticas - Tostión media - Empacada en bolsa de polipropileno aluminizada resistente a la humedad y al oxígeno. - Debe cumplir con las Resoluciones 333 de 2011 y 2674 de 2013 hasta la entrada en vigencia de la Resolución 810 de 2021 y aquellas que la modifiquen, adicionen o deroguen. | D186: Bolsa de mínimo 500 g | E186: 0 | F186: =IF(E186>0,(VLOOKUP($C$5&$C$6&B186,ConsolidadoServicios!$A:$K,11,0)),0) -> 0 | G186: =IF(E186>0,(VLOOKUP(B186,Minimos!$A:$B,2,0)),0) -> 0 | H186: 0 | J186: 0 | K186: 0 | L186: =ROUND(VLOOKUP($C$5&B186,ConsolidadoServicios!P:Q,2,0)*80%,2) -> 0 | M186: ='Detalle Bienes de Aseo y Caf'!I186 -> 0 | N186: ='Detalle Bienes de Aseo y Caf'!J186 -> 0 | O186: ='Detalle Bienes de Aseo y Caf'!K186 -> 0 | P186: ='Detalle Bienes de Aseo y Caf'!L186 -> 0
A187: 173 | B187: Café Social (Compra) | C187: - Diferentes tostiones - Puntaje en taza mayor o igual a a 82 puntos catación SCA y/o orgánico y/o artesanal y/o con Denominación de Origen - Empacada en bolsa de polipropileno aluminizada resistente a la humedad y al oxígeno. - Debe cumplir con las Resoluciones 333 de 2011 y 2674 de 2013 hasta la entrada en vigencia de la Resolución 810 de 2021 y aquellas que la modifiquen, adicionen o deroguen | D187: Bolsa de mínimo 500 g | E187: 0 | F187: =IF(E187>0,(VLOOKUP($C$5&$C$6&B187,ConsolidadoServicios!$A:$K,11,0)),0) -> 0 | G187: =IF(E187>0,(VLOOKUP(B187,Minimos!$A:$B,2,0)),0) -> 0 | H187: 0 | J187: 0 | K187: 0 | L187: =ROUND(VLOOKUP($C$5&B187,ConsolidadoServicios!P:Q,2,0)*80%,2) -> 0 | M187: ='Detalle Bienes de Aseo y Caf'!I187 -> 0 | N187: ='Detalle Bienes de Aseo y Caf'!J187 -> 0 | O187: ='Detalle Bienes de Aseo y Caf'!K187 -> 0 | P187: ='Detalle Bienes de Aseo y Caf'!L187 -> 0
A188: 174 | B188: Crema para café (Compra) | C188: - No láctea - Debe cumplir con Resolución 333 de 2011 sobre rotulado y etiquetado nutricional y las normas que la modifiquen | D188: Bolsas de mínimo 100 sobres de mínimo 4 g | E188: 0 | F188: =IF(E188>0,(VLOOKUP($C$5&$C$6&B188,ConsolidadoServicios!$A:$K,11,0)),0) -> 0 | G188: =IF(E188>0,(VLOOKUP(B188,Minimos!$A:$B,2,0)),0) -> 0 | H188: 0 | J188: 0 | K188: 0 | L188: =ROUND(VLOOKUP($C$5&B188,ConsolidadoServicios!P:Q,2,0)*80%,2) -> 0 | M188: ='Detalle Bienes de Aseo y Caf'!I188 -> 0 | N188: ='Detalle Bienes de Aseo y Caf'!J188 -> 0 | O188: ='Detalle Bienes de Aseo y Caf'!K188 -> 0 | P188: ='Detalle Bienes de Aseo y Caf'!L188 -> 0
A189: 175 | B189: Azúcar 1 (Compra) | C189: - Blanca - Empaque elaborado en materiales atóxicos - Debe cumplir con Resolución 333 de 2011 sobre rotulado y etiquetado nutricional y las normas que la modifiquen | D189: Bolsa de mínimo 200 sobres o tubipacks de 5 g | E189: 5 | F189: =IF(E189>0,(VLOOKUP($C$5&$C$6&B189,ConsolidadoServicios!$A:$K,11,0)),0) -> 13721 | G189: =IF(E189>0,(VLOOKUP(B189,Minimos!$A:$B,2,0)),0) -> 8251 | H189: 0.25 | I189: 0.5489942424 | J189: 6188.25 | K189: 30941.25 | L189: =ROUND(VLOOKUP($C$5&B189,ConsolidadoServicios!P:Q,2,0)*80%,2) -> 0 | M189: ='Detalle Bienes de Aseo y Caf'!I189 -> 2 | N189: ='Detalle Bienes de Aseo y Caf'!J189 -> 1 | O189: ='Detalle Bienes de Aseo y Caf'!K189 -> 1 | P189: ='Detalle Bienes de Aseo y Caf'!L189 -> 1
A190: 176 | B190: Azúcar 2 (Compra) | C190: - Blanca - Empaque elaborado en materiales atóxicos - Debe cumplir con Resolución 333 de 2011 sobre rotulado y etiquetado nutricional y las normas que la modifiquen | D190: Bolsa de mínimo 200 sobres o tubipacks de 3,5 g | E190: 0 | F190: =IF(E190>0,(VLOOKUP($C$5&$C$6&B190,ConsolidadoServicios!$A:$K,11,0)),0) -> 0 | G190: =IF(E190>0,(VLOOKUP(B190,Minimos!$A:$B,2,0)),0) -> 0 | H190: 0 | J190: 0 | K190: 0 | L190: =ROUND(VLOOKUP($C$5&B190,ConsolidadoServicios!P:Q,2,0)*80%,2) -> 0 | M190: ='Detalle Bienes de Aseo y Caf'!I190 -> 0 | N190: ='Detalle Bienes de Aseo y Caf'!J190 -> 0 | O190: ='Detalle Bienes de Aseo y Caf'!K190 -> 0 | P190: ='Detalle Bienes de Aseo y Caf'!L190 -> 0
A191: 177 | B191: Azúcar 3 (Compra) | C191: - Blanca - Empaque elaborado en materiales atóxicos - Debe cumplir con Resolución 333 de 2011 sobre rotulado y etiquetado nutricional y las normas que la modifiquen | D191: Libra | E191: 0 | F191: =IF(E191>0,(VLOOKUP($C$5&$C$6&B191,ConsolidadoServicios!$A:$K,11,0)),0) -> 0 | G191: =IF(E191>0,(VLOOKUP(B191,Minimos!$A:$B,2,0)),0) -> 0 | H191: 0 | J191: 0 | K191: 0 | L191: =ROUND(VLOOKUP($C$5&B191,ConsolidadoServicios!P:Q,2,0)*80%,2) -> 0 | M191: ='Detalle Bienes de Aseo y Caf'!I191 -> 0 | N191: ='Detalle Bienes de Aseo y Caf'!J191 -> 0 | O191: ='Detalle Bienes de Aseo y Caf'!K191 -> 0 | P191: ='Detalle Bienes de Aseo y Caf'!L191 -> 0
A192: 178 | B192: Azúcar 4 (Compra) | C192: - Morena - Empaque elaborado en materiales atóxicos - Debe cumplir con Resolución 333 de 2011 sobre rotulado y etiquetado nutricional y las normas que la modifiquen | D192: Libra | E192: 0 | F192: =IF(E192>0,(VLOOKUP($C$5&$C$6&B192,ConsolidadoServicios!$A:$K,11,0)),0) -> 0 | G192: =IF(E192>0,(VLOOKUP(B192,Minimos!$A:$B,2,0)),0) -> 0 | H192: 0 | J192: 0 | K192: 0 | L192: =ROUND(VLOOKUP($C$5&B192,ConsolidadoServicios!P:Q,2,0)*80%,2) -> 0 | M192: ='Detalle Bienes de Aseo y Caf'!I192 -> 0 | N192: ='Detalle Bienes de Aseo y Caf'!J192 -> 0 | O192: ='Detalle Bienes de Aseo y Caf'!K192 -> 0 | P192: ='Detalle Bienes de Aseo y Caf'!L192 -> 0
A193: 179 | B193: Endulzante (Compra) | C193: - Sin calorías - Empaque elaborado en materiales atóxicos - Debe cumplir con Resolución 333 de 2011 sobre rotulado y etiquetado nutricional y las normas que la modifiquen | D193: Caja de mínimo 100 sobres | E193: 0 | F193: =IF(E193>0,(VLOOKUP($C$5&$C$6&B193,ConsolidadoServicios!$A:$K,11,0)),0) -> 0 | G193: =IF(E193>0,(VLOOKUP(B193,Minimos!$A:$B,2,0)),0) -> 0 | H193: 0 | J193: 0 | K193: 0 | L193: =ROUND(VLOOKUP($C$5&B193,ConsolidadoServicios!P:Q,2,0)*80%,2) -> 0 | M193: ='Detalle Bienes de Aseo y Caf'!I193 -> 0 | N193: ='Detalle Bienes de Aseo y Caf'!J193 -> 0 | O193: ='Detalle Bienes de Aseo y Caf'!K193 -> 0 | P193: ='Detalle Bienes de Aseo y Caf'!L193 -> 0
A194: 180 | B194: Panela (Compra) | C194: - Panela instantánes pulverizada, deshidratada - Debe cumplir con la NTC 1311 sobreo productos agrícolas - Empaque elaborado en materiales atóxicos - Debe cumplir con la Resolucion 779 de 2006 - Debe cumplir con Resolución 333 de 2011 sobre rotulado y etiquetado nutricional y las normas que la modifiquen | D194: Bolsa de mínimo 100 sobres de mínimo 5 g | E194: 0 | F194: =IF(E194>0,(VLOOKUP($C$5&$C$6&B194,ConsolidadoServicios!$A:$K,11,0)),0) -> 0 | G194: =IF(E194>0,(VLOOKUP(B194,Minimos!$A:$B,2,0)),0) -> 0 | H194: 0 | J194: 0 | K194: 0 | L194: =ROUND(VLOOKUP($C$5&B194,ConsolidadoServicios!P:Q,2,0)*80%,2) -> 0 | M194: ='Detalle Bienes de Aseo y Caf'!I194 -> 0 | N194: ='Detalle Bienes de Aseo y Caf'!J194 -> 0 | O194: ='Detalle Bienes de Aseo y Caf'!K194 -> 0 | P194: ='Detalle Bienes de Aseo y Caf'!L194 -> 0
A195: 181 | B195: Sal 1 (Compra) | C195: - Refinada, con un 99,9% de pureza - Con adiciones de yodo y flúor - Debe cumplir con Resolución 333 de 2011 sobre rotulado y etiquetado nutricional y las normas que la modifiquen | D195: Libra (500 g) | E195: 0 | F195: =IF(E195>0,(VLOOKUP($C$5&$C$6&B195,ConsolidadoServicios!$A:$K,11,0)),0) -> 0 | G195: =IF(E195>0,(VLOOKUP(B195,Minimos!$A:$B,2,0)),0) -> 0 | H195: 0 | J195: 0 | K195: 0 | L195: =ROUND(VLOOKUP($C$5&B195,ConsolidadoServicios!P:Q,2,0)*80%,2) -> 0 | M195: ='Detalle Bienes de Aseo y Caf'!I195 -> 0 | N195: ='Detalle Bienes de Aseo y Caf'!J195 -> 0 | O195: ='Detalle Bienes de Aseo y Caf'!K195 -> 0 | P195: ='Detalle Bienes de Aseo y Caf'!L195 -> 0
A196: 182 | B196: Sal 2 (Compra) | C196: - Refinada, con un 99,9% de pureza - Con adiciones de yodo y flúor - Debe cumplir con Resolución 333 de 2011 sobre rotulado y etiquetado nutricional y las normas que la modifiquen | D196: 1 kg (1.000 g) | E196: 0 | F196: =IF(E196>0,(VLOOKUP($C$5&$C$6&B196,ConsolidadoServicios!$A:$K,11,0)),0) -> 0 | G196: =IF(E196>0,(VLOOKUP(B196,Minimos!$A:$B,2,0)),0) -> 0 | H196: 0 | J196: 0 | K196: 0 | L196: =ROUND(VLOOKUP($C$5&B196,ConsolidadoServicios!P:Q,2,0)*80%,2) -> 0 | M196: ='Detalle Bienes de Aseo y Caf'!I196 -> 0 | N196: ='Detalle Bienes de Aseo y Caf'!J196 -> 0 | O196: ='Detalle Bienes de Aseo y Caf'!K196 -> 0 | P196: ='Detalle Bienes de Aseo y Caf'!L196 -> 0
A197: 183 | B197: Sal 3 (Compra) | C197: - Refinada, con un 99,9% de pureza - Con adiciones de yodo y flúor - Debe cumplir con Resolución 333 de 2011 sobre rotulado y etiquetado nutricional y las normas que la modifiquen | D197: Salero de mínimo 130 g | E197: 0 | F197: =IF(E197>0,(VLOOKUP($C$5&$C$6&B197,ConsolidadoServicios!$A:$K,11,0)),0) -> 0 | G197: =IF(E197>0,(VLOOKUP(B197,Minimos!$A:$B,2,0)),0) -> 0 | H197: 0 | J197: 0 | K197: 0 | L197: =ROUND(VLOOKUP($C$5&B197,ConsolidadoServicios!P:Q,2,0)*80%,2) -> 0 | M197: ='Detalle Bienes de Aseo y Caf'!I197 -> 0 | N197: ='Detalle Bienes de Aseo y Caf'!J197 -> 0 | O197: ='Detalle Bienes de Aseo y Caf'!K197 -> 0 | P197: ='Detalle Bienes de Aseo y Caf'!L197 -> 0
A198: 184 | B198: Aromática (Compra) | C198: - Para infusión - Cajas disponbiles en mínimo tres (3) sabores - 100% naturales | D198: Cajas de mínimo 20 en sobres. | E198: 4 | F198: =IF(E198>0,(VLOOKUP($C$5&$C$6&B198,ConsolidadoServicios!$A:$K,11,0)),0) -> 2534 | G198: =IF(E198>0,(VLOOKUP(B198,Minimos!$A:$B,2,0)),0) -> 1496 | H198: 0.2 | I198: 0.527703236 | J198: 1196.8 | K198: 4787.2 | L198: =ROUND(VLOOKUP($C$5&B198,ConsolidadoServicios!P:Q,2,0)*80%,2) -> 0 | M198: ='Detalle Bienes de Aseo y Caf'!I198 -> 1 | N198: ='Detalle Bienes de Aseo y Caf'!J198 -> 1 | O198: ='Detalle Bienes de Aseo y Caf'!K198 -> 1 | P198: ='Detalle Bienes de Aseo y Caf'!L198 -> 1
A199: 185 | B199: Aromática de panela (Compra) | C199: - Para infusión - Cajas disponbiles en sabor limón, yerbabuena, canela y naranja - Panela 100% natural y ecológica - Embalaje en cartón corrugado - Debe cumplir con la NTC 1311 sobre productos agrícolas - Empaque elaborado en materiales atóxicos - Debe cumplir con la Resolucion 779 de 2006 - Debe cumplir con Resolución 333 de 2011 sobre rotulado y etiquetado nutricional y las normas que la modifiquen. - Uso: Panela instantánea soluble al agua - Azúcares reductores expresados en glucosa, mínimo 5,74%; azúcares no reductores expresados en sacarosa, máximo 90%; proteínas, mínimo 0,2%; cenizas, mínimo 1%; humedad, máximo 5%; plomo expresado como As en mg/kg, máximo 0,1; - No debe contener PVC o Poliestireno expandido u otros plásticos de un solo uso tanto en el envase como en el embalaje. | D199: Cajas de mínimo 20 en sobres. | E199: 4 | F199: =IF(E199>0,(VLOOKUP($C$5&$C$6&B199,ConsolidadoServicios!$A:$K,11,0)),0) -> 8727 | G199: =IF(E199>0,(VLOOKUP(B199,Minimos!$A:$B,2,0)),0) -> 3701 | H199: 0.2 | I199: 0.6607310645 | J199: 2960.8 | K199: 11843.2 | L199: =ROUND(VLOOKUP($C$5&B199,ConsolidadoServicios!P:Q,2,0)*80%,2) -> 0 | M199: ='Detalle Bienes de Aseo y Caf'!I199 -> 1 | N199: ='Detalle Bienes de Aseo y Caf'!J199 -> 1 | O199: ='Detalle Bienes de Aseo y Caf'!K199 -> 1 | P199: ='Detalle Bienes de Aseo y Caf'!L199 -> 1
A200: 186 | B200: Bebida de frutas (Compra) | C200: - En jarabe - Cajas disponbiles en mínimo tres (3) sabores | D200: Caja de mínimo 20 sobres | E200: 4 | F200: =IF(E200>0,(VLOOKUP($C$5&$C$6&B200,ConsolidadoServicios!$A:$K,11,0)),0) -> 16008 | G200: =IF(E200>0,(VLOOKUP(B200,Minimos!$A:$B,2,0)),0) -> 9219 | H200: 0.25 | I200: 0.5680753373 | J200: 6914.25 | K200: 27657 | L200: =ROUND(VLOOKUP($C$5&B200,ConsolidadoServicios!P:Q,2,0)*80%,2) -> 0 | M200: ='Detalle Bienes de Aseo y Caf'!I200 -> 1 | N200: ='Detalle Bienes de Aseo y Caf'!J200 -> 1 | O200: ='Detalle Bienes de Aseo y Caf'!K200 -> 1 | P200: ='Detalle Bienes de Aseo y Caf'!L200 -> 1
A201: 187 | B201: Bebida de panela (Compra) | C201: - Bebida instantánea granulada - Cajas disponbiles en mínimo tres (3) sabores | D201: Caja de mínimo 25 sobres | E201: 0 | F201: =IF(E201>0,(VLOOKUP($C$5&$C$6&B201,ConsolidadoServicios!$A:$K,11,0)),0) -> 0 | G201: =IF(E201>0,(VLOOKUP(B201,Minimos!$A:$B,2,0)),0) -> 0 | H201: 0 | J201: 0 | K201: 0 | L201: =ROUND(VLOOKUP($C$5&B201,ConsolidadoServicios!P:Q,2,0)*80%,2) -> 0 | M201: ='Detalle Bienes de Aseo y Caf'!I201 -> 0 | N201: ='Detalle Bienes de Aseo y Caf'!J201 -> 0 | O201: ='Detalle Bienes de Aseo y Caf'!K201 -> 0 | P201: ='Detalle Bienes de Aseo y Caf'!L201 -> 0
A202: 188 | B202: Té (Compra) | C202: - Para infusión - Cajas disponbiles en mínimo tres (3) sabores - 100% naturales | D202: Caja x 20 mínimo sobres | E202: 0 | F202: =IF(E202>0,(VLOOKUP($C$5&$C$6&B202,ConsolidadoServicios!$A:$K,11,0)),0) -> 0 | G202: =IF(E202>0,(VLOOKUP(B202,Minimos!$A:$B,2,0)),0) -> 0 | H202: 0 | J202: 0 | K202: 0 | L202: =ROUND(VLOOKUP($C$5&B202,ConsolidadoServicios!P:Q,2,0)*80%,2) -> 0 | M202: ='Detalle Bienes de Aseo y Caf'!I202 -> 0 | N202: ='Detalle Bienes de Aseo y Caf'!J202 -> 0 | O202: ='Detalle Bienes de Aseo y Caf'!K202 -> 0 | P202: ='Detalle Bienes de Aseo y Caf'!L202 -> 0
A203: 189 | B203: Infusión frutal (Compra) | C203: - Para infusión - 100% naturales - Sabores surtidos | D203: Caja x 20 mínimo sobres | E203: 0 | F203: =IF(E203>0,(VLOOKUP($C$5&$C$6&B203,ConsolidadoServicios!$A:$K,11,0)),0) -> 0 | G203: =IF(E203>0,(VLOOKUP(B203,Minimos!$A:$B,2,0)),0) -> 0 | H203: 0 | J203: 0 | K203: 0 | L203: =ROUND(VLOOKUP($C$5&B203,ConsolidadoServicios!P:Q,2,0)*80%,2) -> 0 | M203: ='Detalle Bienes de Aseo y Caf'!I203 -> 0 | N203: ='Detalle Bienes de Aseo y Caf'!J203 -> 0 | O203: ='Detalle Bienes de Aseo y Caf'!K203 -> 0 | P203: ='Detalle Bienes de Aseo y Caf'!L203 -> 0
A204: 190 | B204: Agua potable 1 (Compra) | C204: - Agua potable purificada sin gas | D204: Botella plástica de mínimo 250 ml | E204: 0 | F204: =IF(E204>0,(VLOOKUP($C$5&$C$6&B204,ConsolidadoServicios!$A:$K,11,0)),0) -> 0 | G204: =IF(E204>0,(VLOOKUP(B204,Minimos!$A:$B,2,0)),0) -> 0 | H204: 0 | J204: 0 | K204: 0 | L204: =ROUND(VLOOKUP($C$5&B204,ConsolidadoServicios!P:Q,2,0)*80%,2) -> 0 | M204: ='Detalle Bienes de Aseo y Caf'!I204 -> 0 | N204: ='Detalle Bienes de Aseo y Caf'!J204 -> 0 | O204: ='Detalle Bienes de Aseo y Caf'!K204 -> 0 | P204: ='Detalle Bienes de Aseo y Caf'!L204 -> 0
... 218 more rows

Sheet Cotizacion
B1: COTIZACIÓN ASEO Y CAFETERIA
B2: =+'Solicitud de Cotización General'!A4 -> Versión: 42 ---- 14/05/2024
B3: Región de Cobertura: | D3: ='Solicitud de Cotización General'!H9 -> 10
B4: Nombre del Proveedor: | D4: CONSORCIO KIOS
B6: Paquete de Servicios | J6: Valores
B7: Item | C7: Categoría | D7: Servicio | E7: Característica 1 | F7: Disponibilidad | G7: Cantidad | H7: Unidad | I7: Vigencia / Unidad | J7: Valor unitario | K7: Descuento % | L7: Precio Unitario con Descuento | M7: Nuevo precio cláusula 8 | N7: Valor Mensual / Valor X Unidad | O7: Recargo por Trabajo nocturno, extra, dominical y festivo | P7: Recargo por dotación especial | Q7: Valor Total | R7: NomCoupa
A8: =AND(L8>=2465868,K8>=0,K8<=1) -> TRUE | B8: 1 | C8: Servicio de Personal | D8: Operario de aseo y cafetería | E8: Operario de aseo y cafetería | F8: Tiempo Completo | G8: 4 | H8: Mes | I8: 7 | J8: =VLOOKUP($D$3&$D$4&D8,ConsolidadoServicios!$A:$K,11,0) -> 2465868 | L8: =J8*(1-K8) -> 2465868 | M8: =ROUND(L8/(1-VLOOKUP("Total porcentaje:",Cotizacion!$E:$G,3,0)),2) -> 2465868 | N8: =G8*M8 -> 9863472 | Q8: =I8*N8 -> 69044304 | R8: NomCoupa
B9: 2 | C9: Bienes de Aseo y Cafetería | D9: Jabón para loza 2 (Compra) | E9: Jabón para loza 2 (Compra) | G9: 4 | H9: Und | I9: 7 | J9: =VLOOKUP($D$3&$D$4&D9,ConsolidadoServicios!$A:$K,11,0) -> 4573 | K9: =VLOOKUP(D9,'Cotizacion Bienes de Aseo y Ca'!B:K,8,FALSE) -> 0.4867264378 | L9: 2347.2 | M9: =ROUND(L9/(1-VLOOKUP("Total porcentaje:",Cotizacion!$E:$G,3,0)),2) -> 2347.2 | N9: 9388.8 | Q9: 65721.6 | R9: NomCoupa
B10: 3 | C10: Bienes de Aseo y Cafetería | D10: Jabón en barra (Compra) | E10: Jabón en barra (Compra) | G10: 8 | H10: Und | I10: 7 | J10: =VLOOKUP($D$3&$D$4&D10,ConsolidadoServicios!$A:$K,11,0) -> 3856 | K10: =VLOOKUP(D10,'Cotizacion Bienes de Aseo y Ca'!B:K,8,FALSE) -> 0.5942686722 | L10: 1564.5 | M10: =ROUND(L10/(1-VLOOKUP("Total porcentaje:",Cotizacion!$E:$G,3,0)),2) -> 1564.5 | N10: 12516 | Q10: 87612 | R10: NomCoupa
B11: 4 | C11: Bienes de Aseo y Cafetería | D11: Jabón abrasivo (Compra) | E11: Jabón abrasivo (Compra) | G11: 4 | H11: Und | I11: 7 | J11: =VLOOKUP($D$3&$D$4&D11,ConsolidadoServicios!$A:$K,11,0) -> 5326 | K11: =VLOOKUP(D11,'Cotizacion Bienes de Aseo y Ca'!B:K,8,FALSE) -> 0.4823882839 | L11: 2756.8 | M11: =ROUND(L11/(1-VLOOKUP("Total porcentaje:",Cotizacion!$E:$G,3,0)),2) -> 2756.8 | N11: 11027.2 | Q11: 77190.4 | R11: NomCoupa
B12: 5 | C12: Bienes de Aseo y Cafetería | D12: Jabón de dispensador para manos 1 (Compra) | E12: Jabón de dispensador para manos 1 (Compra) | G12: 4 | H12: Und | I12: 7 | J12: =VLOOKUP($D$3&$D$4&D12,ConsolidadoServicios!$A:$K,11,0) -> 5043 | K12: =VLOOKUP(D12,'Cotizacion Bienes de Aseo y Ca'!B:K,8,FALSE) -> 0.6099147333 | L12: 1967.2 | M12: =ROUND(L12/(1-VLOOKUP("Total porcentaje:",Cotizacion!$E:$G,3,0)),2) -> 1967.2 | N12: 7868.8 | Q12: 55081.6 | R12: NomCoupa
B13: 6 | C13: Bienes de Aseo y Cafetería | D13: Limpiador multiusos 2 (Compra) | E13: Limpiador multiusos 2 (Compra) | G13: 4 | H13: Und | I13: 7 | J13: =VLOOKUP($D$3&$D$4&D13,ConsolidadoServicios!$A:$K,11,0) -> 4724 | K13: =VLOOKUP(D13,'Cotizacion Bienes de Aseo y Ca'!B:K,8,FALSE) -> 0.6303132938 | L13: 1746.4 | M13: =ROUND(L13/(1-VLOOKUP("Total porcentaje:",Cotizacion!$E:$G,3,0)),2) -> 1746.4 | N13: 6985.6 | Q13: 48899.2 | R13: NomCoupa
B14: 7 | C14: Bienes de Aseo y Cafetería | D14: Limpiador multiusos 3 (Compra) | E14: Limpiador multiusos 3 (Compra) | G14: 4 | H14: Und | I14: 7 | J14: =VLOOKUP($D$3&$D$4&D14,ConsolidadoServicios!$A:$K,11,0) -> 3647 | K14: =VLOOKUP(D14,'Cotizacion Bienes de Aseo y Ca'!B:K,8,FALSE) -> 0.5731285988 | L14: 1556.8 | M14: =ROUND(L14/(1-VLOOKUP("Total porcentaje:",Cotizacion!$E:$G,3,0)),2) -> 1556.8 | N14: 6227.2 | Q14: 43590.4 | R14: NomCoupa
B15: 8 | C15: Bienes de Aseo y Cafetería | D15: Limpiador desinfectante para uso general 2 (Compra) | E15: Limpiador desinfectante para uso general 2 (Compra) | G15: 4 | H15: Und | I15: 7 | J15: =VLOOKUP($D$3&$D$4&D15,ConsolidadoServicios!$A:$K,11,0) -> 5031 | K15: =VLOOKUP(D15,'Cotizacion Bienes de Aseo y Ca'!B:K,8,FALSE) -> 0.5267740012 | L15: 2380.8 | M15: =ROUND(L15/(1-VLOOKUP("Total porcentaje:",Cotizacion!$E:$G,3,0)),2) -> 2380.8 | N15: 9523.2 | Q15: 66662.4 | R15: NomCoupa
B16: 9 | C16: Bienes de Aseo y Cafetería | D16: Pastilla desinfectante para sanitario (Compra) | E16: Pastilla desinfectante para sanitario (Compra) | G16: 12 | H16: Und | I16: 7 | J16: =VLOOKUP($D$3&$D$4&D16,ConsolidadoServicios!$A:$K,11,0) -> 7084 | K16: =VLOOKUP(D16,'Cotizacion Bienes de Aseo y Ca'!B:K,8,FALSE) -> 0.6271174478 | L16: 2641.5 | M16: =ROUND(L16/(1-VLOOKUP("Total porcentaje:",Cotizacion!$E:$G,3,0)),2) -> 2641.5 | N16: 31698 | Q16: 221886 | R16: NomCoupa
B17: 10 | C17: Bienes de Aseo y Cafetería | D17: Líquido para limpiar vidrios 2 (Compra) | E17: Líquido para limpiar vidrios 2 (Compra) | G17: 4 | H17: Und | I17: 7 | J17: =VLOOKUP($D$3&$D$4&D17,ConsolidadoServicios!$A:$K,11,0) -> 5090 | K17: =VLOOKUP(D17,'Cotizacion Bienes de Aseo y Ca'!B:K,8,FALSE) -> 0.5155992141 | L17: 2465.6 | M17: =ROUND(L17/(1-VLOOKUP("Total porcentaje:",Cotizacion!$E:$G,3,0)),2) -> 2465.6 | N17: 9862.4 | Q17: 69036.8 | R17: NomCoupa
B18: 11 | C18: Bienes de Aseo y Cafetería | D18: Blanqueador o hipoclorito 1 (Compra) | E18: Blanqueador o hipoclorito 1 (Compra) | G18: 4 | H18: Und | I18: 7 | J18: =VLOOKUP($D$3&$D$4&D18,ConsolidadoServicios!$A:$K,11,0) -> 9696 | K18: =VLOOKUP(D18,'Cotizacion Bienes de Aseo y Ca'!B:K,8,FALSE) -> 0.5504331683 | L18: 4359 | M18: =ROUND(L18/(1-VLOOKUP("Total porcentaje:",Cotizacion!$E:$G,3,0)),2) -> 4359 | N18: 17436 | Q18: 122052 | R18: NomCoupa
B19: 12 | C19: Bienes de Aseo y Cafetería | D19: Líquido para limpiar equipos de oficina 1 (Compra) | E19: Líquido para limpiar equipos de oficina 1 (Compra) | G19: 4 | H19: Und | I19: 7 | J19: =VLOOKUP($D$3&$D$4&D19,ConsolidadoServicios!$A:$K,11,0) -> 6267 | K19: =VLOOKUP(D19,'Cotizacion Bienes de Aseo y Ca'!B:K,8,FALSE) -> 0.5827030477 | L19: 2615.2 | M19: =ROUND(L19/(1-VLOOKUP("Total porcentaje:",Cotizacion!$E:$G,3,0)),2) -> 2615.2 | N19: 10460.8 | Q19: 73225.6 | R19: NomCoupa
B20: 13 | C20: Bienes de Aseo y Cafetería | D20: Lustrador de muebles (Compra) | E20: Lustrador de muebles (Compra) | G20: 4 | H20: Und | I20: 7 | J20: =VLOOKUP($D$3&$D$4&D20,ConsolidadoServicios!$A:$K,11,0) -> 4636 | K20: =VLOOKUP(D20,'Cotizacion Bienes de Aseo y Ca'!B:K,8,FALSE) -> 0.6562553926 | L20: 1593.6 | M20: =ROUND(L20/(1-VLOOKUP("Total porcentaje:",Cotizacion!$E:$G,3,0)),2) -> 1593.6 | N20: 6374.4 | Q20: 44620.8 | R20: NomCoupa
B21: 14 | C21: Bienes de Aseo y Cafetería | D21: Ambientador 2 (Compra) | E21: Ambientador 2 (Compra) | G21: 4 | H21: Und | I21: 7 | J21: =VLOOKUP($D$3&$D$4&D21,ConsolidadoServicios!$A:$K,11,0) -> 15205 | K21: =VLOOKUP(D21,'Cotizacion Bienes de Aseo y Ca'!B:K,8,FALSE) -> 0.5838868793 | L21: 6327 | M21: =ROUND(L21/(1-VLOOKUP("Total porcentaje:",Cotizacion!$E:$G,3,0)),2) -> 6327 | N21: 25308 | Q21: 177156 | R21: NomCoupa
B22: 15 | C22: Bienes de Aseo y Cafetería | D22: Insecticida 1 (Compra) | E22: Insecticida 1 (Compra) | G22: 4 | H22: Und | I22: 7 | J22: =VLOOKUP($D$3&$D$4&D22,ConsolidadoServicios!$A:$K,11,0) -> 22160 | K22: =VLOOKUP(D22,'Cotizacion Bienes de Aseo y Ca'!B:K,8,FALSE) -> 0.6569156137 | L22: 7602.75 | M22: =ROUND(L22/(1-VLOOKUP("Total porcentaje:",Cotizacion!$E:$G,3,0)),2) -> 7602.75 | N22: 30411 | Q22: 212877 | R22: NomCoupa
